{"text_format":"3","workbook":"xlsx","n_sheets":21,"sheets":["BOQ","BILL01","BILL02","BILL03","BILL04","BILL05","BILL06","BILL07","BILL08","BILL09","BILL10","BILL11","BILL12","BILL13","BILL14","BILL15","BILL16","BILL17","BILL18","BILL19","SUMMARY"],"not_rendered":{"defined_names":20},"read":"whole","date_system":"1900"}

{"sheet":"BOQ","index":0,"n_rows":67,"n_cols":15,"rows_kept":67,"merged":[[2,0,2,1],[2,2,2,13],[4,2,4,13],[5,2,5,13]]}
[]
[{"$nulls":14}," "]
["Item",null,"Description",{"$nulls":11},"No. of Pages"]
[]
[null,null,"SCHEDULE OF RATES - BILL OF QUANTITIES"]
[]
["A",1,"BILL NO 1: ARTISAN",{"$nulls":11},1]
[]
[]
["B",{"$f":"B7+1","v":2},"BILL NO 2: CERTIFICATE OF COMPLIANCE",{"$nulls":11},1]
[]
[]
["C",{"$f":"B10+1","v":3},"BILL NO 3: CIRCUIT BREAKERS, SWITCHGEAR, DISTRIBUTION BOARD & ASSOCIATED EQUIPMENT",{"$nulls":11},12]
[]
[]
["D",{"$f":"B13+1","v":4},"BILL NO 4: CABLE TRENCHING",{"$nulls":11},3]
[]
[]
["E",{"$f":"B16+1","v":5},"BILL NO 5: CABLE RETICULATION",{"$nulls":11},6]
[]
[]
["F",{"$f":"B19+1","v":6},"BILL NO 6: WIREWAYS & ACCESSORIES",{"$nulls":11},6]
[]
[]
["G",{"$f":"B22+1","v":7},"BILL NO 7: WIRING",{"$nulls":11},4]
[]
[]
["H",{"$f":"B25+1","v":8},"BILL NO 8: LUMINAIRES",{"$nulls":11},15]
[]
[]
["I",{"$f":"B28+1","v":9},"BILL NO 9: LAMPS",{"$nulls":11},9]
[]
[]
["J",{"$f":"B31+1","v":10},"BILL NO 10: LUMINAIRE ACCESSORIES",{"$nulls":11},4]
[]
[]
["K",{"$f":"B34+1","v":11},"BILL NO 11: LIGHT SWITCHES",{"$nulls":11},3]
[]
[]
["L",{"$f":"B37+1","v":12},"BILL NO 12: POWERSKIRTING",{"$nulls":11},1]
[]
[]
["M",{"$f":"B40+1","v":13},"BILL NO 13: SWITCHED SOCKET OUTLETS, ENCLOSURES & ACCESSORIES",{"$nulls":11},7]
[]
[]
["N",{"$f":"B43+1","v":14},"BILL NO 14: GEYSER SPARES  & ACCESSORIES",{"$nulls":11},1]
[]
[]
["O",{"$f":"B46+1","v":15},"BILL NO 15: HYDROBOIL",{"$nulls":11},1]
[]
[]
["P",{"$f":"B49+1","v":16},"BILL NO 16: FANS, DRYERS & ACCESSORIES",{"$nulls":11},4]
[]
[]
["Q",{"$f":"B52+1","v":17},"BILL NO 17: OCCUPANCY SENSORS",{"$nulls":11},3]
[]
[]
["R",{"$f":"B55+1","v":18},"BILL NO 18: LIGHTNING & SURGE PROTECTION",{"$nulls":11},4]
[]
[]
["S",{"$f":"B58+1","v":19},"BILL NO 19: SOLAR",{"$nulls":11},5]
[]
[]
[null,20,"BILL SUMMARY",{"$nulls":11},1]
[]
[]
[null,21,"BILL PAGE TOTAL",{"$nulls":11},92]

{"sheet":"BILL01","index":1,"n_rows":41,"n_cols":18,"rows_kept":41,"merged":[[0,1,0,14],[1,2,1,9],[6,2,6,9],[27,2,27,14],[28,2,28,9],[39,2,39,9]]}
[{"$nulls":15},{"v":1.7,"d":"170.00%"},null,{"v":7.5,"d":"750%"}]
[null,"Item","Description",{"$nulls":7},"Unit","Qty","Supply & Deliver Rate","Overheads","Amount"]
[]
[null,null,"ELECTRICAL WORKS"]
["A",null,"BILL OF QUANTITIES: BILL NO 1 OF 19"]
[]
[null,null,"ARTISAN"]
[null,null,"The artisans and technical persons as described below and "]
[null,null,"registered in terms of the Department of Labour, Engineering "]
[null,null,"Council of South Africa."]
[null,null,"Labour rates for work not covered by any scheduled rates:"]
[null,null,"Labour rates for normal working hours to include transport costs:"]
[]
[null,null,"LABOUR RATES"]
[null,null,"(NORMAL WORKING HOURS - 07:00-16:00)"]
[]
["A",1,"Professional Technician or higher (Engineering Council of South Africa)",{"$nulls":7},"hrs",{"$f":"$R$1*100","v":750}]
["A",{"$f":"B17+1","v":2},"Master Registered Electrician (Registered with Department of Labour)",{"$nulls":7},"hrs",{"$f":"$R$1*50","v":375}]
["A",{"$f":"B18+1","v":3},"Registered Installation Electrician (Wiremans License)",{"$nulls":7},"hrs",{"$f":"$R$1*100","v":750}]
["A",{"$f":"B19+1","v":4},"Electrical Trade Test Artisan",{"$nulls":7},"hrs",{"$f":"$R$1*200","v":1500}]
["A",{"$f":"B20+1","v":5},"Electrical Artisan Assistant",{"$nulls":7},"hrs",{"$f":"$R$1*200","v":1500}]
["A",{"$f":"B21+1","v":6},"General Labour Assistant",{"$nulls":7},"hrs",{"$f":"$R$1*400","v":3000}]
["A",7,"Administration Clerk",{"$nulls":7},"hrs",{"$f":"$R$1*400","v":3000}]
["A",8,"Traveling expenses",{"$nulls":7},"km",1]
[null,null,"LABOUR RATES FOR AFTER HOURS WORK "]
[]
[null,null,"LABOUR RATES"]
[null,null,"(AFTER NORMAL WORKING HOURS  – 16:00-07:00. INCLUDING WEEKENDS AND PUBLIC HOLIDAYS)"]
[]
["A",{"$f":"B24+1","v":9},"Professional Technician (Engineering Council of South Africa)",{"$nulls":7},"hrs",{"$f":"$R$1*30","v":225}]
["A",{"$f":"B30+1","v":10},"Master Registered Electrician",{"$nulls":7},"hrs",{"$f":"$R$1*20","v":150}]
["A",{"$f":"B31+1","v":11},"Registered Installation Electrician (Wiremans License)",{"$nulls":7},"hrs",{"$f":"$R$1*30","v":225}]
["A",{"$f":"B32+1","v":12},"Electrical Trade Test Artisan",{"$nulls":7},"hrs",{"$f":"$R$1*40","v":300}]
["A",{"$f":"B33+1","v":13},"Electrical Artisan Assistant",{"$nulls":7},"hrs",{"$f":"$R$1*40","v":300}]
["A",{"$f":"B34+1","v":14},"General Labour Assistant",{"$nulls":7},"hrs",{"$f":"$R$1*80","v":600}]
[]
[]
[]
[]
[]
[null,null,"TOTAL CARRIED TO BILL SUMMARY Page 92 "]

{"sheet":"BILL02","index":2,"n_rows":31,"n_cols":18,"rows_kept":31,"merged":[[0,1,0,15],[1,2,1,9],[6,2,6,9],[29,2,29,9]]}
[{"$nulls":16},{"v":1,"d":"100.00%"},{"v":7.5,"d":"750%"}]
[null,"Item","Description",{"$nulls":7},"Unit","Qty","Supply & Deliver Rate","Install Rate","Overheads","  Amount"]
[]
[null,null,"ELECTRICAL WORKS"]
["B",null,"BILL OF QUANTITIES: BILL NO 2 OF 19"]
[]
[null,null,"CERTIFICATE OF COMPLIANCE"]
[null,null,"Allow for the tesing, commissioning and issuing of the"]
[null,null,"Electrical Compliance Certificate in terms of SANS10142:"]
[null,null,"Wiring Code, latest revision and to be completed by the"]
[null,null,"recognised person in terms of the Wiring Code and Department"]
[null,null,"of Labour."]
[]
["B",1,"Single phase Distribution Board: CoC",{"$nulls":7},"No",{"$f":"$R$1*40","v":300}]
["B",{"$f":"B14+1","v":2},"Three phase Distribution Board: CoC",{"$nulls":7},"No",{"$f":"$R$1*50","v":375}]
["B",{"$f":"B15+1","v":3},"Infra-Red Testing",{"$nulls":7},"per day",1]
["B",{"$f":"B16+1","v":4},"Testing and fault finding on low voltage(600/1000V) grade"]
[null,null,"cables using specilist equitment. (Using a cable fault locator)",{"$nulls":7},"per cable",1]
["B",5,"Electrical Warning/Danger Signage including labelling of (Distribution Board) and all the circuits.",{"$nulls":7},"No",{"$f":"$R$1*20","v":150}]
["B",6,"Power Load logging, analysis and  report on a 230/400V system up "]
[null,null,"to 3000A (Low voltage substation and distribution board)",{"$nulls":7},"per day",1]
{"$rows_empty":9}
[null,null,"TOTAL CARRIED TO BILL SUMMARY Page 92 "]

{"sheet":"BILL03","index":3,"n_rows":484,"n_cols":18,"rows_kept":484}
[{"$nulls":15},{"v":1.077,"d":"107.70%"},null,{"v":10,"d":"1000%"}]
[null,"Item","Description",{"$nulls":7},"Unit","Qty","Supply & Deliver Rate","Install Rate"," Amount"]
[]
[null,null,"ELECTRICAL WORKS"]
["C",null,"BILL OF QUANTITIES: BILL NO 3 OF 19"]
[]
[null,null,"CIRCUIT BREAKERS, SWITCHGEAR,"]
[null,null,"DISTRIBUTION BOARD & ASSOCIATED EQUIPMENT "]
[]
[null,null,"CIRCUIT BREAKERS"]
[null,null,"MINIATURE CIRCUIT BREAKERS(MCB)"]
[null,null,"Supply, deliver and install miniature circuit breakers in accordance"]
[null,null,"with SANS 156. Approved by SABS."]
[null,null,"The circuit breakers are to be fitted into existing or new"]
[null,null,"distribution boards."]
[]
[null,null,"3KA, CURVE 3(STANDARD) HYDRAULIC MAGNETIC TYPE"]
[null,null,"SINGLE PHASE, 240V, 50Hz"]
[null,null,"CBI or equal approved"]
["C",1,"5A, Single Pole",{"$nulls":7},"No",{"$f":"$R$1*5","v":50}]
["C",{"$f":"B20+1","v":2},"10A to 20A, Single Pole",{"$nulls":7},"No",{"$f":"$R$1*5","v":50}]
["C",3,"25A to 40A, Single Pole",{"$nulls":7},"No",{"$f":"$R$1*5","v":50}]
["C",4,"45A to 60A, Single Pole",{"$nulls":7},"No",50]
["C",5,"5A to 20A, Double Pole",{"$nulls":7},"No",50]
["C",6,"25A to 50A, Double Pole",{"$nulls":7},"No",50]
["C",7,"60A, Double Pole",{"$nulls":7},"No",50]
[]
[null,null,"Merlin Gerin or equal approved"]
["C",{"$f":"B26+1","v":8},"5A, Single Pole",{"$nulls":7},"No",50]
["C",{"$f":"B29+1","v":9},"10A to 20A, Single Pole",{"$nulls":7},"No",50]
["C",10,"25A to 40A, Single Pole",{"$nulls":7},"No",50]
["C",11,"45A to 60A, Single Pole",{"$nulls":7},"No",50]
["C",12,"5A to 20A, Double Pole",{"$nulls":7},"No",50]
["C",13,"25A to 50A, Double Pole",{"$nulls":7},"No",50]
["C",14,"60A, Double Pole",{"$nulls":7},"No",50]
[]
[]
[]
[null,null,"Carried to Collection Page 14"]
[null,"Item","Description",{"$nulls":7},"Unit","Qty","Supply & Deliver Rate","Install Rate"," Amount"]
[null,null,"3KA, CURVE 3(STANDARD) HYDRAULIC MAGNETIC TYPE"]
[null,null,"THREE PHASE, 400V, 50Hz"]
[null,null,"CBI or equal approved"]
["C",{"$f":"B35+1","v":15},"5A, Triple Pole",{"$nulls":7},"No",{"$f":"$R$1*5","v":50}]
["C",{"$f":"B44+1","v":16},"10A to 20A, Triple Pole",{"$nulls":7},"No",50]
["C",{"$f":"B45+1","v":17},"25A to 40A, Triple Pole",{"$nulls":7},"No",50]
["C",{"$f":"B46+1","v":18},"45A to 60A, Triple Pole",{"$nulls":7},"No",50]
[]
[null,null,"Merlin Gerin or equal approved"]
["C",{"$f":"B47+1","v":19},"5A, Triple Pole",{"$nulls":7},"No",{"$f":"$R$1*5","v":50}]
["C",{"$f":"B50+1","v":20},"10A to 20A, Triple Pole",{"$nulls":7},"No",50]
["C",{"$f":"B51+1","v":21},"25A to 40A, Triple Pole",{"$nulls":7},"No",50]
["C",{"$f":"B52+1","v":22},"45A to 60A, Triple Pole",{"$nulls":7},"No",50]
[]
[]
[null,null,"6KA, CURVE 2(STANDARD) HYDRAULIC MAGNETIC TYPE"]
[null,null,"SINGLE PHASE, 240V, 50Hz"]
[null,null,"CBI or equal approved"]
["C",{"$f":"B53+1","v":23},"5A, Single Pole",{"$nulls":7},"No",{"$f":"$R$1*5","v":50}]
["C",{"$f":"B59+1","v":24},"10A to 20A, Single Pole",{"$nulls":7},"No",50]
["C",25,"25A to 40A, Single Pole",{"$nulls":7},"No",50]
["C",26,"45A to 60A, Single Pole",{"$nulls":7},"No",50]
["C",27,"5A to 20A, Double Pole",{"$nulls":7},"No",50]
["C",28,"25A to 50A, Double Pole",{"$nulls":7},"No",50]
["C",29,"60A, Double Pole",{"$nulls":7},"No",50]
[]
[null,null,"Merlin Gerin or equal approved"]
["C",{"$f":"B65+1","v":30},"5A, Single Pole",{"$nulls":7},"No",{"$f":"$R$1*5","v":50}]
["C",{"$f":"B68+1","v":31},"10A to 20A, Single Pole",{"$nulls":7},"No",50]
["C",32,"25A to 40A, Single Pole",{"$nulls":7},"No",50]
["C",33,"45A to 60A, Single Pole",{"$nulls":7},"No",50]
["C",34,"5A to 20A, Double Pole",{"$nulls":7},"No",50]
["C",35,"25A to 50A, Double Pole",{"$nulls":7},"No",50]
["C",36,"60A, Double Pole",{"$nulls":7},"No",50]
[]
[null,null,"Carried to Collection Page 14"]
[]
[null,"Item","Description",{"$nulls":7},"Unit","Qty","Supply & Deliver Rate","Install Rate"," Amount"]
[null,null,"6KA, CURVE 2(STANDARD) HYDRAULIC MAGNETIC TYPE"]
[null,null,"THREE PHASE, 400V, 50Hz"]
[null,null,"CBI or equal approved"]
["C",{"$f":"B74+1","v":37},"5A, Triple Pole",{"$nulls":7},"No",{"$f":"$R$1*5","v":50}]
["C",{"$f":"B82+1","v":38},"10A to 20A, Triple Pole",{"$nulls":7},"No",50]
["C",{"$f":"B83+1","v":39},"25A to 40A, Triple Pole",{"$nulls":7},"No",50]
["C",{"$f":"B84+1","v":40},"45A to 60A, Triple Pole",{"$nulls":7},"No",50]
[null,null,"Merlin Gerin or equal approved"]
["C",{"$f":"B85+1","v":41},"5A, Triple Pole",{"$nulls":7},"No",{"$f":"$R$1*5","v":50}]
["C",{"$f":"B87+1","v":42},"10A to 20A, Triple Pole",{"$nulls":7},"No",50]
["C",{"$f":"B88+1","v":43},"25A to 40A, Triple Pole",{"$nulls":7},"No",50]
["C",{"$f":"B89+1","v":44},"45A to 60A, Triple Pole",{"$nulls":7},"No",50]
[null,null,"6KA, CURVE 1 (MOTOR) THERMAL MAGNETIC TYPE"]
[null,null,"SINGLE PHASE, 240V, 50Hz"]
[null,null,"CBI or equal approved"]
["C",{"$f":"B90+1","v":45},"6A to 20A, Single Pole",{"$nulls":7},"No",{"$f":"$R$1*5","v":50}]
["C",{"$f":"B94+1","v":46},"25A to 32A, Single Pole",{"$nulls":7},"No",50]
["C",{"$f":"B95+1","v":47},"35A to 63A, Single Pole",{"$nulls":7},"No",50]
["C",{"$f":"B96+1","v":48},"6A to 20A, Double Pole",{"$nulls":7},"No",50]
["C",{"$f":"B97+1","v":49},"25A to 40A, Double Pole",{"$nulls":7},"No",50]
["C",{"$f":"B98+1","v":50},"50 to 63A, Double Pole",{"$nulls":7},"No",50]
[null,null,"Merlin Gerin or equal approved"]
["C",{"$f":"B99+1","v":51},"6A to 20A, Single Pole",{"$nulls":7},"No",{"$f":"$R$1*5","v":50}]
["C",{"$f":"B101+1","v":52},"25A to 32A, Single Pole",{"$nulls":7},"No",50]
["C",{"$f":"B102+1","v":53},"35A to 63A, Single Pole",{"$nulls":7},"No",50]
["C",{"$f":"B103+1","v":54},"6A to 20A, Double Pole",{"$nulls":7},"No",50]
["C",{"$f":"B104+1","v":55},"25A to 40A, Double Pole",{"$nulls":7},"No",50]
["C",{"$f":"B105+1","v":56},"50 to 63A, Double Pole",{"$nulls":7},"No",50]
[null,null,"6KA, CURVE 1 (MOTOR) THERMAL MAGNETIC TYPE"]
[null,null,"THREE PHASE, 400V, 50Hz"]
[null,null,"CBI or equal approved"]
["C",{"$f":"B106+1","v":57},"6A, Triple Pole",{"$nulls":7},"No",{"$f":"$R$1*5","v":50}]
["C",{"$f":"B110+1","v":58},"10A to 20A, Triple Pole",{"$nulls":7},"No",50]
["C",{"$f":"B111+1","v":59},"25A to 63A, Triple Pole",{"$nulls":7},"No",50]
["C",{"$f":"B112+1","v":60},"6A to 20A, Triple Pole + Neutral",{"$nulls":7},"No",50]
[]
[null,null,"Carried to Collection Page 14"]
[]
[null,"Item","Description",{"$nulls":7},"Unit","Qty","Supply & Deliver Rate","Install Rate"," Amount"]
["C",{"$f":"B113+1","v":61},"25A to 40A, Triple Pole + Neutral",{"$nulls":7},"No",{"$f":"$R$1*5","v":50}]
["C",{"$f":"B118+1","v":62},"50A to 63A, Triple Pole + Neutral",{"$nulls":7},"No",50]
[null,null,"Merlin Gerin or equal approved"]
["C",{"$f":"B119+1","v":63},"6A, Triple Pole",{"$nulls":7},"No",{"$f":"$R$1*5","v":50}]
["C",{"$f":"B121+1","v":64},"10A to 20A, Triple Pole",{"$nulls":7},"No",50]
["C",{"$f":"B122+1","v":65},"25A to 63A, Triple Pole",{"$nulls":7},"No",50]
["C",{"$f":"B123+1","v":66},"6A to 20A, Triple Pole + Neutral",{"$nulls":7},"No",50]
["C",{"$f":"B124+1","v":67},"25A to 40A, Triple Pole + Neutral",{"$nulls":7},"No",50]
["C",{"$f":"B125+1","v":68},"50A to 63A, Triple Pole + Neutral",{"$nulls":7},"No",50]
[null,null,"SWITCH DISCONNECTORS"]
[null,null,"Supply, deliver and install switch disconnectors in"]
[null,null,"accordance with SANS 156."]
[null,null,"The switch disconnectors are to be fitted into existing or new"]
[null,null,"distribution boards."]
[null,null,"3KA, DUAL MOUNT: HYDRAULIC MAGNETIC TYPE"]
[null,null,"SINGLE PHASE, 240V, 50Hz"]
[null,null,"CBI or equal approved"]
["C",{"$f":"B126+1","v":69},"63A, Single Pole",{"$nulls":7},"No",{"$f":"$R$1*5","v":50}]
[null,null,"Merlin Gerin or equal approved"]
["C",{"$f":"B135+1","v":70},"63A, Single Pole",{"$nulls":7},"No",{"$f":"$R$1*5","v":50}]
[null,null,"6KA, DUAL MOUNT: HYDRAULIC MAGNETIC TYPE"]
[null,null,"SINGLE PHASE, 240V, 50Hz"]
[null,null,"CBI or equal approved"]
["C",{"$f":"B137+1","v":71},"63A, Single Pole",{"$nulls":7},"No",{"$f":"$R$1*5","v":50}]
["C",{"$f":"B141+1","v":72},"100A, Single Pole",{"$nulls":7},"No",50]
[null,null,"Merlin Gerin or equal approved"]
["C",{"$f":"B142+1","v":73},"63A, Single Pole",{"$nulls":7},"No",{"$f":"$R$1*5","v":50}]
["C",{"$f":"B144+1","v":74},"100A, Single Pole",{"$nulls":7},"No",50]
[null,null,"3KA, DUAL MOUNT: HYDRAULIC MAGNETIC TYPE"]
[null,null,"THREE PHASE, 400V, 50Hz"]
[null,null,"CBI or equal approved"]
["C",{"$f":"B145+1","v":75},"63A, Four Pole",{"$nulls":7},"No",{"$f":"$R$1*5","v":50}]
[null,null,"Merlin Gerin or equal approved"]
["C",{"$f":"B149+1","v":76},"63A, Four Pole",{"$nulls":7},"No",{"$f":"$R$1*5","v":50}]
[]
[null,null,"Carried to Collection Page 14"]
[null,"Item","Description",{"$nulls":7},"Unit","Qty","Supply & Deliver Rate","Install Rate"," Amount"]
[null,null,"6KA, DUAL MOUNT: HYDRAULIC MAGNETIC TYPE"]
[null,null,"THREE PHASE, 400V, 50Hz"]
[null,null,"CBI or equal approved"]
["C",{"$f":"B151+1","v":77},"63A, Four Pole",{"$nulls":7},"No",{"$f":"$R$1*5","v":50}]
["C",{"$f":"B158+1","v":78},"100A, Four Pole",{"$nulls":7},"No",50]
[null,null,"Merlin Gerin or equal approved"]
["C",{"$f":"B159+1","v":79},"63A, Four Pole",{"$nulls":7},"No",{"$f":"$R$1*5","v":50}]
["C",{"$f":"B161+1","v":80},"100A, Four Pole",{"$nulls":7},"No",50]
[null,null,"SWITCH DISCONNECTORS"]
[null,null,"Supply, deliver and install switch disconnectors in"]
[null,null,"accordance with IEC 60947-3."]
[null,null,"The switch disconnectors are to be surface mounted and shall"]
[null,null,"be complete with all extension boxes, enclosures, fittings, fixtures"]
[null,null,"and accessories required for the works."]
[null,null,"Padlockable in OFF position. IP55 rating"]
[null,null,"The switch disconnectors shall be as per Waco: Era: E Series or"]
[null,null,"equal approved"]
["C",{"$f":"B162+1","v":81},"20A Double Pole Isolator",{"$nulls":7},"No",{"$f":"$R$1*5","v":50}]
["C",{"$f":"B172+1","v":82},"25A Double Pole Isolator",{"$nulls":7},"No",50]
["C",83,"32A Double Pole Isolator",{"$nulls":7},"No",50]
["C",84,"45A Double Pole Isolator",{"$nulls":7},"No",50]
["C",{"$f":"B175+1","v":85},"63A Double Pole Isolator",{"$nulls":7},"No",50]
["C",86,"100A Double Pole Isolator",{"$nulls":7},"No",50]
[]
["C",87,"20A Three Pole + N, Isolator",{"$nulls":7},"No",{"$f":"$R$1*5","v":50}]
["C",88,"25A Three Pole + N, Isolator",{"$nulls":7},"No",50]
["C",89,"32A Three Pole + N, Isolator",{"$nulls":7},"No",50]
["C",90,"45A Three Pole + N, Isolator",{"$nulls":7},"No",50]
["C",91,"63A Three Pole + N, Isolator",{"$nulls":7},"No",50]
["C",92,"100A Three Pole + N, Isolator",{"$nulls":7},"No",50]
[]
["C",93,"20A Four Pole Isolator",{"$nulls":7},"No",{"$f":"$R$1*5","v":50}]
["C",94,"25A Four Pole Isolator",{"$nulls":7},"No",50]
["C",95,"32A Four Pole Isolator",{"$nulls":7},"No",50]
["C",96,"45A Four Pole Isolator",{"$nulls":7},"No",50]
["C",97,"63A Four Pole Isolator",{"$nulls":7},"No",50]
["C",98,"100A Four Pole Isolator",{"$nulls":7},"No",50]
[null,null,"Automatic Changeover Swtiches"]
[null,null,"4 pole motorised change over switches to have failsafe machanical "]
[null,null,"interlock, Padlockable in the OFF position, Fully independent position "]
[null,null,"auxiliary contacts one for each position ( I / O / II ) and Wide-band AC "]
[null,null,"control voltage ± 20%. All sundries to be included. Socomec or equally "]
[null,null,"approved. (Installation to comply with all warranties and guarantees costs)"]
["C",{"$f":"B191+1","v":99},"1000A",{"$nulls":7},"ea",{"$f":"$R$1*1","v":10}]
["C",{"$f":"B198+1","v":100},"1600A",{"$nulls":7},"ea",{"$f":"$R$1*1","v":10}]
["C",{"$f":"B199+1","v":101},"2500A",{"$nulls":7},"ea",10]
["C",{"$f":"B200+1","v":102},"3200A",{"$nulls":7},"ea",10]
[null,null,"Carried to Collection Page 14"]
[null,"Item","Description",{"$nulls":7},"Unit","Qty","Supply & Deliver Rate","Install Rate"," Amount"]
[]
[null,null,"MOLDED CASE CIRCUIT BREAKERS"]
[null,null,"Supply, deliver and install molded case circuit breakers in accordance"]
[null,null,"with SANS 156. Approved by SABS. The circuit breakers are to"]
[null,null," be fitted into existing or new distribution panels."]
[null,null,"To Include all mounting fixtures and bus bar tails to fit into exising or new "]
[null,null,"LV panel. Molded case circuit breakers to be CBI or equally approved"]
[]
["C",{"$f":"B201+1","v":103},"75A - 125A, 3 pole, 37kA at 400V",{"$nulls":8},{"$f":"$R$1*1","v":10}]
["C",{"$f":"B212+1","v":104},"150A, 3 pole, 37kA at 400V",{"$nulls":8},10]
["C",{"$f":"B213+1","v":105},"175A - 225A, 3 pole, 37kA at 400V",{"$nulls":8},10]
["C",{"$f":"B214+1","v":106},"250A, 3 pole, 37kA at 400V",{"$nulls":8},10]
["C",{"$f":"B215+1","v":107},"250A, 3 pole, 50kA at 400V",{"$nulls":8},10]
["C",108,"300A - 400A, 3 pole, 50kA at 400V",{"$nulls":8},10]
["C",109,"500A and 630A, 3 pole, 65kA at 400V",{"$nulls":8},10]
["C",110,"700A and 800A, 3 pole, 65kA at 400V",{"$nulls":8},10]
["C",111,"1000A, 3 pole, 65kA at 400V",{"$nulls":8},10]
["C",112,"1200A, 3 pole, 65kA at 400V",{"$nulls":8},10]
[]
[null,null,"AIR CIRCUIT BREAKERS"]
[null,null,"Supply, deliver and install air circuit breakers in accordance"]
[null,null,"with SANS 156. Approved by SABS. The circuit breakers are to"]
[null,null," be fitted into existing or new distribution panels - Draw Out."]
[null,null,"To Include all mounting fixtures, cradles and bus bar tails to fit into    "]
[null,null,"exising or new LV panel. Air circuit breakers to be CBI or equally "]
[null,null,"approved."]
["C",{"$f":"B221+1","v":113},"1250A - 2500A, 3 pole horizontal terminals, 85kA at 400V",{"$nulls":8},{"$f":"$R$1*1","v":10}]
["C",{"$f":"B230+1","v":114},"1600A - 3200A, 3 pole horizontal terminals, 85kA at 400V",{"$nulls":8},10]
["C",{"$f":"B231+1","v":115},"2000A - 4000A, 3 pole horizontal terminals, 85kA at 400V",{"$nulls":8},10]
[]
[null,null,"Carried to Collection Page 14"]
[null,"Item","Description",{"$nulls":7},"Unit","Qty","Supply & Deliver Rate","Install Rate"," Amount"]
[null,null,"CONTACTORS"]
[null,null,"Supply, deliver and install contactors in existing or new"]
[null,null,"panels and switchboards. The contactors shall comply to IEC158-1"]
[null,null,"The contactors shall be complete with all necessary accessories"]
[null,null,"required for the works."]
[null,null,"The switch disconnectors shall be as per Lovato Electric or equal"]
[null,null,"approved"]
[null,null,"SINGLE PHASE, 240V, 50Hz"]
["C",{"$f":"B232+1","v":116},"20A to 60A",{"$nulls":7},"No",{"$f":"$R$1*5","v":50}]
["C",{"$f":"B244+1","v":117},"Auxillary contacts compatible with above contactors",{"$nulls":7},"No",50]
[null,null,"THREE PHASE, 240V, 50Hz"]
["C",{"$f":"B245+1","v":118},"20A to 60A",{"$nulls":7},"No",{"$f":"$R$1*5","v":50}]
["C",{"$f":"B247+1","v":119},"Auxillary contacts compatible with above contactors",{"$nulls":7},"No",50]
[null,null,"110V DC, three pole"]
["C",{"$f":"B248+1","v":120},"4kW",{"$nulls":7},"No",{"$f":"$R$1*5","v":50}]
["C",{"$f":"B250+1","v":121},"7.5kW",{"$nulls":7},"No",50]
[]
[null,null,"EARTH LEAKAGE UNIT"]
[null,null,"Supply, deliver and install earth leakage units in existing or new"]
[null,null,"panels and switchboards. The ELU shall comply to SANS 767 "]
[null,null,"and bear the SANS mark. The unit shall be complete with all"]
[null,null,"fixing accessories required for the works."]
[null,null,"The ELU shall have a sensitivity of 30mA and shall be "]
[null,null,"complete with overload protection."]
[null,null,"3KA, DUAL MOUNT: HYDRAULIC MAGNETIC TYPE"]
[null,null,"SINGLE PHASE, 240V, 50Hz"]
[null,null,"CBI or equal approved"]
["C",{"$f":"B251+1","v":122},"30A Earth Leakage Unit with overload",{"$nulls":7},"No",{"$f":"$R$1*5","v":50}]
["C",{"$f":"B263+1","v":123},"40A Earth Leakage Unit with overload",{"$nulls":7},"No",50]
["C",{"$f":"B264+1","v":124},"60A Earth Leakage Unit with overload",{"$nulls":7},"No",50]
[null,null,"Merlin Gerin or equal approved"]
["C",{"$f":"B265+1","v":125},"30A Earth Leakage Unit with overload",{"$nulls":7},"No",{"$f":"$R$1*5","v":50}]
["C",{"$f":"B267+1","v":126},"40A Earth Leakage Unit with overload",{"$nulls":7},"No",50]
["C",{"$f":"B268+1","v":127},"60A Earth Leakage Unit with overload",{"$nulls":7},"No",50]
[null,null,"THREE PHASE, 400V, 50Hz"]
[null,null,"CBI or equal approved"]
["C",{"$f":"B269+1","v":128},"30A Earth Leakage Unit with overload",{"$nulls":7},"No",{"$f":"$R$1*5","v":50}]
["C",{"$f":"B272+1","v":129},"40A Earth Leakage Unit with overload",{"$nulls":7},"No",50]
["C",{"$f":"B273+1","v":130},"60A Earth Leakage Unit with overload",{"$nulls":7},"No",50]
[]
[null,null,"Carried to Collection Page 14"]
[null,"Item","Description",{"$nulls":7},"Unit","Qty","Supply & Deliver Rate","Install Rate"," Amount"]
[null,null,"Merlin Gerin or equal approved"]
["C",{"$f":"B274+1","v":131},"30A Earth Leakage Unit with overload",{"$nulls":7},"No",{"$f":"$R$1*5","v":50}]
["C",{"$f":"B279+1","v":132},"40A Earth Leakage Unit with overload",{"$nulls":7},"No",50]
[null,{"$f":"B280+1","v":133},"60A Earth Leakage Unit with overload",{"$nulls":7},"No",50]
[null,null,"6KA, DUAL MOUNT: HYDRAULIC MAGNETIC TYPE"]
[null,null,"SINGLE PHASE, 240V, 50Hz"]
[null,null,"CBI or equal approved"]
["C",{"$f":"B281+1","v":134},"30A Earth Leakage Unit with overload",{"$nulls":7},"No",{"$f":"$R$1*5","v":50}]
["C",{"$f":"B285+1","v":135},"40A Earth Leakage Unit with overload",{"$nulls":7},"No",50]
[null,{"$f":"B286+1","v":136},"60A Earth Leakage Unit with overload",{"$nulls":7},"No",50]
[null,null,"Merlin Gerin or equal approved"]
["C",{"$f":"B287+1","v":137},"30A Earth Leakage Unit with overload",{"$nulls":7},"No",{"$f":"$R$1*5","v":50}]
["C",{"$f":"B289+1","v":138},"40A Earth Leakage Unit with overload",{"$nulls":7},"No",50]
["C",{"$f":"B290+1","v":139},"60A Earth Leakage Unit with overload",{"$nulls":7},"No",50]
[null,null,"THREE PHASE, 400V, 50Hz"]
[null,null,"CBI or equal approved"]
["C",{"$f":"B291+1","v":140},"30A Earth Leakage Unit with overload",{"$nulls":7},"No",{"$f":"$R$1*5","v":50}]
["C",{"$f":"B294+1","v":141},"40A Earth Leakage Unit with overload",{"$nulls":7},"No",50]
["C",{"$f":"B295+1","v":142},"60A Earth Leakage Unit with overload",{"$nulls":7},"No",50]
[null,null,"Merlin Gerin or equal approved"]
["C",{"$f":"B296+1","v":143},"30A Earth Leakage Unit with overload",{"$nulls":7},"No",{"$f":"$R$1*5","v":50}]
["C",{"$f":"B298+1","v":144},"40A Earth Leakage Unit with overload",{"$nulls":7},"No",50]
["C",{"$f":"B299+1","v":145},"60A Earth Leakage Unit with overload",{"$nulls":7},"No",50]
[null,null,"6KA, DUAL MOUNT: THERMAL MAGNETIC TYPE"]
[null,null,"SINGLE PHASE, 240V, 50Hz"]
[null,null,"CBI or equal approved"]
["C",{"$f":"B300+1","v":146},"30A Earth Leakage Unit with overload",{"$nulls":7},"No",{"$f":"$R$1*5","v":50}]
["C",{"$f":"B304+1","v":147},"40A Earth Leakage Unit with overload",{"$nulls":7},"No",50]
["C",{"$f":"B305+1","v":148},"60A Earth Leakage Unit with overload",{"$nulls":7},"No",50]
[null,null,"Merlin Gerin or equal approved"]
["C",{"$f":"B306+1","v":149},"30A Earth Leakage Unit with overload",{"$nulls":7},"No",{"$f":"$R$1*5","v":50}]
["C",{"$f":"B308+1","v":150},"40A Earth Leakage Unit with overload",{"$nulls":7},"No",50]
["C",{"$f":"B309+1","v":151},"60A Earth Leakage Unit with overload",{"$nulls":7},"No",50]
[]
[null,null,"Carried to Collection Page 14"]
[null,"Item","Description",{"$nulls":7},"Unit","Qty","Supply & Deliver Rate","Install Rate"," Amount"]
[null,null,"THREE PHASE, 400V, 50Hz"]
[null,null,"CBI or equal approved"]
["C",{"$f":"B310+1","v":152},"30A Earth Leakage Unit with overload",{"$nulls":7},"No",{"$f":"$R$1*5","v":50}]
["C",{"$f":"B316+1","v":153},"40A Earth Leakage Unit with overload",{"$nulls":7},"No",50]
["C",{"$f":"B317+1","v":154},"60A Earth Leakage Unit with overload",{"$nulls":7},"No",50]
[null,null,"Merlin Gerin or equal approved"]
["C",{"$f":"B318+1","v":155},"30A Earth Leakage Unit with overload",{"$nulls":7},"No",{"$f":"$R$1*5","v":50}]
["C",{"$f":"B320+1","v":156},"40A Earth Leakage Unit with overload",{"$nulls":7},"No",50]
["C",{"$f":"B321+1","v":157},"60A Earth Leakage Unit with overload",{"$nulls":7},"No",50]
[null,null,"RAIL MOUNT METERS"]
[null,null,"Supply, deliver and install rail mount meters(Class 1) in existing "]
[null,null,"or new panels and switchboards. The meter shall comply to "]
[null,null,"IEC 61036. The unit shall be complete with all fixing"]
[null,null,"accessories required for the works."]
[null,null,"The meters shall be as CBI or equal approved."]
[null,null,"SINGLE PHASE, 240V, 50Hz"]
["C",{"$f":"B322+1","v":158},"Ecolec Rail Mount Meter: EC320CM",{"$nulls":7},"No",{"$f":"$R$1*1","v":10}]
["C",{"$f":"B330+1","v":159},"Ecolec Rail Mount Meter: EC320CD",{"$nulls":7},"No",10]
[null,null,"THREE PHASE, 400V, 50Hz"]
["C",{"$f":"B331+1","v":160},"Ecolec Rail Mount Meter: EC330CM",{"$nulls":7},"No",{"$f":"$R$1*1","v":10}]
["C",{"$f":"B333+1","v":161},"Ecolec Rail Mount Meter: EC330CD",{"$nulls":7},"No",10]
[null,null,"LV FUSES"]
[null,null,"Supply, deliver and install HRC fuses in existing "]
[null,null,"or new panels and switchboards. The fuses shall comply to "]
[null,null,"SANS 172 & 173. The unit shall be complete with all terminals,"]
[null,null,"lugs, holders and accessories required for the works."]
[null,null,"The fuses shall be as Siemens, Bussman or equal approved."]
["C",{"$f":"B334+1","v":162},"10A to 20A",{"$nulls":7},"No",{"$f":"$R$1*1","v":10}]
["C",{"$f":"B341+1","v":163},"25A to 40A",{"$nulls":7},"No",10]
["C",{"$f":"B342+1","v":164},"50A to 63A",{"$nulls":7},"No",10]
["C",{"$f":"B343+1","v":165},"100A to 250A",{"$nulls":7},"No",10]
[null,null,"Carried to Collection Page 14"]
[null,"Item","Description",{"$nulls":7},"Unit","Qty","Supply & Deliver Rate","Install Rate"," Amount"]
[null,null,"DISTRIBUTION BOARDS"]
[null,null,"Supply, deliver and install LV sheetmetal distribution boards. "]
[null,null,"The distribution boards shall comply to SANS 1765. "]
[null,null,"The boards shall be , Colour: White, sheet"]
[null,null,"steel 15/10 thick."]
[null,null,"The distribution boards shall be of the industrial/commerical "]
[null,null,"architrave boards type."]
[null,null,"The distribution boards shall be complete with front full sheet metal"]
[null,null,"hinged door, functional chassis, interior kits for circuit breakers "]
[null,null,"and modular products, full sized top and bottom gland plates,"]
[null,null,"blank covers, lockable door, adjustible DIN rail depth "]
[null,null,"facility/Samite, rear adjustment screws, earth/neutral terminals,"]
[null,null,"necessary fittings, fixtures and accessories for the works."]
[null,null,"SURFACE MOUNTED : SINGLE PHASE, 240V"]
["C",{"$f":"B344+1","v":166},"12 Way DB",{"$nulls":7},"No",{"$f":"$R$1*5","v":50}]
["C",{"$f":"B361+1","v":167},"18 Way DB",{"$nulls":7},"No",50]
["C",{"$f":"B362+1","v":168},"24 Way DB",{"$nulls":7},"No",50]
[null,null,"SURFACE MOUNTED : THREE PHASE, 400V"]
["C",{"$f":"B363+1","v":169},"12 Way DB",{"$nulls":7},"No",{"$f":"$R$1*5","v":50}]
["C",{"$f":"B365+1","v":170},"18 Way DB",{"$nulls":7},"No",50]
["C",{"$f":"B366+1","v":171},"24 Way DB",{"$nulls":7},"No",50]
[null,null,"FLUSH MOUNTED : SINGLE PHASE, 240V"]
["C",{"$f":"B367+1","v":172},"12 Way DB",{"$nulls":7},"No",{"$f":"$R$1*5","v":50}]
["C",{"$f":"B369+1","v":173},"18 Way DB",{"$nulls":7},"No",50]
["C",{"$f":"B370+1","v":174},"24 Way DB",{"$nulls":7},"No",50]
[null,null,"FLUSH MOUNTED : THREE PHASE, 400V"]
["C",{"$f":"B371+1","v":175},"12 Way DB",{"$nulls":7},"No",{"$f":"$R$1*5","v":50}]
["C",{"$f":"B373+1","v":176},"18 Way DB",{"$nulls":7},"No",50]
["C",{"$f":"B374+1","v":177},"24 Way DB",{"$nulls":7},"No",50]
[]
[null,null,"DISTRIBUTION BOARDS"]
[null,null,"Supply, deliver and install LV sheetmetal distribution boards. "]
[null,null,"The distribution boards shall comply to SANS 1765. "]
[null,null,"The boards shall be IP65."]
[null,null,"The distribution boards shall be of the industrial/commerical "]
[null,null,"architrave boards type."]
[null,null,"The distribution boards shall be complete with front full "]
[null,null,"hinged door, functional chassis, interior kits for circuit breakers "]
[null,null,"and modular products, full sized top and bottom gland plates,"]
[null,null,"blank covers, lockable door, adjustible DIN rail depth "]
[null,null,"facility/Samite, rear adjustment screws, earth/neutral terminals,"]
[null,null,"necessary fittings, fixtures and accessories for the works."]
[]
[null,null,"SURFACE MOUNTED : SINGLE PHASE, 240V"]
["C",{"$f":"B375+1","v":178},"12 Way DB",{"$nulls":7},"No",{"$f":"$R$1*5","v":50}]
["C",{"$f":"B391+1","v":179},"18 Way DB",{"$nulls":7},"No",50]
["C",{"$f":"B392+1","v":180},"24 Way DB",{"$nulls":7},"No",50]
[null,null,"Carried to Collection Page 14EE"]
[null,"Item","Description",{"$nulls":7},"Unit","Qty","Supply & Deliver Rate","Install Rate"," Amount"]
[]
[null,null,"SURFACE MOUNTED : THREE PHASE, 400V"]
["C",{"$f":"B393+1","v":181},"12 Way DB",{"$nulls":7},"No",{"$f":"$R$1*5","v":50}]
["C",{"$f":"B398+1","v":182},"18 Way DB",{"$nulls":7},"No",50]
["C",{"$f":"B399+1","v":183},"24 Way DB",{"$nulls":7},"No",50]
[]
[null,null,"AUXILIARY EQUIPMENT"]
["C",{"$f":"B400+1","v":184},"Distribution Board Blank covers",{"$nulls":7},"No",{"$f":"$R$1*5","v":50}]
["C",{"$f":"B403+1","v":185},"DIN Rail",{"$nulls":7},"m",50]
[]
[null,null,"ELECTRICAL READY BOARDS"]
[null,null,"Supply, deliver and install LV electrical ready boards. "]
[null,null,"The ready boards shall consist of the following switchgear and "]
[null,null,"fittings: 1 x QA 17C 63A, 2 x QA-1 13mm 20A, 1 x Switched"]
[null,null,"Bulkhead, 3 x 16A Switched Sockets, 1 x 6A Euro Socket"]
[null,null,"The board shall be compatible with prepayment meters, "]
[null,null,"knockouts for additional circuit breakers and/or auxiliary products"]
[null,null,"as well as 15 access points for conduit or twin and earth wire."]
[null,null,"Switches (light and socket outlets) shall have a glow-in-dark"]
[null,null,"fluorescent insert."]
[null,null,"The unit shall comply with national specifcations."]
[null,null,"The unit shall be as per CBI or equal approved."]
["C",{"$f":"B404+1","v":186},"Readyboard NRBCON003 with CFL version including 18W"]
[null,null,"lamp",{"$nulls":7},"No",{"$f":"$R$1*1","v":10}]
[]
[null,null,"ELECTRONIC TIMER SWITCHES "]
[null,null,"Supply, deliver and install electronic timer switches into existing  "]
[null,null,"or new distribution boards."]
[null,null,"The programmable time switch to be suitable for use to"]
[null,null,"automatically control pool pumps, lights, geysers, etc."]
[null,null,"The unit shall have a LCD touch screen allow simple settings of"]
[null,null,"time and programs, mulitple on/off programs, 15min segments,"]
[null,null,"graphical display on home screen of 24hr display, dual mount,"]
[null,null,"backup reserve power for 12hr display and 24hr timekeeping and"]
[null,null,"a bypass capability."]
[null,null,"The unit shall be as per CBI or equal approved."]
["C",{"$f":"B418+1","v":187},"QAT-TRDM",{"$nulls":7},"No",{"$f":"$R$1*5","v":50}]
[null,null,"PHOTO ELECTRONIC CONTROLS"]
[null,null,"Supply, deliver and install photo electronic sensors on sites to"]
[null,null,"control lighting and/or power circuits."]
[null,null,"The unit shall have a rating of 250V , 50Hz, 1800VA, IP65,"]
[null,null,"thermal switching, plug in Nema twist lock type, nema base"]
["C",{"$f":"B432+1","v":188},"Royce Thompson: V1SSWDAYLITE/P3HDl",{"$nulls":7},"No",{"$f":"$R$1*5","v":50}]
["C",{"$f":"B438+1","v":189},"National: NS416: Code: V1SSWD/LITENS416",{"$nulls":7},"No",50]
["C",{"$f":"B439+1","v":190},"National: NS116: Code: V1SSWD/LITENS116",{"$nulls":7},"No",50]
[]
[]
[null,null,"Carried to Collection Page 14"]
[null,"Item","Description",{"$nulls":11}," Amount"]
[null,null,"ELECTRICAL WORKS"]
[null,null,"BILL OF QUANTITIES: BILL NO 3 OF 19"]
[null,null,"COLLECTION"]
[null,null,"CIRCUIT BREAKERS, SWITCHGEAR,"]
[null,null,"DISTRIBUTION BOARD & ASSOCIATED EQUIPMENT "]
[]
[null,null,"Page 3 "]
[null,null,"Page 4 "]
[null,null,"Page 5 "]
[null,null,"Page 6 "]
[null,null,"Page 7 "]
[null,null,"Page 8 "]
[null,null,"Page 9 "]
[null,null,"Page 10 "]
[null,null,"Page 11 "]
[null,null,"Page 12 "]
[null,null,"Page 13 "]
{"$rows_empty":22}
[null,null,"TOTAL CARRIED TO BILL SUMMARY Page"]

{"sheet":"BILL04","index":4,"n_rows":102,"n_cols":22,"rows_kept":102,"merged":[[0,1,0,14],[1,2,1,9],[6,2,6,9],[38,2,38,9],[75,2,75,9],[79,2,79,9],[81,2,81,9],[100,2,100,9]]}
[{"$nulls":15},{"v":1.077,"d":"107.70%"},null,{"v":10,"d":"1000%"},{"$nulls":3},{"v":1.5,"d":"150.00%"}]
[null,"Item","Description",{"$nulls":7},"Unit","Qty","Supply & Deliver Rate","Install Rate"," Amount"]
[]
[null,null,"ELECTRICAL WORKS"]
["D",null,"BILL OF QUANTITIES: BILL NO 4 OF 19"]
[]
[null,null,"CABLE TRENCHING"]
[null,null,"EXCAVATIONS: TRENCHING & BACKFILLING"]
[null,null,"All prices below shall include the excavation of trenches and holes,"]
[null,null,"separating of stones, ground and rock, leveling of trench bed,"]
[null,null,"refill compacting and reparation of all surfaces to their original"]
[null,null,"finish."]
[null,null,"Trenching shall be calculated using the formula below:"]
[null,null,"(1m3 =  a trench of 600mm deep * 420mm wide * 4m length)"]
[null,null,"(1m3 =  4m linear of trenching)"]
["D",1,"Excavate and backfilling in soft ground(pickable material)",{"$nulls":7},"m³",{"$f":"$R$1*50","v":500}]
["D",{"$f":"B16+1","v":2},"Excavate and backfilling in soft rock",{"$nulls":7},"m³",{"$f":"$R$1*50","v":500}]
["D",{"$f":"B17+1","v":3},"Excavate and backfilling in hard rock",{"$nulls":7},"m³",{"$f":"$R$1*50","v":500}]
["D",{"$f":"B18+1","v":4},"Excavating for cable road crossing and placing 4 x "]
[null,null,"110m sleeves across road way.",{"$nulls":7},"m³",{"$f":"$R$1*50","v":500}]
["D",{"$f":"B19+1","v":5},"Backfilling road crossing and reinstating road "]
[null,null,"surface and compaction as before.",{"$nulls":7},"m³",{"$f":"$R$1*50","v":500}]
["D",{"$f":"B21+1","v":6},"Provide sand or stone-free ground complete with handling cost",{"$nulls":7},"m³",{"$f":"$R$1*50","v":500}]
["D",{"$f":"B23+1","v":7},"Compaction of all electrical and telecoms sleeve trenches"]
[null,null,"under hardended surfaces to 95% MOD AASHTO",{"$nulls":7},"m³",{"$f":"$R$1*50","v":500}]
["D",{"$f":"B24+1","v":8},"Remove all waste material complete with handling cost",{"$nulls":7},"m³",50]
[]
[null,null,"CABLE MARKERS"]
["D",{"$f":"B26+1","v":9},"Electrical reinforced concrete cable route marker with inscription as per"]
[null,null,"engineers detail. Dimension: Height: 265mm, Depth: 750mm, "]
[null,null,"Weight: 19.5kg",{"$nulls":7},"No",{"$f":"$R$1*5","v":50}]
[]
[]
[]
[]
[]
[]
[null,null,"Carried to Collection Page 17"]
[null,"Item","Description",{"$nulls":7},"Unit","Qty","Supply & Deliver Rate","Install Rate","Amount"]
[]
["D",10,"Electrical concrete cable route marker with inscription as per"]
[null,null,"engineers detail. Dimension: Height: 250mm, Width: 250mm,"]
[null,null,"Depth: 250mm",{"$nulls":7},"No",{"$f":"$R$1*5","v":50}]
["D",{"$f":"B41+1","v":11},"Electrical concrete cable route marker with inscription as per"]
[null,null,"engineers detail. Dimension: Height: 305mm, Width: 305mm,"]
[null,null,"Depth: 152mm, including 101x76mm lead insert for inscription",{"$nulls":7},"No",{"$f":"$R$1*5","v":50}]
[]
[null,null,"CABLE DANGER TAPE"]
[]
["D",{"$f":"B44+1","v":12},"Electrical buried danger tape in compliance with OSHA 1910.144 "]
[null,null,"for marking physical hazards."]
[null,null,"The tape shall be lightweight and of high visibility safety yellow"]
[null,null,"polyethylene (plastic) with bold black letters(2 inch height)."]
[null,null,"The tape shall be 76mm wide and 0.102mm thick."]
[null,null,"The cable warning/danger tape shall be placed 150mm "]
[null,null,"above the cables in excavations. ",{"$nulls":7},"m",{"$f":"$R$1*1000","v":10000}]
[null,null,"MANHOLES"]
[]
["D",{"$f":"B50+1","v":13},"Electrical manhole 1200x1200x790mm deep with 230mm"]
[null,null,"brick surround, 150mm concrete base and complete with 6mm"]
[null,null,"flush chequer plate and 150mm concrete base. As per"]
[null,null,"Ethewini Electricity: Manhole specifications for cable circuits"]
[null,null,"where there are hardened surfaces. Drawing: SS_Manholes",{"$nulls":7},"Item",{"$f":"$R$1*5","v":50}]
[]
["D",14,"Electrical manhole 1200x1200x790mm deep with 230mm"]
[null,null,"brick surround, 150mm concrete base and complete with heavy "]
[null,null,"duty polymer plate and 150mm concrete base. As per"]
[null,null,"Ethewini Electricity: Manhole specifications for cable circuits"]
[null,null,"where there are hardened surfaces. Drawing: SS_Manholes",{"$nulls":7},"Item",{"$f":"$R$1*5","v":50}]
[]
[]
[]
[]
[]
[null,null,"Carried to Collection Page 17EE"]
[null,"Item","Description",{"$nulls":11}," Amount"]
[]
[null,null,"ELECTRICAL WORKS"]
[null,null,"BILL OF QUANTITIES: BILL NO 4 OF 19"]
[null,null,"COLLECTION"]
[]
[null,null,"CABLE TRENCHING"]
[]
[null,null,"Page 15 "]
[null,null,"Page 16 "]
{"$rows_empty":15}
[null,null,"CABLE TRENCHING"]
[null,null,"TOTAL CARRIED TO BILL SUMMARY Page"]

{"sheet":"BILL05","index":5,"n_rows":254,"n_cols":18,"rows_kept":254}
[{"$nulls":15},{"v":1.077,"d":"107.70%"},null,{"v":10,"d":"1000%"}]
[null,"Item","Description",{"$nulls":7},"Unit","Qty","Supply & Deliver Rate","Install Rate"," Amount"]
[]
[null,null,"ELECTRICAL WORKS"]
["E",null,"BILL OF QUANTITIES: BILL NO 5 OF 19"]
[null,null,"CABLE RETICULATION"]
[]
[null,null,"LOW VOLTAGE CABLING"]
[null,null,"Supply, deliver and install low voltage(600/1000V), PVC"]
[null,null,"insulated, PVC bedded SWA, PVC sheathed, ECC stranded "]
[null,null,"copper conductor cables."]
[null,null,"Checking of cable and overhead conductor lengths. "]
[null,null,"The Contractor shall check such lengths on site before ordering "]
[null,null,"the cable as he will not be paid for excess cable after the completion"]
[null,null,"of the service. Any allowance for off-cuts shall be made in the unit"]
[null,null,"rates. The final measurements shall be based on the net route length"]
[null,null,"of cables and overhead lines concerned, installed in accordance"]
[null,null,"with the requirements. However, the onus is on the Contractor to"]
[null,null,"prove compliance with the specification."]
[null,null,"The cabling shall be installed either in excavations, cable trays, "]
[null,null,"trunking, wireways, ground, sleeves, ducts, etc(measured"]
[null,null,"elsewhere) and shall include all necessary fittings, fixtures and"]
[null,null,"accessories required for the works."]
[null,null,"The cables shall be as per Abedare Cables or equal approved."]
[]
[null,null,"TWO CORE"]
["E",1,"1.5mm2",{"$nulls":7},"m",{"$f":"$R$1*200","v":2000}]
["E",{"$f":"B27+1","v":2},"2.5mm2",{"$nulls":7},"m",{"$f":"$R$1*200","v":2000}]
["E",3,"4mm2",{"$nulls":7},"m",{"$f":"$R$1*50","v":500}]
["E",4,"6mm2",{"$nulls":7},"m",{"$f":"$R$1*30","v":300}]
["E",5,"10mm2",{"$nulls":7},"m",{"$f":"$R$1*30","v":300}]
["E",6,"16mm2",{"$nulls":7},"m",{"$f":"$R$1*30","v":300}]
["E",7,"25mm2",{"$nulls":7},"m",{"$f":"$R$1*30","v":300}]
[]
[null,null,"THREE CORE"]
["E",{"$f":"B33+1","v":8},"1.5mm2",{"$nulls":7},"m",{"$f":"$R$1*200","v":2000}]
["E",{"$f":"B36+1","v":9},"2.5mm2",{"$nulls":7},"m",{"$f":"$R$1*200","v":2000}]
["E",10,"4mm2",{"$nulls":7},"m",{"$f":"$R$1*50","v":500}]
[]
[null,null,"Carried to Collection Page 23 EE"]
[null,"Item","Description",{"$nulls":7},"Unit","Qty","Supply & Deliver Rate","Install Rate","Amount"]
["E",{"$f":"B38+1","v":11},"6mm2",{"$nulls":7},"m",{"$f":"$R$1*30","v":300}]
["E",12,"10mm2",{"$nulls":7},"m",{"$f":"$R$1*30","v":300}]
["E",13,"16mm2",{"$nulls":7},"m",{"$f":"$R$1*30","v":300}]
["E",14,"25mm2",{"$nulls":7},"m",{"$f":"$R$1*30","v":300}]
[]
[null,null,"AIRDAC: THREE CORE"]
["E",{"$f":"B45+1","v":15},"10mm2",{"$nulls":7},"m",{"$f":"$R$1*50","v":500}]
["E",{"$f":"B48+1","v":16},"16mm2",{"$nulls":7},"m",100]
[]
[null,null,"FOUR CORE"]
["E",{"$f":"B49+1","v":17},"1.5mm2",{"$nulls":7},"m",{"$f":"$R$1*200","v":2000}]
["E",{"$f":"B52+1","v":18},"2.5mm2",{"$nulls":7},"m",{"$f":"$R$1*200","v":2000}]
["E",19,"4mm2",{"$nulls":7},"m",{"$f":"$R$1*50","v":500}]
["E",20,"6mm2",{"$nulls":7},"m",{"$f":"$R$1*30","v":300}]
["E",21,"10mm2",{"$nulls":7},"m",300]
["E",22,"16mm2",{"$nulls":7},"m",300]
["E",23,"25mm2",{"$nulls":7},"m",300]
["E",24,"35mm2",{"$nulls":7},"m",300]
["E",25,"50mm2",{"$nulls":7},"m",300]
["E",26,"70mm2",{"$nulls":7},"m",{"$f":"$R$1*1","v":10}]
["E",27,"95mm2",{"$nulls":7},"m",{"$f":"$R$1*1","v":10}]
["E",28,"120mm2",{"$nulls":7},"m",10]
["E",29,"150mm2",{"$nulls":7},"m",10]
["E",30,"185mm2",{"$nulls":7},"m",10]
[]
[null,null,"LOW VOLTAGE CABLE TERMINATIONS"]
[null,null,"Supply, deliver and install low voltage(600/1000V), PVC"]
[null,null,"insulated, PVC bedded SWA, PVC sheathed, ECC stranded "]
[null,null,"copper conductor cable terminations."]
[null,null,"The terminations shall be for the referred cables specified and shall"]
[null,null,"include for all shrouds, glands, lugs, connections, fittings, fixtures"]
[null,null,"and accessories for the terminations in terms of the relevant "]
[null,null,"SANS guidelines."]
[]
[null,null,"TWO CORE"]
["E",{"$f":"B65+1","v":31},"1.5mm2",{"$nulls":7},"No",{"$f":"$R$1*50","v":500}]
["E",{"$f":"B77+1","v":32},"2.5mm2",{"$nulls":7},"No",{"$f":"$R$1*50","v":500}]
["E",33,"4mm2",{"$nulls":7},"No",500]
["E",34,"6mm2",{"$nulls":7},"No",500]
["E",35,"10mm2",{"$nulls":7},"No",100]
[]
[null,null,"Carried to Collection Page 23 EE"]
[null,"Item","Description",{"$nulls":7},"Unit","Qty","Supply & Deliver Rate","Install Rate","Amount"]
["E",{"$f":"B81+1","v":36},"16mm2",{"$nulls":7},"No",{"$f":"$R$1*200","v":2000}]
["E",37,"25mm2",{"$nulls":7},"No",{"$f":"$R$1*50","v":500}]
[]
[null,null,"THREE CORE"]
["E",{"$f":"B86+1","v":38},"1.5mm2",{"$nulls":7},"No",{"$f":"$R$1*50","v":500}]
["E",{"$f":"B89+1","v":39},"2.5mm2",{"$nulls":7},"No",500]
["E",40,"4mm2",{"$nulls":7},"No",500]
["E",41,"6mm2",{"$nulls":7},"No",500]
["E",42,"10mm2",{"$nulls":7},"No",500]
["E",43,"16mm2",{"$nulls":7},"No",500]
["E",44,"25mm2",{"$nulls":7},"No",20]
[]
[null,null,"AIRDAC: THREE CORE"]
["E",{"$f":"B95+1","v":45},"10mm2",{"$nulls":7},"No",{"$f":"$R$1*50","v":500}]
["E",{"$f":"B98+1","v":46},"16mm2",{"$nulls":7},"No",500]
[]
[null,null,"FOUR CORE"]
["E",{"$f":"B99+1","v":47},"1.5mm2",{"$nulls":7},"No",{"$f":"$R$1*30","v":300}]
["E",{"$f":"B102+1","v":48},"2.5mm2",{"$nulls":7},"No",{"$f":"$R$1*30","v":300}]
["E",49,"4mm2",{"$nulls":7},"No",{"$f":"$R$1*30","v":300}]
["E",50,"6mm2",{"$nulls":7},"No",{"$f":"$R$1*30","v":300}]
["E",51,"10mm2",{"$nulls":7},"No",200]
["E",52,"16mm2",{"$nulls":7},"No",200]
["E",53,"25mm2",{"$nulls":7},"No",{"$f":"$R$1*20","v":200}]
["E",54,"35mm2",{"$nulls":7},"No",{"$f":"$R$1*10","v":100}]
["E",55,"50mm2",{"$nulls":7},"No",{"$f":"$R$1*10","v":100}]
["E",56,"70mm2",{"$nulls":7},"No",100]
["E",57,"95mm2",{"$nulls":7},"No",{"$f":"$R$1*1","v":10}]
["E",58,"120mm2",{"$nulls":7},"No",10]
["E",59,"150mm2",{"$nulls":7},"No",10]
["E",60,"185mm2",{"$nulls":7},"No",10]
[]
[null,null,"Aerial Bundle Conductor (ABC) Cable"]
[null,null,"Supply, deliver and install low voltage (600/1000V), XLPE"]
[null,null,"insulated, self supporting copper conductor cable."]
[null,null,"The terminations shall be for the referred cables specified and shall"]
[null,null,"include for all shrouds, glands, lugs, connections, fittings, fixtures"]
[null,null,"and accessories for the terminations in terms of SANS 1418"]
[null,null,"part 1 and part 2"]
[null,null,"The cables shall be as per Abedare Cables or equal approved."]
["E",{"$f":"B115+1","v":61},"25mm2",{"$nulls":7},"m",{"$f":"$R$1*10","v":100}]
["E",{"$f":"B125+1","v":62},"35mm2",{"$nulls":7},"m",100]
["E",{"$f":"B126+1","v":63},"50mm2",{"$nulls":7},"m",100]
["E",{"$f":"B127+1","v":64},"70mm2",{"$nulls":7},"m",100]
["E",{"$f":"B128+1","v":65},"95mm2",{"$nulls":7},"m",100]
{"$rows_empty":8}
[null,null,"Carried to Collection Page 23 EE"]
[null,"Item","Description",{"$nulls":7},"Unit","Qty","Supply & Deliver Rate","Install Rate","Amount"]
[]
[null,null,"LOW VOLTAGE CABLE JOINT KITS"]
[null,null,"Supply, deliver and install epoxy resin joint kits for low voltage"]
[null,null,"(600/1000V) copper insulated, PVC bedded SWA, PVC sheathed,"]
[null,null,"ECC stranded copper conductor cables."]
[null,null,"The cable joint kits shall be complete with all necessary fittings,"]
[null,null,"fixtures and accessories required for the works."]
[null,null,"The cable kit shall be IEC/SANS approved."]
[null,null,"The cable kit shall be as per 3M Scotchcast or equal approved"]
[null,null,"SIZES"]
[]
["E",{"$f":"B129+1","v":66},"4mm2 to 10mm2",{"$nulls":7},"No",{"$f":"$R$1*10","v":100}]
["E",{"$f":"B151+1","v":67},"10mm2 to 16mm2",{"$nulls":7},"No",100]
["E",68,"16mm2 to 35mm2",{"$nulls":7},"No",{"$f":"$R$1*1","v":10}]
["E",69,"35mm2 to 50mm2",{"$nulls":7},"No",10]
["E",70,"50mm2 to 95mm2",{"$nulls":7},"No",10]
["E",71,"120mm2 to 150mm2",{"$nulls":7},"No",10]
["E",72,"150mm2 to 240mm2",{"$nulls":7},"No",10]
[]
[null,null,"JUNCTION BOXES: NORMAL APPLICATIONS"]
[null,null,"Supply, deliver and install junction boxes:normal applications"]
[null,null,"for low voltage(600/1000V), PVC/SWA/PVC copper cables."]
[null,null,"The junction boxes shall be complete with all necessary, fittings,"]
[null,null,"fixtures, compression glands, connectors, clamps, blanking plugs, "]
[null,null,"accessories, etc to complete the works."]
[null,null,"The junction boxes shall be as Pratley or equal approved."]
["E",{"$f":"B157+1","v":73},"Enviro Junction box - Rectangular standard hinged cover",{"$nulls":7},"No",{"$f":"$R$1*1","v":10}]
["E",{"$f":"B166+1","v":74},"Bottom entry Junction box - standard - for armoured or"]
[null,null,"unarmoured cable. Size 1 - Polycarbonate lid",{"$nulls":7},"No",{"$f":"$R$1*1","v":10}]
["E",{"$f":"B167+1","v":75},"Bottom entry Junction box - standard - for armoured or"]
[null,null,"unarmoured cable. Size 2 - Polycarbonate lid",{"$nulls":7},"No",{"$f":"$R$1*1","v":10}]
["E",{"$f":"B169+1","v":76},"Encono Junction box - No 1",{"$nulls":7},"No",10]
["E",{"$f":"B171+1","v":77},"Eeze fit - Instrumentation - Junction Box - 0 - standard"]
[null,null,"for unarmoured cable. Polycarbonate lid",{"$nulls":7},"No",{"$f":"$R$1*1","v":10}]
["E",{"$f":"B172+1","v":78},"Klik-Lok Junction Box (Standard) - for unarmoured or"]
[null,null,"armoured cable. Polycarbonate lid",{"$nulls":7},"No",{"$f":"$R$1*1","v":10}]
["E",{"$f":"B174+1","v":79},"Zed Junction box - No 0",{"$nulls":7},"No",10]
[]
[]
[]
[]
[]
[null,null,"Carried to Collection Page 23"]
[null,"Item","Description",{"$nulls":7},"Unit","Qty","Supply & Deliver Rate","Install Rate","Amount"]
[]
[null,null,"HIGH DENSITY POLYETHYLENE CABLE SLEEVES"]
[null,null,"Supply, deliver and install underground HDPE cable sleeves"]
[null,null,"for low voltage(600/1000V), PVC/SWA/PVC copper cables."]
[null,null,"The sleeve shall carry the SANS certification mark in respect of"]
[null,null,"South African National Standard SANS 61386-24 : 2005"]
[null,null,"(type N 450)."]
[null,null,"The sleeves shall be complete with all necessary couplers, seals,"]
[null,null,"plugs, rings, bell mouths, spacer modules, brushes, etc required "]
[null,null,"to complete the works."]
[null,null,"The sleeve shall be as per Kabelflex or equal approved."]
["E",{"$f":"B176+1","v":80},"50mm diameter",{"$nulls":7},"m",{"$f":"$R$1*1","v":10}]
["E",{"$f":"B195+1","v":81},"110mm diameter",{"$nulls":7},"m",{"$f":"$R$1*1","v":10}]
{"$rows_empty":27}
[null,null,"Carried to Collection Page 23 "]
[null,"Item","Description",{"$nulls":11},"Amount"]
[]
[null,null,"ELECTRICAL WORKS"]
[null,null,"BILL OF QUANTITIES: BILL NO 5 OF 19"]
[]
[null,null,"COLLECTION"]
[null,null,"CABLE RETICULATION"]
[]
[null,null,"Page 18 "]
[null,null,"Page 19 "]
[null,null,"Page 20 "]
[null,null,"Page 21 "]
[null,null,"Page 22 "]
{"$rows_empty":16}
[null,null,"TOTAL CARRIED TO BILL SUMMARY Page 92 EE"]

{"sheet":"BILL06","index":6,"n_rows":227,"n_cols":18,"rows_kept":227}
[{"$nulls":15},{"v":1.077,"d":"107.70%"},null,{"v":10,"d":"1000%"}]
[null,"Item","Description",{"$nulls":7},"Unit","Qty","Supply & Deliver Rate","Install Rate","Amount"]
[null,null,"ELECTRICAL WORKS"]
[null,null,"BILL OF QUANTITIES: BILL NO 6 OF 19"]
[null,null,"WIREWAYS & ACCESSORIES"]
["F",null,"PVC CONDUIT"]
[null,null,"The supply and installation of PVC conduit, prices to include for"]
[null,null,"couplings, saddles, adaptors, spacers, lids, conduit boxes and"]
[null,null,"all bending, gluing and other necessary material."]
[null,null,"The conduit shall be installed in concrete, walls, ground, "]
[null,null,"brickwork,  roof spaces, against trusses, etc and shall include for "]
[null,null,"all against trusses, etc and shall include for all necessary fittings,"]
[null,null,"fixtures and accessories to complete the installation."]
[null,null,"The conduit shall comply to SANS 950."]
[null,null,"Chased into brickwork"]
["F",1,"20mm diameter",{"$nulls":7},"m",{"$f":"$R$1*100","v":1000}]
["F",{"$f":"B16+1","v":2},"25mm diameter",{"$nulls":7},"m",{"$f":"$R$1*100","v":1000}]
["F",{"$f":"B17+1","v":3},"32mm diameter",{"$nulls":7},"m",{"$f":"$R$1*5","v":50}]
["F",{"$f":"B18+1","v":4},"50mm diameter",{"$nulls":7},"m",{"$f":"$R$1*5","v":50}]
[]
[null,null,"Chased into concrete"]
["F",{"$f":"B19+1","v":5},"20mm diameter",{"$nulls":7},"m",{"$f":"$R$1*100","v":1000}]
["F",{"$f":"B22+1","v":6},"25mm diameter",{"$nulls":7},"m",1000]
["F",{"$f":"B23+1","v":7},"32mm diameter",{"$nulls":7},"m",{"$f":"$R$1*5","v":50}]
["F",{"$f":"B24+1","v":8},"50mm diameter",{"$nulls":7},"m",50]
[]
[null,null,"Cast into concrete"]
["F",{"$f":"B25+1","v":9},"20mm diameter",{"$nulls":7},"m",50]
["F",{"$f":"B28+1","v":10},"25mm diameter",{"$nulls":7},"m",50]
["F",{"$f":"B29+1","v":11},"32mm diameter",{"$nulls":7},"m",{"$f":"$R$1*5","v":50}]
["F",{"$f":"B30+1","v":12},"50mm diameter",{"$nulls":7},"m",50]
["F",{"$f":"B31+1","v":13},"100mm diameter sleeve",{"$nulls":7},"m",50]
[]
[null,null,"Fixed on surface"]
["F",{"$f":"B32+1","v":14},"20mm diameter",{"$nulls":7},"m",300]
["F",{"$f":"B35+1","v":15},"25mm diameter",{"$nulls":7},"m",200]
["F",{"$f":"B36+1","v":16},"32mm diameter",{"$nulls":7},"m",10]
["F",{"$f":"B37+1","v":17},"50mm diameter",{"$nulls":7},"m",10]
[]
[null,null,"Carried to Collection Page 29 EE"]
[null,"Item","Description",{"$nulls":7},"Unit","Qty","Supply & Deliver Rate","Install Rate","Amount"]
[null,null,"GALVANISED STEEL CONDUIT: BOSAL"]
[null,null,"The supply and installation of galvanised steel conduit, prices "]
[null,null,"to include for couplings, saddles, adaptors, spacers, lids, conduit"]
[null,null,"boxes and all bending, gluing and other necessary material."]
[null,null,"The conduit shall be installed in concrete, walls, ground, "]
[null,null,"brickwork, roof spaces, against trusses, etc and shall include for all "]
[null,null,"against trusses, etc and shall include for all necessary fittings,"]
[null,null,"fixtures and accessories to complete the installation."]
[null,null,"The conduit shall comply to SANS 1065 Parts 1 & 2."]
[null,null,"Fixed on surface"]
["F",{"$f":"B38+1","v":18},"20mm diameter",{"$nulls":7},"m",{"$f":"$R$1*50","v":500}]
["F",{"$f":"B52+1","v":19},"25mm diameter",{"$nulls":7},"m",{"$f":"$R$1*50","v":500}]
["F",{"$f":"B53+1","v":20},"32mm diameter",{"$nulls":7},"m",10]
["F",{"$f":"B54+1","v":21},"50mm diameter",{"$nulls":7},"m",10]
[]
[null,null,"CONDUIT ACCESSORIES"]
[null,null,"The supply and installation of conduit accessories for PVC "]
[null,null,"and galvanised steel conduit(Bosal). "]
[null,null,"The conduit accessories shall be fitted as per installation "]
[null,null,"details for the conduit."]
[null,null,"The accessories shall be complete with all screws, adaptors, etc"]
[null,null,"required to complete the installation."]
[null,null,"The conduit accessories shall comply to SANS 950."]
[]
[null,null,"EXTENSION BOXES"]
[null,null,"All extension boxes shall be of the galvanised steel type and"]
[null,null,"shall be of 1mm thickness. The boxes shall be suitable for "]
[null,null,"standard switches(lights and plugs) application."]
[null,null,"The boxes shall be in accordance with SANS 1085 and the"]
[null,null,"plates with SANS 1084"]
["F",{"$f":"B55+1","v":22},"100 x 100 x 50mm",{"$nulls":7},"No",{"$f":"$R$1*100","v":1000}]
["F",{"$f":"B72+1","v":23},"100 x 50 x 50mm",{"$nulls":7},"No",1000]
["F",{"$f":"B73+1","v":24},"100 x 100 x 75mm(back to back)",{"$nulls":7},"No",{"$f":"$R$1*50","v":500}]
["F",{"$f":"B74+1","v":25},"100 x 50 x 75mm(back to back)",{"$nulls":7},"No",500]
[]
[null,null,"PVC: CONDUIT BOXES"]
["F",{"$f":"B75+1","v":26},"One Way",{"$nulls":7},"No",100]
["F",{"$f":"B78+1","v":27},"Two Way",{"$nulls":7},"No",100]
["F",{"$f":"B79+1","v":28},"Three Way",{"$nulls":7},"No",{"$f":"$R$1*50","v":500}]
["F",{"$f":"B80+1","v":29},"Four Way",{"$nulls":7},"No",500]
[]
[null,null,"Carried to Collection Page 29 EE"]
[null,"Item","Description",{"$nulls":7},"Unit","Qty","Supply & Deliver Rate","Install Rate","Amount"]
[null,null,"FLEXIBLE CONDUIT"]
[null,null,"The supply and installation of flexible conduit accessories for PVC "]
[null,null,"and galvanised steel conduit(Bosal). The flexible conduit shall be"]
[null,null,"complete with all necessary connectors, fittings, fixtures and"]
[null,null,"accessories required for the complete works."]
[null,null,"The flexible conduit shall comply to SANS 950, SANS 1065"]
[null,null,"PVC: FLEXIBLE CONDUIT (SPRAGUE)"]
["F",{"$f":"B81+1","v":30},"20mm diameter",{"$nulls":7},"m",{"$f":"$R$1*15","v":150}]
["F",{"$f":"B92+1","v":31},"25mm diameter",{"$nulls":7},"m",{"$f":"$R$1*15","v":150}]
["F",{"$f":"B93+1","v":32},"32mm diameter",{"$nulls":7},"m",150]
["F",{"$f":"B94+1","v":33},"50mm diameter",{"$nulls":7},"m",150]
["F",{"$f":"B95+1","v":34},"75mm diameter",{"$nulls":7},"m",150]
[]
[null,null,"GALVANISED STEEL: FLEXIBLE CONDUIT (SPRAGUE)"]
["F",{"$f":"B96+1","v":35},"20mm diameter",{"$nulls":7},"m",{"$f":"$R$1*15","v":150}]
["F",{"$f":"B99+1","v":36},"25mm diameter",{"$nulls":7},"m",150]
["F",{"$f":"B100+1","v":37},"32mm diameter",{"$nulls":7},"m",150]
["F",{"$f":"B101+1","v":38},"50mm diameter",{"$nulls":7},"m",150]
["F",{"$f":"B102+1","v":39},"75mm diameter",{"$nulls":7},"m",150]
[]
[null,null,"GENERAL"]
[null,null,"The conduit accessories listed below shall be utilised for existing"]
[null,null,"installations. It shall be complete with all necessary screws, fittings,"]
[null,null,"fixtures and accessories to complete the works."]
[null,null,"PVC SADDLES"]
["F",{"$f":"B103+1","v":40},"20mm diameter",{"$nulls":7},"No",{"$f":"$R$1*100","v":1000}]
["F",{"$f":"B110+1","v":41},"25mm diameter",{"$nulls":7},"No",1000]
["F",{"$f":"B111+1","v":42},"32mm diameter",{"$nulls":7},"No",1000]
["F",{"$f":"B112+1","v":43},"50mm diameter",{"$nulls":7},"No",1000]
[]
[null,null,"PVC HOSPITAL SADDLES"]
["F",{"$f":"B113+1","v":44},"20mm diameter",{"$nulls":7},"No",{"$f":"$R$1*100","v":1000}]
["F",{"$f":"B116+1","v":45},"25mm diameter",{"$nulls":7},"No",1000]
["F",{"$f":"B117+1","v":46},"32mm diameter",{"$nulls":7},"No",1000]
["F",{"$f":"B118+1","v":47},"50mm diameter",{"$nulls":7},"No",1000]
[]
[null,null,"BOSAL SADDLES"]
["F",{"$f":"B119+1","v":48},"20mm diameter",{"$nulls":7},"No",{"$f":"$R$1*100","v":1000}]
["F",{"$f":"B122+1","v":49},"25mm diameter",{"$nulls":7},"No",1000]
["F",{"$f":"B123+1","v":50},"32mm diameter",{"$nulls":7},"No",1000]
["F",{"$f":"B124+1","v":51},"40mm diameter",{"$nulls":7},"No",1000]
[]
[null,null,"Carried to Collection Page 29 EE"]
[null,"Item","Description",{"$nulls":7},"Unit","Qty","Supply & Deliver Rate","Install Rate","Amount"]
[null,null,"BOSAL HOSPITAL SADDLES"]
["F",{"$f":"B125+1","v":52},"20mm diameter",{"$nulls":7},"No",{"$f":"$R$1*100","v":1000}]
["F",{"$f":"B130+1","v":53},"25mm diameter",{"$nulls":7},"No",1000]
["F",{"$f":"B131+1","v":54},"32mm diameter",{"$nulls":7},"No",1000]
["F",{"$f":"B132+1","v":55},"50mm diameter",{"$nulls":7},"No",1000]
[]
[null,null,"PVC COUPLINGS"]
["F",{"$f":"B133+1","v":56},"20mm diameter",{"$nulls":7},"No",{"$f":"$R$1*100","v":1000}]
["F",{"$f":"B136+1","v":57},"25mm diameter",{"$nulls":7},"No",1000]
["F",{"$f":"B137+1","v":58},"32mm diameter",{"$nulls":7},"No",1000]
["F",{"$f":"B138+1","v":59},"50mm diameter",{"$nulls":7},"No",1000]
[]
[null,null,"BOSAL COUPLINGS"]
["F",{"$f":"B139+1","v":60},"20mm diameter",{"$nulls":7},"No",{"$f":"$R$1*100","v":1000}]
["F",{"$f":"B142+1","v":61},"25mm diameter",{"$nulls":7},"No",1000]
["F",{"$f":"B143+1","v":62},"32mm diameter",{"$nulls":7},"No",1000]
["F",{"$f":"B144+1","v":63},"50mm diameter",{"$nulls":7},"No",1000]
[]
[null,null,"TRUNKING & WIRING DUCT"]
[null,null,"PVC TRUNKING"]
[null,null,"Supply and install PVC compact mini trunking complete with "]
[null,null,"cover plates, tees, angles(internal, external and flat), bends,"]
[null,null,"end caps and all necessary fittings fixtures and accessories "]
[null,null,"required to complete the works."]
[null,null,"The trunking shall be installed surface on brickwork, slab, concrete, "]
[null,null,"walls, ceilings, etc as required."]
[null,null,"The trunking shall be as Cabstrut or equal approved."]
["F",{"$f":"B145+1","v":64},"YT/1: 16mm x 16mm",{"$nulls":7},"m",{"$f":"$R$1*50","v":500}]
["F",{"$f":"B156+1","v":65},"YT/2: 25mm x 16mm",{"$nulls":7},"m",500]
["F",66,"YT/2.5: 25mm x 25mm",{"$nulls":7},"m",500]
["F",67,"YT/3: 40mm x 16mm",{"$nulls":7},"m",500]
["F",68,"YT/4: 40mm x 25mm",{"$nulls":7},"m",500]
["F",69,"YT/5: 40mm x 40mm",{"$nulls":7},"m",500]
["F",70,"NBT/4: 100mm x 40mm",{"$nulls":7},"m",500]
[]
[null,null,"Carried to Collection Page 29 "]
[null,"Item","Description",{"$nulls":7},"Unit","Qty","Supply & Deliver Rate","Install Rate","Amount"]
[null,null,"GALVANISED STEEL TRUNKING"]
[null,null,"Supply and install galvanised steel trunking complete with PVC"]
[null,null,"cover plates, tees, angles(internal, external and flat), bends,"]
[null,null,"end caps, bolts, screws, anchors, threaded rods, hangards, anchors,"]
[null,null,"suspension system and all necessary fittings, fixtures and"]
[null,null,"accessories required to complete the works."]
[null,null,"The trunking shall be installed surface on brickwork, slab, "]
[null,null,"concrete,  walls, ceilings, etc as required."]
[null,null,"The trunking shall be as Cabstrut or equal approved."]
["F",{"$f":"B162+1","v":71},"P2000: 41mm x 41mm x 1mm",{"$nulls":7},"m",{"$f":"$R$1*50","v":500}]
["F",{"$f":"B175+1","v":72},"P8000: 76mm x 76mm x 0.8mm",{"$nulls":7},"m",500]
["F",{"$f":"B176+1","v":73},"P9800: 127mm x 76mm x 0.8mm",{"$nulls":7},"m",500]
[]
[null,null,"CABLE TRAYS"]
[null,null,"Supply and install galvanised steel cable trays complete with "]
[null,null,"tees, bends, elbows, splices, bolts, screws, anchors, threaded rods,"]
[null,null,"hangars, anchors, suspension system and all necessary"]
[null,null,"fittings, fixtures and accessories required to complete the works."]
[null,null,"The trays shall be installed 300mm from surface on brickwork, slab,  "]
[null,null,"concrete, walls, ceilings, etc as required."]
[null,null,"The trays shall be as Cabstrut or equal approved."]
[null,null,"LIGHT DUTY"]
["F",{"$f":"B177+1","v":74},"103mm x 19mm x 1mm",{"$nulls":7},"m",{"$f":"$R$1*50","v":500}]
["F",{"$f":"B188+1","v":75},"205mm x 19mm x 1.2mm",{"$nulls":7},"m",500]
["F",{"$f":"B189+1","v":76},"305mm x 19mm x 1.2mm",{"$nulls":7},"m",500]
[null,null,"MEDIUM DUTY"]
["F",{"$f":"B190+1","v":77},"152mm x 38mm x 1.6mm",{"$nulls":7},"m",{"$f":"$R$1*50","v":500}]
["F",{"$f":"B192+1","v":78},"229mm x 38mm x 1.6mm",{"$nulls":7},"m",500]
["F",{"$f":"B193+1","v":79},"305mm x 38mm x 1.6mm",{"$nulls":7},"m",500]
[null,null,"HEAVY DUTY"]
["F",{"$f":"B194+1","v":80},"152mm x 76mm x 1.6mm",{"$nulls":7},"m",{"$f":"$R$1*50","v":500}]
["F",{"$f":"B196+1","v":81},"229mm x 76mm x 1.6mm",{"$nulls":7},"m",500]
["F",{"$f":"B197+1","v":82},"305mm x 76mm x 1.6mm",{"$nulls":7},"m",500]
[]
[null,null,"Carried to Collection Page 29 "]
[null,"Item","Description",{"$nulls":11},"Amount"]
[null,null,"ELECTRICAL WORKS"]
[null,null,"BILL OF QUANTITIES: BILL NO 6 OF 19"]
[]
[null,null,"COLLECTION PAGE"]
[null,null,"WIREWAYS & ACCESSORIES"]
[]
[null,null,"Page 24 "]
[null,null,"Page 25 "]
[null,null,"Page 26 "]
[null,null,"Page 27 "]
[null,null,"Page 28 "]
{"$rows_empty":13}
[null,null,"WIREWAYS & ACCESSORIES"]
[null,null,"TOTAL CARRIED TO BILL SUMMARY Page 92"]

{"sheet":"BILL07","index":7,"n_rows":145,"n_cols":18,"rows_kept":145}
[{"$nulls":15},{"v":1.077,"d":"107.70%"},null,{"v":10,"d":"1000%"}]
[null,"Item","Description",{"$nulls":7},"Unit","Qty","Supply & Deliver Rate","Install Rate","Amount"]
[null,null,"ELECTRICAL WORKS"]
["G",null,"BILL OF QUANTITIES: BILL NO 7 OF 19"]
[null,null,"WIRING & CONDUCTORS"]
[null,null,"All cable and conductor wiring rates shall include for off cuts,"]
[null,null,"slack, wastage, etc. The cost shall include all consumables."]
[null,null,"The measurements shall be taken from point to point."]
[null,null,"LOW VOLTAGE CONDUCTORS"]
[null,null,"HOUSEWIRE"]
[null,null,"Supply, deliver, install and terminate low voltage(600/1000V), PVC"]
[null,null,"insulated, stranded copper conductors drawn into wireways, "]
[null,null,"trunking, conduits, etc. Wiring channels measured elsewhere."]
[null,null,"The conductor shall be a low friction single core general purpose"]
[null,null,"cable. The cable shall be manufactured to SANS 1507-2."]
[null,null,"The cables shall be as per Slipdac housewire, Abedare Cables or"]
[null,null,"equal approved."]
["G",1,"1.5mm2",{"$nulls":7},"m",{"$f":"$R$1*1000","v":10000}]
["G",{"$f":"B18+1","v":2},"2.5mm2",{"$nulls":7},"m",{"$f":"$R$1*1000","v":10000}]
["G",{"$f":"B19+1","v":3},"4mm2",{"$nulls":7},"m",10000]
["G",{"$f":"B20+1","v":4},"6mm2",{"$nulls":7},"m",{"$f":"$R$1*100","v":1000}]
["G",{"$f":"B21+1","v":5},"10mm2",{"$nulls":7},"m",{"$f":"$R$1*10","v":100}]
["G",{"$f":"B22+1","v":6},"16mm2",{"$nulls":7},"m",{"$f":"$R$1*10","v":100}]
[]
[null,null,"SURFIX"]
[null,null,"Supply, deliver, install and terminate low voltage(300/500V), PVC"]
[null,null,"insulated, stranded copper conductors laid up with a bare "]
[null,null,"tinned copper earth wire in contact with a longitudinal "]
[null,null,"aluminium/polyethylene laminate, UV stable PVC sheathed"]
[null,null,"to SANS 1411-2, specification SANS 1507-2"]
[null,null,"The cables shall be as per Surfix, Abedare Cables or"]
[null,null,"equal approved only."]
[]
[null,null,"TWO CORE"]
["G",{"$f":"B23+1","v":7},"1.5mm2",{"$nulls":7},"m",{"$f":"$R$1*1000","v":10000}]
["G",{"$f":"B35+1","v":8},"2.5mm2",{"$nulls":7},"m",10000]
["G",{"$f":"B36+1","v":9},"4mm2",{"$nulls":7},"m",10000]
["G",{"$f":"B37+1","v":10},"6mm2",{"$nulls":7},"m",{"$f":"$R$1*100","v":1000}]
[]
[null,null,"Carried to Collection Page 33 "]
[null,"Item","Description",{"$nulls":7},"Unit","Qty","Supply & Deliver Rate","Install Rate","Amount"]
["G",{"$f":"B38+1","v":11},"10mm2",{"$nulls":7},"m",{"$f":"$R$1*10","v":100}]
["G",{"$f":"B42+1","v":12},"16mm2",{"$nulls":7},"m",100]
[]
[null,null,"THREE CORE"]
["G",{"$f":"B43+1","v":13},"1.5mm2",{"$nulls":7},"m",{"$f":"$R$1*100","v":1000}]
["G",{"$f":"B46+1","v":14},"2.5mm2",{"$nulls":7},"m",1000]
["G",{"$f":"B47+1","v":15},"4mm2",{"$nulls":7},"m",1000]
["G",{"$f":"B48+1","v":16},"6mm2",{"$nulls":7},"m",1000]
[]
[null,null,"FOUR CORE"]
["G",{"$f":"B49+1","v":17},"1.5mm2",{"$nulls":7},"m",{"$f":"$R$1*10","v":100}]
["G",{"$f":"B52+1","v":18},"2.5mm2",{"$nulls":7},"m",100]
["G",{"$f":"B53+1","v":19},"4mm2",{"$nulls":7},"m",100]
["G",{"$f":"B54+1","v":20},"6mm2",{"$nulls":7},"m",100]
[]
[null,null,"FLAT TWIN & EARTH"]
[null,null,"Supply, deliver, install and terminate low voltage(300/500V), PVC"]
[null,null,"insulated, stranded copper conductors laid up with a bare "]
[null,null,"copper continuity conductor between them, PVC sheated to"]
[null,null,"SANS 1411-2. Specification SANS 1574"]
[null,null,"The cables shall be as per Flat Twin and Earth, Abedare Cables or"]
[null,null,"equal approved."]
[null,null,"TWO CORE"]
["G",{"$f":"B55+1","v":21},"1.5mm2",{"$nulls":7},"m",{"$f":"$R$1*100","v":1000}]
["G",{"$f":"B65+1","v":22},"2.5mm2",{"$nulls":7},"m",1000]
["G",{"$f":"B66+1","v":23},"4mm2",{"$nulls":7},"m",1000]
["G",{"$f":"B67+1","v":24},"6mm2",{"$nulls":7},"m",1000]
["G",{"$f":"B68+1","v":25},"10mm2",{"$nulls":7},"m",{"$f":"$R$1*10","v":100}]
["G",{"$f":"B69+1","v":26},"16mm2",{"$nulls":7},"m",100]
[]
[null,null,"THREE CORE"]
["G",{"$f":"B70+1","v":27},"1.5mm2",{"$nulls":7},"m",{"$f":"$R$1*10","v":100}]
["G",{"$f":"B73+1","v":28},"2.5mm2",{"$nulls":7},"m",100]
["G",{"$f":"B74+1","v":29},"4mm2",{"$nulls":7},"m",100]
[]
[null,null,"FOUR CORE"]
["G",{"$f":"B75+1","v":30},"1.5mm2",{"$nulls":7},"m",{"$f":"$R$1*5","v":50}]
["G",{"$f":"B78+1","v":31},"2.5mm2",{"$nulls":7},"m",{"$f":"$R$1*5","v":50}]
["G",{"$f":"B79+1","v":32},"4mm2",{"$nulls":7},"m",50]
[null,null,"Carried to Collection Page 33 EE"]
[null,"Item","Description",{"$nulls":7},"Unit","Qty","Supply & Deliver Rate","Install Rate","Amount"]
[null,null,"CABTYRE - NORMAL DUTY"]
[null,null,"Supply, deliver, install and terminate low voltage(300/500V),"]
[null,null,"normal duty, PVC insulated, high conductivity bunched plain "]
[null,null,"flexible copper conductors to SANS 1411. Cores to be twisted"]
[null,null,"together and sheathed with a flexible grade PVC."]
[null,null,"The cables shall be as per Cabtyre- normal duty, Abedare Cables or"]
[null,null,"equal approved."]
[]
[null,null,"THREE CORE"]
["G",{"$f":"B80+1","v":33},"1.5mm2",{"$nulls":7},"m",{"$f":"$R$1*1000","v":10000}]
["G",{"$f":"B92+1","v":34},"2.5mm2",{"$nulls":7},"m",10000]
["G",{"$f":"B93+1","v":35},"4mm2",{"$nulls":7},"m",500]
[]
[null,null,"FOUR CORE"]
["G",{"$f":"B94+1","v":36},"1.5mm2",{"$nulls":7},"m",{"$f":"$R$1*5","v":50}]
["G",{"$f":"B97+1","v":37},"2.5mm2",{"$nulls":7},"m",50]
["G",{"$f":"B98+1","v":38},"4mm2",{"$nulls":7},"m",50]
[]
[null,null,"PVC INSULATED MVGP GRADE CONDUCTORS"]
[null,null,"Supply, deliver, install and terminate PVC insulated MVGP"]
[null,null,"grade conductor."]
[null,null,"The conductor shall be as per Abedare or equal approved."]
["G",{"$f":"B99+1","v":39},"1.5mm2",{"$nulls":7},"m",200]
["G",{"$f":"B105+1","v":40},"2.5mm2",{"$nulls":7},"m",200]
["G",{"$f":"B106+1","v":41},"4mm2",{"$nulls":7},"m",{"$f":"$R$1*100","v":1000}]
["G",{"$f":"B107+1","v":42},"6mm2",{"$nulls":7},"m",1000]
["G",{"$f":"B108+1","v":43},"10mm2",{"$nulls":7},"m",{"$f":"$R$1*10","v":100}]
["G",{"$f":"B109+1","v":44},"16mm2",{"$nulls":7},"m",100]
[]
[]
[]
[]
[null,null,"Carried to Collection Page 33 EE"]
[null,"Item","Description",{"$nulls":7},"Unit","Qty","Supply & Deliver Rate","Install Rate","Amount"]
[null,null,"ELECTRICAL WORKS"]
[null,null,"BILL OF QUANTITIES: BILL NO 7 OF 19"]
[]
[null,null,"COLLECTION"]
[null,null,"WIRING & CONDUCTORS"]
[]
[null,null,"Page 30 "]
[null,null,"Page 31 "]
[null,null,"Page 32 "]
{"$rows_empty":18}
[null,null,"WIRING & CONDUCTORS"]
[null,null,"TOTAL CARRIED TO BILL SUMMARY Page 92 EE"]

{"sheet":"BILL08","index":8,"n_rows":584,"n_cols":18,"rows_kept":584}
[{"$nulls":15},{"v":1.077,"d":"107.70%"},null,{"v":10,"d":"1000%"}]
[null,"Item","Description",{"$nulls":7},"Unit","Qty","Supply & Deliver Rate","Install Rate","Amount"]
[]
[null,null,"ELECTRICAL WORKS"]
["H",null,"BILL OF QUANTITIES: BILL NO 8 OF 19"]
[null,null,"LUMINAIRES"]
[null,null,"The supply, delivery and installation of luminaires, complete"]
[null,null,"with electronic control gear and ballasts, lamps,"]
[null,null,"fittings, fixtures and accessories."]
[null,null,"The luminaires shall be delivered to site in a protective cover."]
[null,null,"The lamps shall be delivered to site separately in a protective cover"]
[null,null,"with the exception of the IP65 fittings which will be delivered"]
[null,null,"pre lamped by the supplier/manufacturer."]
[null,null,"All lamps to be Colour rendering index Ra ≥80, 3000K, Osram"]
[null,null,"The luminaires shall bear the SANS safety mark."]
[null,null,"The luminaires shall be fitted and wired in terms of the"]
[null,null,"SANS 10142: Wiring Code Latest Revision"]
[null,null,"The luminaires shall be suitable for operation at 250V, 50Hz."]
[null,null,"The luminaires shall be mounted surface, suspended, recessed,"]
[null,null,"semi recessed where applicable to walls, ceilings, roofs, poles, etc."]
[null,null,"The luminaires shall be as per the specified brand or other"]
[null,null,"approved only."]
[]
[null,null,"All LED Luminares shall not be less than LM97 B50 type with a minimum of "]
[null,null,"50 000 hours life and 5 year warrenty."]
[null,null,"The LED luminares shall be SABS approved and shall have an internal surge "]
[null,null,"protection unit."]
[null,null,"An outdoor luminare shall be UV stabalised."]
[]
[null,null,"BULKHEADS:"]
[null,null,"INDUSTRIAL & SEMI INDUSTRIAL APPLICATIONS"]
[null,null,"IP65 "]
[null,null,"The luminaires shall be as per Lascon or equal approved"]
["H",1,"B40-57W - LED bulkhead",{"$nulls":7},"No",{"$f":"$R$1*5","v":50}]
["H",{"$f":"B34+1","v":2},"B40-80W - MVE- Mercury Vapour bulkhead",{"$nulls":7},"No",{"$f":"$R$1*5","v":50}]
["H",3,"B40-70W - HPSE- High Pressure Sodium bulkhead",{"$nulls":7},"No",50]
["H",4,"B40-100W - HPSE- High Pressure Sodium bulkhead",{"$nulls":7},"No",50]
["H",5,"B40-150W - HPSE- High Pressure Sodium bulkhead",{"$nulls":7},"No",50]
["H",6,"B40-70W - MH- Metal Halide bulkhead",{"$nulls":7},"No",50]
["H",7,"B40-100W - MH- Metal Halide bulkhead",{"$nulls":7},"No",50]
["H",8,"B40-150W - MH- Metal Halide bulkhead",{"$nulls":7},"No",50]
["H",9,"B40-242W - ELB - 2x42W Fluorescent bulkhead",{"$nulls":7},"No",50]
[]
[null,null,"Carried to Collection Page 48 EE"]
[null,"Item","Description",{"$nulls":7},"Unit","Qty","Supply & Deliver Rate","Install Rate","Amount"]
[null,null,"BULKHEADS:"]
[null,null,"DECORATIVE: ROUND & DOME"]
[null,null,"INDUSTRIAL & SEMI INDUSTRIAL APPLICATIONS"]
[null,null,"IP65 , 230 mm diameter, Colour: Black "]
[null,null,"The luminaires shall be as per Lascon or equal approved"]
["H",{"$f":"B42+1","v":10},"Round: B10 -10W - LED ",{"$nulls":7},"No",{"$f":"$R$1*5","v":50}]
["H",{"$f":"B51+1","v":11},"Round: B10 - ES - 18W Energy saver lamp",{"$nulls":7},"No",50]
["H",{"$f":"B52+1","v":12},"Dome: B10 - 10W - LED ",{"$nulls":7},"No",50]
["H",{"$f":"B53+1","v":13},"Dome: B10 - ES - 18W Energy saver lamp",{"$nulls":7},"No",50]
["H",{"$f":"B54+1","v":14},"B10 - Decorative skirt",{"$nulls":7},"No",50]
[null,null,"DECORATIVE: SQUARE"]
[null,null,"INDUSTRIAL & SEMI INDUSTRIAL APPLICATIONS"]
[null,null,"IP65 , 205 mm width, Colour: Black "]
[null,null,"The luminaires shall be as per Lascon or equal approved"]
["H",{"$f":"B55+1","v":15},"Round: B20 -10W - LED ",{"$nulls":7},"No",{"$f":"$R$1*5","v":50}]
["H",{"$f":"B60+1","v":16},"Round: B20 - ES - 18W Energy saver lamp",{"$nulls":7},"No",50]
["H",{"$f":"B61+1","v":17},"B20 - Decorative skirt",{"$nulls":7},"No",50]
[]
[null,null,"BULKHEADS:"]
[null,null,"GENERAL: DECORATIVE"]
[null,null,"IP65"]
[null,null,"The luminaires shall be as per Lascon or equal approved"]
[null,null,"CFL"]
["H",{"$f":"B62+1","v":18},"Rimini: 218-ELB-DOME- 355mm dia White or Black",{"$nulls":7},"No",{"$f":"$R$1*5","v":50}]
[null,null,"LED"]
["H",{"$f":"B69+1","v":19},"Rimini: 17.5-LED-DOME- 355mm dia White or Black",{"$nulls":7},"No",{"$f":"$R$1*5","v":50}]
[null,null,"CFL"]
["H",{"$f":"B71+1","v":20},"Milano: 218-ELB-DOME- 270mm dia White or Black",{"$nulls":7},"No",{"$f":"$R$1*5","v":50}]
[null,null,"LED"]
["H",{"$f":"B73+1","v":21},"Milano: 17.5-LED-DOME- 355mm dia White or Black",{"$nulls":7},"No",{"$f":"$R$1*5","v":50}]
[null,null,"CFL"]
["H",{"$f":"B75+1","v":22},"Roma: 218-ELB-DOME- 266mm dia White or Black",{"$nulls":7},"No",{"$f":"$R$1*5","v":50}]
[null,null,"LED"]
["H",{"$f":"B77+1","v":23},"Roma: 17.5-LED-DOME- 266mm dia White or Black",{"$nulls":7},"No",{"$f":"$R$1*5","v":50}]
[]
[null,null,"Carried to Collection Page 48 EE"]
[null,"Item","Description",{"$nulls":7},"Unit","Qty","Supply & Deliver Rate","Install Rate","Amount"]
[null,null,"BULKHEADS:"]
[null,null,"COMMERCIAL: ROUND: ALUMINIUM BASE, UV"]
[null,null,"STABILISED POLYCARBONATE DIFFUSER, IP65 INDOOR"]
[null,null,"& OUTDOOR APPLICATION   295mm DIAMETER"]
[null,null,"The luminaires shall be as per Swanlite or equal approved"]
["H",{"$f":"B79+1","v":24},"ILM/MAS/SOL/2PL9 - Black or White",{"$nulls":7},"No",{"$f":"$R$1*5","v":50}]
["H",{"$f":"B88+1","v":25},"ILM/MAS/SOL/1PL18 - Black or White",{"$nulls":7},"No",50]
["H",{"$f":"B89+1","v":26},"ILM/MAS/SOL/LED/ - Black or White",{"$nulls":7},"No",50]
[null,null,"COMMERCIAL: ROUND: ALUMINIUM BASE,"]
[null,null,"UV STABILISED OPAL OR PRISMATIC, FLAT OR"]
[null,null,"DOMED DIFFUSER: CLIENT TO SELECT INDOOR &"]
[null,null,"OUTDOOR APPLICATION   360mm DIAMETER"]
[null,null,"The luminaires shall be as per Swanlite or equal approved"]
["H",{"$f":"B90+1","v":27},"MAS/LLB/2D16/AL - Black or White Trim ",{"$nulls":7},"No",{"$f":"$R$1*5","v":50}]
["H",{"$f":"B96+1","v":28},"MAS/LLB/2D28/AL - Black or White Trim ",{"$nulls":7},"No",50]
["H",{"$f":"B97+1","v":29},"MAS/LLB/2PL18/AL - Black or White Trim ",{"$nulls":7},"No",50]
["H",{"$f":"B98+1","v":30},"MAS/LLB/LED/AL - Black or White Trim ",{"$nulls":7},"No",50]
[null,null,"COMMERCIAL: ROUND: ALUMINIUM BASE,"]
[null,null,"UV STABILISED OPAL DIFFUSER"]
[null,null,"INDOOR & OUTDOOR APPLICATION"]
[null,null,"280mm DIAMETER"]
[null,null,"The luminaires shall be as per Beka or equal approved"]
["H",{"$f":"B99+1","v":31},"Series 30: 31007/15W LED - Black or White Trim ",{"$nulls":7},"No",{"$f":"$R$1*5","v":50}]
["H",{"$f":"B105+1","v":32},"Series 30: 31116/2D16W - Black or White Trim ",{"$nulls":7},"No",50]
["H",{"$f":"B106+1","v":33},"Series 30: 31118/1PL18W CFL - Black or White Trim ",{"$nulls":7},"No",50]
["H",{"$f":"B107+1","v":34},"Series 30: 31209/2PL9W CFL - Black or White Trim ",{"$nulls":7},"No",50]
["H",{"$f":"B108+1","v":35},"Series 30: 31218/2PL18W CFL - Black or White Trim ",{"$nulls":7},"No",50]
[null,null,"BULKHEAD ACCESSORIES"]
["H",{"$f":"B109+1","v":36},"Adaptor Ring for surface wiring per bulkhead",{"$nulls":7},"Item",{"$f":"$R$1*5","v":50}]
[null,null,"PORCELAIN BOWL FITTING"]
[null,null,"The luminaires shall be as per Radiant or equal approved"]
[null,null,"and fitted with Osram or equal approved lamp"]
["H",37,"6\" Opal, porcelain bowl, screw neck, complete "]
[null,null,"with gallery and porcelain lampholder and 15W ES, "]
[null,null,"stick lamp.",{"$nulls":7},"No",{"$f":"$R$1*5","v":50}]
[]
[null,null,"Carried to Collection Page 48 EE"]
[null,"Item","Description",{"$nulls":7},"Unit","Qty","Supply & Deliver Rate","Install Rate","Amount"]
["H",{"$f":"B115+1","v":38},"8\" Opal, porcelain bowl, screw neck, complete "]
[null,null,"with gallery and porcelain lampholder and 15W ES, "]
[null,null,"stick lamp.",{"$nulls":7},"No",{"$f":"$R$1*5","v":50}]
[null,null,"OPEN CHANNEL LUMINAIRES:"]
[null,null,"CHANNELS & BATTENS"]
[null,null,"DOMESTIC & COMMERCIAL APPLICATIONS"]
[null,null,"BODY: COLD MILD ROLLED STEEL WITH EPOXY "]
[null,null,"POWDER COATED FINISH, IP20"]
[null,null,"SURFACE/SUSPENDED MOUNTED  CHANNELS"]
[null,null,"The luminaires shall be as per Lascon or equal approved"]
[null,null,"T5"]
[null,null,"4 FOOT (1180mm length):"]
["H",39,"Channel/228/ELB: 2x28W ",{"$nulls":7},"No",{"$f":"$R$1*5","v":50}]
["H",{"$f":"B133+1","v":40},"Channel/254/ELB: 2x54W ",{"$nulls":7},"No",50]
[null,null,"ACCESSORIES"]
[null,null,"WIRE GUARD"]
["H",{"$f":"B134+1","v":41},"4ft Galvanised steel wire as per for above fittings",{"$nulls":7},"Item",{"$f":"$R$1*5","v":50}]
[null,null,"INDUSTRIAL WING"]
["H",{"$f":"B137+1","v":42},"4ft mild steel, B-Focal wing attachment as per for"]
[null,null," above fittings",{"$nulls":7},"Item",{"$f":"$R$1*5","v":50}]
[null,null,"SEAMLESS BATTEN"]
[null,null,"The luminaires shall be as per Lascon or equal approved"]
[null,null,"T5"]
[null,null,"4 FOOT (1180mm length):"]
["H",{"$f":"B139+1","v":43},"Seamless Batten/154/ELB: 1x54W ",{"$nulls":7},"No",{"$f":"$R$1*5","v":50}]
[null,null,"BATTEN"]
[null,null,"T5"]
[null,null,"2 FOOT (680mm length):"]
["H",{"$f":"B145+1","v":44},"Batten/124/ELB: 1x24W ",{"$nulls":7},"No",{"$f":"$R$1*5","v":50}]
[null,null,"4 FOOT (1180mm length):"]
["H",{"$f":"B149+1","v":45},"Batten/128/ELB: 1x28W ",{"$nulls":7},"No",{"$f":"$R$1*5","v":50}]
["H",{"$f":"B151+1","v":46},"Batten/154/ELB: 1x54W ",{"$nulls":7},"No",50]
[null,null,"5 FOOT (1480mm length):"]
["H",{"$f":"B152+1","v":47},"Batten/149/ELB: 1x35W "]
["H",{"$f":"B154+1","v":48},"Batten/149/ELB: 1x49W ",{"$nulls":7},"No",{"$f":"$R$1*5","v":50}]
["H",{"$f":"B155+1","v":49},"Batten/180/ELB: 1x80W ",{"$nulls":7},"No",50]
[]
[null,null,"Carried to Collection Page 48 EE"]
[null,"Item","Description",{"$nulls":7},"Unit","Qty","Supply & Deliver Rate","Install Rate","Amount"]
[null,null,"INDUSTRIAL WING"]
["H",{"$f":"B156+1","v":50},"2ft mild steel, B-Focal wing attachment as per for"]
[null,null," above fittings",{"$nulls":7},"Item",{"$f":"$R$1*5","v":50}]
["H",{"$f":"B161+1","v":51},"4ft mild steel, B-Focal wing attachment as per for"]
[null,null," above fittings",{"$nulls":7},"Item",{"$f":"$R$1*5","v":50}]
["H",{"$f":"B163+1","v":52},"5ft mild steel, B-Focal wing attachment as per for"]
[null,null," above fittings",{"$nulls":7},"Item",{"$f":"$R$1*5","v":50}]
[]
[null,null,"LED"]
[null,null,"4 FOOT (1120mm length):"]
["H",{"$f":"B165+1","v":53},"Batten/22W/LED ",{"$nulls":7},"No",{"$f":"$R$1*5","v":50}]
["H",{"$f":"B170+1","v":54},"Batten/28W/LED ",{"$nulls":7},"No",50]
["H",{"$f":"B171+1","v":55},"Batten/32W/LED ",{"$nulls":7},"No",50]
["H",{"$f":"B172+1","v":56},"Batten/39W/LED ",{"$nulls":7},"No",50]
["H",{"$f":"B173+1","v":57},"Batten/46W/LED ",{"$nulls":7},"No",50]
[]
[null,null,"LIGHTING SYSTEMS"]
[]
[null,null,"RAIL"]
[null,null,"COMMERCIAL APPLICATION:"]
[null,null,"WAREHOUSES, FACTORIES, AISLE LIGHTING"]
[null,null,"The luminaires shall be as per Lascon or equal approved"]
[null,null,"T5"]
[null,null,"4 FOOT (1225mm length):"]
["H",{"$f":"B174+1","v":58},"Rail - 154 - ELB ",{"$nulls":7},"No",{"$f":"$R$1*5","v":50}]
[null,null,"5 FOOT (1525mm length):"]
["H",{"$f":"B184+1","v":59},"Rail - 180 - ELB ",{"$nulls":7},"No",{"$f":"$R$1*5","v":50}]
[null,null,"LED"]
[null,null,"4 FOOT (1225mm length):"]
["H",{"$f":"B186+1","v":60},"Rail - 32W - LED ",{"$nulls":7},"No",{"$f":"$R$1*5","v":50}]
["H",{"$f":"B189+1","v":61},"Rail - 46W - LED ",{"$nulls":7},"No",{"$f":"$R$1*5","v":50}]
[]
[]
[null,null,"Carried to Collection Page 48 EE"]
[null,"Item","Description",{"$nulls":7},"Unit","Qty","Supply & Deliver Rate","Install Rate","Amount"]
[null,null,"VAPOUR & TAMPERPROOF LUMINAIRES:"]
[null,null,"COMMERCIAL & INDUSTRIAL APPLICATIONS"]
[null,null,"BODY: GREY INJECTION MOULDED UV STABILISED"]
[null,null,"SELF EXTINGUISHING POLYCARBONATE."]
[null,null,"DIFFUSER: ONE PIECE INJECTION MOULDED UV"]
[null,null,"SELF EXTINGUISHING POLYCARBONATE. LINEAR"]
[null,null,"LIGHT CONTROL PRISMS ON THE INSIDE"]
[null,null,"SURFACE/SUSPENDED MOUNTED, IP65"]
[null,null,"The luminaires shall be as per Lascon or equal approved"]
[null,null,"4 FOOT (1225mm length):"]
[]
[]
[null,null,"T5: 16mm: ROTA-LOCK LAMP HOLDERS"]
["H",{"$f":"B190+1","v":62},"C10: 228-ELB: 2x28W ",{"$nulls":7},"No",{"$f":"$R$1*5","v":50}]
["H",{"$f":"B208+1","v":63},"C10: 228-ELB: 2x54W ",{"$nulls":7},"No",50]
[null,null,"LED"]
["H",{"$f":"B209+1","v":64},"C10: 27W-LED ",{"$nulls":7},"No",{"$f":"$R$1*5","v":50}]
["H",{"$f":"B211+1","v":65},"C10: 37W-LED ",{"$nulls":7},"No",50]
[]
[]
[null,null,"5 FOOT (1570mm length):"]
[null,null,"T5: 16mm: ROTA-LOCK LAMP HOLDERS"]
["H",64,"C10: 235-ELB: 2x35W ",{"$nulls":7},"No",{"$f":"$R$1*5","v":50}]
["H",65,"C10: 249-ELB: 2x49W ",{"$nulls":7},"No",50]
[null,null,"DECORATIVE COMMERCIAL LUMINAIRES"]
[null,null,"COMMERCIAL APPLICATIONS"]
[null,null,"BODY: COLD MILD ROLLED STEEL WITH EPOXY "]
[null,null,"POWDER COATED FINISH, IP20"]
[null,null,"LOUVRE: ONE PIECE,"]
[null,null,"1520G3 ANTI-IRIDESCENT MATT ALUMINIUM"]
[null,null,"SURFACE/SUSPENDED MOUNTED LOW LEVEL"]
[null,null,"BRIGHTNESS"]
[null,null,"The luminaires shall be as per Lascon or equal approved"]
[null,null,"4 FOOT (1229mm length):"]
[null,null,"T5: 16mm: ROTA-LOCK LAMP HOLDERS"]
["H",{"$f":"B218+1","v":66},"M95N-228-ELB: 2x28W LLB",{"$nulls":7},"No",{"$f":"$R$1*5","v":50}]
["H",67,"M95N-254-ELB: 2x54W LLB",{"$nulls":7},"No",50]
[]
[null,null,"Carried to Collection Page 48 EE"]
[null,"Item","Description",{"$nulls":7},"Unit","Qty","Supply & Deliver Rate","Install Rate","Amount"]
[null,null,"4 FOOT (1260mm length):"]
[null,null,"T5: 16mm: ROTA-LOCK LAMP HOLDERS"]
["H",{"$f":"B231+1","v":68},"SL95-228-ELB: 2x28W",{"$nulls":7},"No",{"$f":"$R$1*5","v":50}]
["H",{"$f":"B237+1","v":69},"SL95-254-ELB: 2x54W",{"$nulls":7},"No",50]
[null,null,"LED"]
["H",{"$f":"B238+1","v":70},"SL95-27W-LED",{"$nulls":7},"No",{"$f":"$R$1*5","v":50}]
["H",{"$f":"B240+1","v":71},"SL95-37W-LED",{"$nulls":7},"No",50]
[null,null,"4 FOOT (1260mm length):"]
[null,null,"T5: 16mm"]
["H",{"$f":"B241+1","v":72},"SL95-S-228-ELB: 2x28W",{"$nulls":7},"No",{"$f":"$R$1*5","v":50}]
["H",{"$f":"B244+1","v":73},"SL95-S-254-ELB: 2x54W",{"$nulls":7},"No",50]
[null,null,"LED"]
["H",{"$f":"B245+1","v":74},"SL95-S-32W-LED",{"$nulls":7},"No",{"$f":"$R$1*5","v":50}]
["H",{"$f":"B247+1","v":75},"SL95-S-46W-LED",{"$nulls":7},"No",50]
[null,null,"OPAL COVER"]
[null,null,"4 FOOT (1250mm length):"]
[null,null,"T5: 16mm"]
["H",{"$f":"B248+1","v":76},"M6V-228-ELB: 2x28W",{"$nulls":7},"No",{"$f":"$R$1*5","v":50}]
["H",{"$f":"B252+1","v":77},"M6V-254-ELB: 2x54W",{"$nulls":7},"No",50]
[null,null,"LED"]
["H",{"$f":"B253+1","v":78},"M6V-27-LED",{"$nulls":7},"No",{"$f":"$R$1*5","v":50}]
["H",{"$f":"B255+1","v":79},"M6V-37-LED",{"$nulls":7},"No",50]
[null,null,"DECORATIVE COMMERCIAL LUMINAIRES"]
[null,null,"COMMERCIAL APPLICATIONS"]
[null,null,"BODY: COLD MILD ROLLED STEEL WITH EPOXY "]
[null,null,"POWDER COATED FINISH, IP20"]
[null,null,"LOUVRE: ONE PIECE,"]
[null,null,"1520G3 ANTI-IRIDESCENT MATT ALUMINIUM"]
[null,null,"COMPLETE WITH 5A PLUGTOP & 3m CABTYRE"]
[null,null,"RECESSED MOUNTED,  LOW LEVEL BRIGHTNESS"]
[null,null,"The luminaires shall be as per Lascon or equal approved"]
[null,null,"2 FOOT (597mm length):"]
[null,null,"T5"]
["H",{"$f":"B256+1","v":80},"FM95: 224-ELB: 2x24W LLB",{"$nulls":7},"No",{"$f":"$R$1*5","v":50}]
["H",{"$f":"B268+1","v":81},"FM95: 324-ELB: 3x24W LLB",{"$nulls":7},"No",50]
[]
[null,null,"Carried to Collection Page 48 EE"]
[null,"Item","Description",{"$nulls":7},"Unit","Qty","Supply & Deliver Rate","Install Rate","Amount"]
[null,null,"LED"]
["H",{"$f":"B269+1","v":82},"FM95: 27W LED",{"$nulls":7},"No",{"$f":"$R$1*5","v":50}]
["H",{"$f":"B274+1","v":83},"FM95: 37W LED",{"$nulls":7},"No",50]
[null,null,"4 FOOT (1197mm length):"]
[null,null,"T5"]
["H",{"$f":"B275+1","v":84},"FM95: 228-ELB: 2x28W",{"$nulls":7},"No",{"$f":"$R$1*5","v":50}]
["H",{"$f":"B278+1","v":85},"FM95: 254-ELB: 2x54W",{"$nulls":7},"No",50]
[null,null,"DECORATIVE COMMERCIAL LUMINAIRES"]
[null,null,"COMMERCIAL APPLICATIONS"]
[null,null,"BODY: COLD MILD ROLLED STEEL WITH EPOXY "]
[null,null,"POWDER COATED FINISH, IP20"]
[null,null,"COMPLETE WITH 5A PLUGTOP & 3m CABTYRE"]
[null,null,"RECESSED MOUNTED"]
[null,null,"ACRYLIC DIFFUSER "]
[null,null,"The luminaires shall be as per Lascon or equal approved"]
[null,null,"2 FOOT (595mm length):"]
[null,null,"T5"]
["H",{"$f":"B279+1","v":86},"FM90AR27: 324-ELB: 3x24W LLB",{"$nulls":7},"No",{"$f":"$R$1*5","v":50}]
[null,null,"4 FOOT (1195mm length):"]
[null,null,"T5"]
["H",{"$f":"B290+1","v":87},"FM95: 328-ELB: 3x28W LLB",{"$nulls":7},"No",{"$f":"$R$1*5","v":50}]
[null,null,"DECORATIVE COMMERCIAL LUMINAIRES"]
[null,null,"COMMERCIAL APPLICATIONS"]
[null,null,"LED PANELS"]
[null,null,"A high end honeycomb LED panel, with a PMMA prism diffuser."]
[null,null,"The diffuser to be manufactured with optical grade MMA single"]
[null,null,"crystal."]
[null,null,"The panels have a UGR <19 with a lumen package of >100 lm /W. "]
[null,null,"Complete with 5A plugtop and 3m cabtyre"]
[null,null,"RECESSED MOUNTED"]
[null,null,"The luminaires shall be as per Genesis One or equal approved"]
[null,null,"2 FOOT (600mm length):"]
["H",{"$f":"B293+1","v":88},"Honeycomb:  600 x 600, 30W, 3000 lm",{"$nulls":7},"No",{"$f":"$R$1*5","v":50}]
["H",{"$f":"B305+1","v":89},"Honeycomb:  600 x 600, 40W, 4000 lm",{"$nulls":7},"No",50]
["H",{"$f":"B306+1","v":90},"Honeycomb:  600 x 600, 48W, 5000 lm",{"$nulls":7},"No",50]
[]
[null,null,"Carried to Collection Page 48 EE"]
[null,"Item","Description",{"$nulls":7},"Unit","Qty","Supply & Deliver Rate","Install Rate","Amount"]
[null,null,"4 FOOT (1200mm length):"]
["H",{"$f":"B307+1","v":91},"Honeycomb:  1200 x 300, 40W, 4000 lm",{"$nulls":7},"No",{"$f":"$R$1*5","v":50}]
["H",{"$f":"B312+1","v":92},"Honeycomb:  1200 x 300, 54W, 5400 lm",{"$nulls":7},"No",50]
["H",{"$f":"B313+1","v":93},"Honeycomb:  1200 x 600, 50W, 5000 lm",{"$nulls":7},"No",50]
["H",{"$f":"B314+1","v":94},"Honeycomb:  1200 x 600, 60W, 6000 lm",{"$nulls":7},"No",50]
["H",{"$f":"B315+1","v":95},"Honeycomb:  1200 x 600, 72W, 7200 lm",{"$nulls":7},"No",50]
[null,null,"5 FOOT (1500mm length):"]
["H",{"$f":"B316+1","v":96},"Honeycomb:  1500 x 500, 60W, 6000 lm",{"$nulls":7},"No",{"$f":"$R$1*5","v":50}]
["H",{"$f":"B318+1","v":97},"Honeycomb:  1500 x 500, 72W, 7200 lm",{"$nulls":7},"No",50]
[null,null,"SURFACE/SUSPENDED MOUNTED"]
[null,null,"2 FOOT (600mm length):"]
["H",{"$f":"B319+1","v":98},"Honeycomb:  600 x 600, 30W, 3000 lm",{"$nulls":7},"No",{"$f":"$R$1*5","v":50}]
["H",{"$f":"B322+1","v":99},"Honeycomb:  600 x 600, 40W, 4000 lm",{"$nulls":7},"No",50]
["H",{"$f":"B323+1","v":100},"Honeycomb:  600 x 600, 48W, 5000 lm",{"$nulls":7},"No",50]
[null,null,"4 FOOT (1200mm length):"]
["H",{"$f":"B324+1","v":101},"Honeycomb:  1200 x 300, 40W, 4000 lm",{"$nulls":7},"No",{"$f":"$R$1*5","v":50}]
["H",{"$f":"B326+1","v":102},"Honeycomb:  1200 x 300, 54W, 5400 lm",{"$nulls":7},"No",50]
["H",{"$f":"B327+1","v":103},"Honeycomb:  1200 x 600, 50W, 5000 lm",{"$nulls":7},"No",50]
["H",{"$f":"B328+1","v":104},"Honeycomb:  1200 x 600, 60W, 6000 lm",{"$nulls":7},"No",50]
["H",{"$f":"B329+1","v":105},"Honeycomb:  1200 x 600, 72W, 7200 lm",{"$nulls":7},"No",50]
[null,null,"5 FOOT (1500mm length):"]
["H",{"$f":"B330+1","v":106},"Honeycomb:  1500 x 500, 60W, 6000 lm",{"$nulls":7},"No",{"$f":"$R$1*5","v":50}]
["H",{"$f":"B332+1","v":107},"Honeycomb:  1500 x 500, 72W, 7200 lm",{"$nulls":7},"No",50]
[null,null,"HIGHBAY, LOWBAY & CANOPY"]
[null,null,"WAREHOUSE, INDUSTRIAL & FACTORY APPLICATIONS"]
[null,null,"HIGH/LOW BAY"]
[null,null,"Type: Surface or recessed type."]
[null,null,"Louvre: High performance MIR04 silver louvre"]
[null,null,"Beam: Narrow"]
[null,null,"Body: Rolled mild steel body and a structured silver epoxy powder"]
[null,null,"coated finish.  Complete with 3m cabtyre and 5A plugtop. IP 20."]
[null,null,"The luminaire shall be as per Lascon or equal approved"]
[null,null,"T5"]
[null,null,"4 FOOT (1195mm length):"]
["H",{"$f":"B333+1","v":108},"S-BAY-454-ELB",{"$nulls":7},"No",{"$f":"$R$1*5","v":50}]
[]
[null,null,"Carried to Collection Page 48 EE"]
[null,"Item","Description",{"$nulls":7},"Unit","Qty","Supply & Deliver Rate","Install Rate","Amount"]
[null,null,"5 FOOT (1495mm length):"]
["H",{"$f":"B345+1","v":109},"S-BAY-480-ELB",{"$nulls":7},"No",{"$f":"$R$1*5","v":50}]
[null,null,"DIFFUSER"]
["H",{"$f":"B350+1","v":110},"Clear Diffuser for 4ft, T5 fiitings as above",{"$nulls":7},"No",{"$f":"$R$1*5","v":50}]
["H",{"$f":"B352+1","v":111},"Clear Diffuser for 5ft, T5 fiitings as above",{"$nulls":7},"No",50]
[null,null,"LED"]
[null,null,"4 FOOT (1195mm length):"]
["H",{"$f":"B353+1","v":112},"S-BAY-111-LED complete with diffuser",{"$nulls":7},"No",{"$f":"$R$1*5","v":50}]
["H",{"$f":"B356+1","v":113},"S-BAY-148-LED complete with diffuser",{"$nulls":7},"No",50]
[null,null,"HIGHBAY, LOWBAY & CANOPY"]
[null,null,"WAREHOUSE, INDUSTRIAL & FACTORY APPLICATIONS"]
[null,null,"HIGH/LOW BAY"]
[null,null,"Type: Surface."]
[null,null,"Diffuser: UV stabalised, self-extinguishing polycarbonate"]
[null,null,"Beam: Narrow"]
[null,null,"Body: Glass reinforced polyester (GRP), IP 65, MIRO 4 Refelectors,"]
[null,null,"Stainless steel latches, complete with mounting brackets"]
[null,null,"The luminaire shall be as per Lascon or equal approved"]
[null,null,"T5"]
[null,null,"4 FOOT (1330mm length):"]
["H",114,"C-BAY-454-ELB",{"$nulls":7},"No",{"$f":"$R$1*5","v":50}]
[null,null,"LED"]
["H",{"$f":"B369+1","v":115},"C-BAY-74-LED (80W) complete with diffuser",{"$nulls":7},"No",{"$f":"$R$1*5","v":50}]
["H",{"$f":"B371+1","v":116},"C-BAY-111-LED (120W) complete with diffuser",{"$nulls":7},"No",50]
["H",{"$f":"B372+1","v":117},"C-BAY-148-LED (160W) complete with diffuser",{"$nulls":7},"No",50]
[null,null,"CANOPY"]
[null,null,"Type: Surface or recessed type."]
[null,null,"Louvre: High performance MIR04 silver louvre"]
[null,null,"Beam: Narrow"]
[null,null,"Body: LM6 marine grade aluminium, chemically treated & epoxy "]
[null,null,"coated."]
[null,null,"Diffuser: Opal polycarbonate diffuser"]
[null,null,"Complete with 3m cabtyre and 5A plugtop"]
[null,null,"IP 65"]
[null,null,"LED"]
["H",118,"CAN-33W-LED (530x280mm)",{"$nulls":7},"No",{"$f":"$R$1*5","v":50}]
["H",{"$f":"B384+1","v":119},"CAN-67W-LED (530x280mm)",{"$nulls":7},"No",50]
[null,null,"FLOODLIGHTS"]
[null,null,"GENERAL & AREA LIGHTING"]
[null,null,"All floodlights to be complete with all lamps, mounting brackets,"]
[null,null,"fittings, fixtures and accessories required for the works."]
[null,null,"The fittings(HID) shall have separate control gear housing."]
[null,null,"All luminaires to be SANS approved."]
[null,null,"HIGH INTENSITY DISCHARGE"]
[null,null,"The luminaire shall be as per Genlux or equal approved."]
["H",{"$f":"B385+1","v":120},"Solar floodlight: Metal Halide 1000W",{"$nulls":7},"No",{"$f":"$R$1*5","v":50}]
["H",{"$f":"B394+1","v":121},"Solar floodlight: HPS 1000W",{"$nulls":7},"No",50]
["H",122,"Anthea floodlight: Metal Halide 50W, Wide Beam",{"$nulls":7},"No",50]
["H",123,"Anthea floodlight: Metal Halide 100W, Wide Beam",{"$nulls":7},"No",50]
["H",124,"Anthea floodlight: Metal Halide 150W, Wide Beam",{"$nulls":7},"No",50]
["H",125,"Anthea floodlight: Mercury Vapour 80W, Wide Beam",{"$nulls":7},"No",50]
[null,null,"Carried to Collection Page 48 EE"]
[null,"Item","Description",{"$nulls":7},"Unit","Qty","Supply & Deliver Rate","Install Rate","Amount"]
["H",{"$f":"B399+1","v":126},"Anthea floodlight: Mercury Vapour 125W, Wide Beam",{"$nulls":7},"No",{"$f":"$R$1*5","v":50}]
["H",127,"Anthea floodlight: High Pressure Sodium 70W, Wide Beam",{"$nulls":7},"No",50]
["H",128,"Anthea floodlight: High Pressure Sodium 100W, Wide B",{"$nulls":7},"No",50]
["H",129,"Anthea floodlight: High Pressure Sodium 125W, Wide B",{"$nulls":7},"No",50]
["H",130,"Anthea floodlight: High Pressure Sodium 150W, Wide B",{"$nulls":7},"No",50]
[null,null,"CFL"]
["H",{"$f":"B406+1","v":131},"Anthea floodlight: CFL 2x18W, Wide Beam",{"$nulls":7},"No",{"$f":"$R$1*5","v":50}]
["H",{"$f":"B408+1","v":132},"Anthea floodlight: CFL 2x26W, Wide Beam ",{"$nulls":7},"No",50]
[null,null,"HIGH INTENSITY DISCHARGE"]
["H",{"$f":"B409+1","v":133},"Odyssey floodlight: MH 250W, Wide Beam",{"$nulls":7},"No",{"$f":"$R$1*5","v":50}]
["H",{"$f":"B411+1","v":134},"Odyssey floodlight: MH 400W, Wide Beam",{"$nulls":7},"No",50]
["H",135,"Odyssey floodlight: MV 250W, Wide Beam",{"$nulls":7},"No",50]
["H",136,"Odyssey floodlight: HPS 150W, Wide Beam",{"$nulls":7},"No",50]
["H",137,"Odyssey floodlight: HPS 250W, Wide Beam",{"$nulls":7},"No",50]
["H",138,"Odyssey floodlight: HPS 400W, Wide Beam",{"$nulls":7},"No",50]
["H",139,"Odyssey floodlight: HPS 600W, Wide Beam",{"$nulls":7},"No",50]
[null,null,"LED"]
[null,null,"The luminaire shall be as per Lascon or equal approved."]
["H",{"$f":"B417+1","v":140},"L18-218W-LED",{"$nulls":7},"No",{"$f":"$R$1*5","v":50}]
["H",{"$f":"B420+1","v":141},"Pescara-33W-LED black",{"$nulls":7},"No",50]
["H",{"$f":"B421+1","v":142},"Pescara-67W-LED black",{"$nulls":7},"No",50]
["H",{"$f":"B422+1","v":143},"Genoa-35W-LED black",{"$nulls":7},"No",50]
[null,null,"DOWNLIGHTERS RECESSED TYPE"]
[null,null,"APPLICATION: GENERAL AREAS, OFFICE, "]
[null,null,"CONFERENCE ROOMS & CORRIDORS"]
[null,null,"ALL DOWNLIGHTERS TO BE COMPLETE WITH "]
[null,null,"5A PLUGTOP & 3m CABTYRE"]
[null,null,"The luminaire shall be as per Lascon or equal approved."]
[null,null,"CFL TYPE"]
[null,null,"FUTURA 1:"]
[null,null,"DIMENSION: 210mm dia x 170mm height"]
["H",{"$f":"B423+1","v":144},"FUT1 - 113 - ELB, 1x13W",{"$nulls":7},"No",{"$f":"$R$1*5","v":50}]
["H",{"$f":"B433+1","v":145},"FUT1 - 118 - ELB, 1x18W",{"$nulls":7},"No",50]
[null,null,"ACCESSORIES"]
["H",{"$f":"B434+1","v":146},"Decorative Flush glass accessory for the above fitting",{"$nulls":7},"No",{"$f":"$R$1*5","v":50}]
["H",{"$f":"B436+1","v":147},"Decorative dropped glass accessory for the above fitting",{"$nulls":7},"No",50]
[null,null,"Carried to Collection Page 48 EE"]
[null,"Item","Description",{"$nulls":7},"Unit","Qty","Supply & Deliver Rate","Install Rate","Amount"]
[null,null,"FUTURA 2:"]
[null,null,"DIMENSION: 240mm dia x 170mm height"]
["H",{"$f":"B437+1","v":148},"FUT2 - 218 - ELB, 2x18W",{"$nulls":7},"No",{"$f":"$R$1*5","v":50}]
["H",{"$f":"B442+1","v":149},"FUT2 - 226 - ELB, 2x26W",{"$nulls":7},"No",50]
[null,null,"ACCESSORIES"]
["H",{"$f":"B443+1","v":150},"Decorative Flush glass accessory for the above fitting",{"$nulls":7},"No",{"$f":"$R$1*5","v":50}]
["H",{"$f":"B445+1","v":151},"Decorative dropped glass accessory for the above fitting",{"$nulls":7},"No",50]
[null,null,"FUTURA 3:"]
[null,null,"DIMENSION: 240mm dia x 170mm height"]
["H",{"$f":"B446+1","v":152},"FUT3 - 213 - ELB, 2x13W complete with flush glass",{"$nulls":7},"No",{"$f":"$R$1*5","v":50}]
["H",{"$f":"B449+1","v":153},"FUT3 - 218 - ELB, 2x18W complete with flush glass",{"$nulls":7},"No",50]
[null,null,"HIGH INTENSITY DISCHARGE LAMP"]
[null,null,"FUTURA 4:"]
[null,null,"DIMENSION: 240mm dia x 170mm height"]
["H",{"$f":"B450+1","v":154},"FUT4 - 70 - ELB, 1x70W complete with flush glass",{"$nulls":7},"No",{"$f":"$R$1*5","v":50}]
[null,null,"FUTURA 5:"]
[null,null,"DIMENSION: 174mm dia x 162mm height"]
["H",{"$f":"B454+1","v":155},"FUT5 - 35 - ELB, 1x35W complete with flush glass",{"$nulls":7},"No",{"$f":"$R$1*5","v":50}]
["H",{"$f":"B457+1","v":156},"FUT5 - 70 - ELB, 1x70W complete with flush glass",{"$nulls":7},"No",50]
[null,null,"LED"]
[null,null,"FUTURA 6:"]
[null,null,"DIMENSION: 46mm dia x 16.5mm height"]
["H",{"$f":"B458+1","v":157},"FUT6 - 1W - LED complete with silver trim",{"$nulls":7},"No",{"$f":"$R$1*5","v":50}]
["H",{"$f":"B462+1","v":158},"FUT6 - 3W - LED complete with silver trim",{"$nulls":7},"No",50]
[null,null,"FUTURA 7:"]
[null,null,"DIMENSION: 68mm dia x 64mm height"]
["H",{"$f":"B463+1","v":159},"FUT7-10.5W- LED-830 complete with silver trim",{"$nulls":7},"No",{"$f":"$R$1*5","v":50}]
["H",{"$f":"B466+1","v":160},"FUT7-10.5W- LED-840 complete with silver trim",{"$nulls":7},"No",50]
[null,null,"FUTURA 8:"]
[null,null,"DIMENSION: 95mm dia x 87mm height"]
["H",{"$f":"B467+1","v":161},"FUT8-10.5W- LED-830 complete with silver trim",{"$nulls":7},"No",{"$f":"$R$1*5","v":50}]
["H",{"$f":"B470+1","v":162},"FUT8-10.5W- LED-840 complete with silver trim",{"$nulls":7},"No",50]
[null,null,"APPLICATION: COVER LIGHTING, RETAIL "]
[null,null,"LIGHTING, STORAGE ROOMS, PARKING GARAGES"]
[null,null,"The luminaires shall be as per Lascon or equal approved."]
[]
[null,null,"Carried to Collection Page 48 EE"]
[null,"Item","Description",{"$nulls":7},"Unit","Qty","Supply & Deliver Rate","Install Rate","Amount"]
[null,null,"FUTURA 9:"]
[null,null,"DIMENSION: 140mm dia x 120mm height"]
["H",{"$f":"B471+1","v":163},"FUT9-17W- LED complete with silver trim",{"$nulls":7},"No",{"$f":"$R$1*5","v":50}]
[null,null,"FUTURA 10:"]
[null,null,"DIMENSION: 190mm dia x 135mm height"]
["H",{"$f":"B480+1","v":164},"FUT9-23W- LED complete with silver trim",{"$nulls":7},"No",{"$f":"$R$1*5","v":50}]
["H",{"$f":"B483+1","v":165},"FUT9-38W- LED complete with silver trim",{"$nulls":7},"No",50]
[]
[null,null,"EMERGENCY LIGHTING"]
[null,null,"Emergency luminaires to be constructed from rolled mild"]
[null,null,"steel body with a white epoxy coated finish and frosted"]
[null,null,"prismatic diffuser. The luminaire shall have snap on"]
[null,null,"injection moulded plastic end caps. "]
[null,null,"The luminaire shall be of the maintained emergency type"]
[null,null,"with 2.6hrs of emergency duration and 40% light output"]
[null,null,"in emergency mode. The unit shall be complete with"]
[null,null,"pictogram pack (1 x running man left, 1 x running man right,"]
[null,null,"1 x running down and 1 x EXIT pictogram)"]
[null,null,"The luminaires shall be complete with all necessary fittings,"]
[null,null,"fixtures and accessories required for the works."]
[null,null,"The luminaires shall be SABS approved."]
[null,null,"The luminaires shall be as per Lascon or equal approved"]
["H",{"$f":"B484+1","v":166},"LILI-1x8-ELB (L=420mm,W=208mm, H=77mm)"]
[null,null,"complete with battery backup and pictogram pack",{"$nulls":7},"No",{"$f":"$R$1*5","v":50}]
[null,null,"The luminaire shall be constucted of a fibreglass frame,"]
[null," ","toughened glass lens, galvanised hanging bolts and electronic"]
[null,null,"control gear."]
[null,null,"The luminaire shall be of the maintained emergency type"]
[null,null,"with 2.6hrs of emergency duration and 40% light output"]
[null,null,"in emergency mode. The unit shall be complete with"]
[null,null,"pictogram pack (1 x running man left, 1 x running man right,"]
[null,null,"1 x running down and 1 x EXIT pictogram  - Green on white)"]
[null,null,"The luminaires shall be SABS approved."]
[]
[]
[null,null,"Carried to Collection Page 48 EE"]
[null,"Item","Description",{"$nulls":7},"Unit","Qty","Supply & Deliver Rate","Install Rate","Amount"]
[null,null,"The luminaires shall be as per Lascon or equal approved"]
[null,null,"WALL MOUNTED "]
[null,null,"MAINTAINED"]
["H",167,"E10-2x9-EMG (L=310mm,W=310mm, H=65mm)"]
[null,null,"complete with battery backup and pictogram pack -"]
[null,null,"Maintained version",{"$nulls":7},"No",{"$f":"$R$1*5","v":50}]
[]
[null,null,"CEILING MOUNTED"]
[null,null,"SINGLE SIDED"]
[null,null,"MAINTAINED"]
["H",168,"E10-2x9-EMG (L=310mm,W=310mm, H=65mm)"]
[null,null,"complete with battery backup and pictogram pack -"]
[null,null,"Maintained version - Ceiling - Single sided",{"$nulls":7},"No",{"$f":"$R$1*5","v":50}]
[]
[null,null,"DOUBLE SIDED"]
[null,null,"MAINTAINED"]
["H",{"$f":"B525+1","v":169},"E10-2x9-EMG (L=310mm,W=310mm, H=65mm)"]
[null,null,"complete with battery backup and pictogram pack -"]
[null,null,"Maintained version - Ceiling - Double sided",{"$nulls":7},"No",{"$f":"$R$1*5","v":50}]
[]
[null,null,"SINGLE SIDED"]
[null,null,"NON - MAINTAINED"]
["H",{"$f":"B531+1","v":170},"E10-2x9-EMG (L=310mm,W=310mm, H=65mm)"]
[null,null,"complete with battery backup and pictogram pack -"]
[null,null,"Non-Maintained version - Ceiling - Single sided",{"$nulls":7},"No",{"$f":"$R$1*5","v":50}]
[]
[null,null,"DOUBLE SIDED"]
[null,null,"NON - MAINTAINED"]
["H",{"$f":"B537+1","v":171},"E10-2x9-EMG (L=310mm,W=310mm, H=65mm)"]
[null,null,"complete with battery backup and pictogram pack -"]
[null,null,"Non-Maintained version - Ceiling - Single sided",{"$nulls":7},"No",{"$f":"$R$1*5","v":50}]
[]
[]
[]
[null,null,"Carried to Collection Page 48 EE"]
[null,"Item","Description",{"$nulls":11},"Amount"]
[null,null,"ELECTRICAL WORKS"]
[null,null,"BILL OF QUANTITIES: BILL NO 8 OF 19"]
[]
[null,null,"COLLECTION"]
[null,null,"LUMINAIRES"]
[]
[null,null,"Page 34 "]
[null,null,"Page 35 "]
[null,null,"Page 36 "]
[null,null,"Page 37 "]
[null,null,"Page 38 "]
[null,null,"Page 39 "]
[null,null,"Page 40 "]
[null,null,"Page 41 "]
[null,null,"Page 42 "]
[null,null,"Page 43 "]
[null,null,"Page 44 "]
[null,null,"Page 45 "]
[null,null,"Page 46 "]
[null,null,"Page 47 "]
{"$rows_empty":12}
[null,null,"LUMINAIRES: "]
[null,null,"TOTAL CARRIED TO BILL SUMMARY Page "]

{"sheet":"BILL09","index":9,"n_rows":384,"n_cols":18,"rows_kept":384}
[{"$nulls":15},{"v":1.077,"d":"107.70%"},null,{"v":10,"d":"1000%"}]
[null,"Item","Description",{"$nulls":7},"Unit","Qty","Supply & Deliver Rate","Install Rate"," Amount"]
[null,null,"ELECTRICAL WORKS"]
["I",null,"BILL OF QUANTITIES: BILL NO 9 OF 19"]
[null,null,"LAMPS"]
[null,null,"COMPACT FLUORESCENT LAMPS:"]
[null,null,"WITH INTEGRATED CONTROL GEAR"]
[null,null,"The lamps shall be complete with integrated control gear."]
[null,null,"The lamps shall be rated 220-240V, 50Hz."]
[null,null,"The lamps to be Colour rendering index Ra ≥80, and"]
[null,null,"available in 2700K, 4000K and 6500K. "]
[null,null,"The colour temperature shall be confirmed on site."]
[null,null,"The lamps to be provided in either E14 or E27 types"]
[null,null,"dependant upon the existing or new fitting lampholder."]
[null,null,"The lamps shall have an average life of 10000hrs."]
[null,null,"The lamps shall be as per Osram or Philips or equal approved."]
[]
[null,null,"STICK TYPE"]
["I",1,"DULUX STICK 8W",{"$nulls":7},"No",{"$f":"$R$1*5","v":50}]
["I",{"$f":"B19+1","v":2},"DULUX STICK 11W",{"$nulls":7},"No",{"$f":"$R$1*5","v":50}]
["I",{"$f":"B20+1","v":3},"DULUX STICK 15W",{"$nulls":7},"No",{"$f":"$R$1*5","v":50}]
["I",{"$f":"B21+1","v":4},"DULUX STICK 20W",{"$nulls":7},"No",{"$f":"$R$1*5","v":50}]
["I",{"$f":"B22+1","v":5},"DULUX STICK 23W",{"$nulls":7},"No",{"$f":"$R$1*5","v":50}]
[]
[null,null,"TWIST(SPIRAL) TYPE"]
["I",{"$f":"B23+1","v":6},"DULUX TWIST 9W",{"$nulls":7},"No",{"$f":"$R$1*5","v":50}]
["I",{"$f":"B26+1","v":7},"DULUX TWIST 12W",{"$nulls":7},"No",{"$f":"$R$1*5","v":50}]
["I",{"$f":"B27+1","v":8},"DULUX TWIST 15W",{"$nulls":7},"No",{"$f":"$R$1*5","v":50}]
["I",{"$f":"B28+1","v":9},"DULUX TWIST 20W",{"$nulls":7},"No",{"$f":"$R$1*5","v":50}]
["I",{"$f":"B29+1","v":10},"DULUX TWIST 23W",{"$nulls":7},"No",{"$f":"$R$1*5","v":50}]
[null,null,"CIRCULAR TYPE"]
["I",{"$f":"B30+1","v":11},"CIRCOLUX 24W",{"$nulls":7},"No",{"$f":"$R$1*5","v":50}]
[]
[null,null,"CLASSIC BULB SHAPE TYPE"]
["I",{"$f":"B32+1","v":12},"DULUX, CLA 11W",{"$nulls":7},"No",{"$f":"$R$1*5","v":50}]
["I",{"$f":"B35+1","v":13},"DULUX, CLA 15W",{"$nulls":7},"No",{"$f":"$R$1*5","v":50}]
["I",{"$f":"B36+1","v":14},"DULUX, CLA 20W",{"$nulls":7},"No",{"$f":"$R$1*5","v":50}]
[null,null,"CANDLE SHAPE TYPE"]
["I",{"$f":"B37+1","v":15},"DULUX, CLB 6W",{"$nulls":7},"No",{"$f":"$R$1*5","v":50}]
["I",{"$f":"B39+1","v":16},"DULUX, CLB 9W",{"$nulls":7},"No",{"$f":"$R$1*5","v":50}]
[]
[]
[null,null,"Carried to Collection Page 57 EE"]
[null,"Item","Description",{"$nulls":7},"Unit","Qty","Supply & Deliver Rate","Install Rate","Amount"]
[null,null,"MINI BULLET SHAPE TYPE"]
["I",{"$f":"B40+1","v":17},"DULUX, CL P 6W",{"$nulls":7},"No",{"$f":"$R$1*5","v":50}]
["I",{"$f":"B46+1","v":18},"DULUX, CL P 9W",{"$nulls":7},"No",{"$f":"$R$1*5","v":50}]
[]
[null,null,"GLOBE SHAPE TYPE"]
["I",{"$f":"B47+1","v":19},"DULUX, GL  15W",{"$nulls":7},"No",{"$f":"$R$1*5","v":50}]
["I",{"$f":"B50+1","v":20},"DULUX, GL  20W",{"$nulls":7},"No",{"$f":"$R$1*5","v":50}]
[]
[]
[null,null,"WITHOUT INTEGRATED CONTROL GEAR"]
[null,null,"The lamps shall be suitable for operation on conventional"]
[null,null,"or electronic control gear as required."]
[null,null,"The lamps shall be rated 220-240V, 50Hz."]
[null,null,"The lamps to be Colour rendering index Ra ≥80, and"]
[null,null,"available in 2700K, 4000K and 6500K. "]
[null,null,"The colour temperature shall be confirmed on site."]
[null,null,"The lamps shall have an average life of 10000hrs."]
[null,null,"The lamps shall be as per Osram or Philips or equal approved."]
[]
[null,null,"T PLUS"]
[null,null,"CFLni, 3 tubes, with 2-pin base for CCG operation"]
["I",{"$f":"B51+1","v":21},"DULUX T PLUS, 13W",{"$nulls":7},"No",{"$f":"$R$1*5","v":50}]
["I",{"$f":"B66+1","v":22},"DULUX T PLUS, 18W",{"$nulls":7},"No",{"$f":"$R$1*5","v":50}]
["I",{"$f":"B67+1","v":23},"DULUX T PLUS, 26W",{"$nulls":7},"No",{"$f":"$R$1*5","v":50}]
[]
[null,null,"T/E PLUS"]
[null,null,"CFLni, 3 tubes, with 4-pin base for ECG operation"]
["I",{"$f":"B68+1","v":24},"DULUX T/E PLUS, 13W",{"$nulls":7},"No",{"$f":"$R$1*5","v":50}]
["I",{"$f":"B72+1","v":25},"DULUX T/E PLUS, 18W",{"$nulls":7},"No",{"$f":"$R$1*5","v":50}]
["I",{"$f":"B73+1","v":26},"DULUX T/E PLUS, 26W",{"$nulls":7},"No",{"$f":"$R$1*5","v":50}]
["I",{"$f":"B74+1","v":27},"DULUX T/E PLUS, 32W",{"$nulls":7},"No",{"$f":"$R$1*5","v":50}]
["I",{"$f":"B75+1","v":28},"DULUX T/E PLUS, 42W",{"$nulls":7},"No",{"$f":"$R$1*5","v":50}]
[]
[null,null,"T/E CONSTANT"]
[null,null,"CFLni, 3 tubes, with 4-pin base for ECG operation"]
["I",{"$f":"B76+1","v":29},"DULUX T/E CONSTANT, 26W",{"$nulls":7},"No",{"$f":"$R$1*5","v":50}]
["I",{"$f":"B80+1","v":30},"DULUX T/E CONSTANT, 32W",{"$nulls":7},"No",{"$f":"$R$1*5","v":50}]
["I",{"$f":"B81+1","v":31},"DULUX T/E CONSTANT, 42W",{"$nulls":7},"No",{"$f":"$R$1*5","v":50}]
[]
[null,null,"Carried to Collection Page 57 EE"]
[null,"Item","Description",{"$nulls":7},"Unit","Qty","Supply & Deliver Rate","Install Rate","Amount"]
[null,null,"T/E XT"]
[null,null,"CFLni, 3 tubes, with 4-pin base for ECG operation"]
["I",{"$f":"B82+1","v":32},"DULUX T/E, XT, 32W",{"$nulls":7},"No",{"$f":"$R$1*5","v":50}]
["I",{"$f":"B88+1","v":33},"DULUX T/E, XT, 42W",{"$nulls":7},"No",{"$f":"$R$1*5","v":50}]
[]
[null,null,"D"]
[null,null,"CFLni, 3 tubes, with 2-pin base for ECG operation"]
["I",{"$f":"B89+1","v":34},"DULUX D, 10W",{"$nulls":7},"No",{"$f":"$R$1*5","v":50}]
["I",{"$f":"B93+1","v":35},"DULUX D, 13W",{"$nulls":7},"No",{"$f":"$R$1*5","v":50}]
["I",{"$f":"B94+1","v":36},"DULUX D, 18W",{"$nulls":7},"No",{"$f":"$R$1*5","v":50}]
["I",{"$f":"B95+1","v":37},"DULUX D, 26W",{"$nulls":7},"No",{"$f":"$R$1*5","v":50}]
[]
[null,null,"D/E"]
[null,null,"CFLni, 2 tubes, with 4-pin base for ECG operation"]
["I",{"$f":"B96+1","v":38},"DULUX D/E, 10W",{"$nulls":7},"No",{"$f":"$R$1*5","v":50}]
["I",{"$f":"B100+1","v":39},"DULUX D/E, 13W",{"$nulls":7},"No",{"$f":"$R$1*5","v":50}]
["I",{"$f":"B101+1","v":40},"DULUX D/E, 18W",{"$nulls":7},"No",{"$f":"$R$1*5","v":50}]
["I",{"$f":"B102+1","v":41},"DULUX D/E, 26W",{"$nulls":7},"No",{"$f":"$R$1*5","v":50}]
[]
[null,null,"S"]
[null,null,"Short CFLni, with 2-pin base for CCG operation"]
["I",{"$f":"B103+1","v":42},"DULUX S, 5W",{"$nulls":7},"No",{"$f":"$R$1*5","v":50}]
["I",{"$f":"B107+1","v":43},"DULUX S, 7W",{"$nulls":7},"No",{"$f":"$R$1*5","v":50}]
["I",{"$f":"B108+1","v":44},"DULUX S, 9W",{"$nulls":7},"No",{"$f":"$R$1*5","v":50}]
["I",{"$f":"B109+1","v":45},"DULUX S, 11W",{"$nulls":7},"No",{"$f":"$R$1*5","v":50}]
[]
[null,null,"S/E"]
[null,null,"Short CFLni, with 4-pin base for ECG operation"]
["I",{"$f":"B110+1","v":46},"DULUX S/E, 7W",{"$nulls":7},"No",{"$f":"$R$1*5","v":50}]
["I",{"$f":"B114+1","v":47},"DULUX S/E, 9W",{"$nulls":7},"No",{"$f":"$R$1*5","v":50}]
["I",{"$f":"B115+1","v":48},"DULUX S/E, 11W",{"$nulls":7},"No",{"$f":"$R$1*5","v":50}]
[null,null,"LUMILUX"]
[null,null,"CFLni, with 4-pin base 2G11 for ECG/CCG operation"]
["I",{"$f":"B116+1","v":49},"DULUX L, 18W",{"$nulls":7},"No",{"$f":"$R$1*5","v":50}]
["I",{"$f":"B119+1","v":50},"DULUX L, 24W",{"$nulls":7},"No",50]
["I",{"$f":"B120+1","v":51},"DULUX L, 36W",{"$nulls":7},"No",50]
["I",{"$f":"B121+1","v":52},"DULUX L, 40W",{"$nulls":7},"No",50]
["I",{"$f":"B122+1","v":53},"DULUX L, 55W",{"$nulls":7},"No",50]
["I",{"$f":"B123+1","v":54},"DULUX L, 80W",{"$nulls":7},"No",50]
[]
[null,null,"Carried to Collection Page 57 EE"]
[null,"Item","Description",{"$nulls":7},"Unit","Qty","Supply & Deliver Rate","Install Rate","Amount"]
[null,null,"CFL SQUARE: 2D TYPE: 2 PIN"]
[null,null,"Square CFLni, with 2-pin base GR8 base for"]
[null,null,"CCG operation"]
["I",{"$f":"B124+1","v":55},"Square, 16W",{"$nulls":7},"No",{"$f":"$R$1*5","v":50}]
["I",{"$f":"B131+1","v":56},"Square, 28W",{"$nulls":7},"No",{"$f":"$R$1*5","v":50}]
[]
[null,null,"CFL SQUARE: 2D TYPE: 4 PIN"]
[null,null,"Square CFLni, with 4-pin base GR8 base for"]
[null,null,"ECG/CCG operation"]
["I",{"$f":"B132+1","v":57},"Square, 16W",{"$nulls":7},"No",{"$f":"$R$1*5","v":50}]
["I",{"$f":"B137+1","v":58},"Square, 28W",{"$nulls":7},"No",{"$f":"$R$1*5","v":50}]
["I",{"$f":"B138+1","v":59},"Square, 38W",{"$nulls":7},"No",{"$f":"$R$1*5","v":50}]
[null,null,"TUBULAR FLUORESCENT LAMPS"]
[null,null,"The lamps shall be rated 220-240V, 50Hz."]
[null,null,"The lamps to be Colour rendering index Ra ≥80, and"]
[null,null,"available in 2700K, 3500K, 4000K and 6500K. "]
[null,null,"The colour temperature shall be confirmed on site."]
[null,null,"The lamps shall have an average life of 10000hrs."]
[null,null,"The lamps shall be as per Osram or Philips or equal approved"]
[]
[null,null,"T5"]
[null,null,"LUMILUX HE"]
[null,null,"Tubular fluorescent lamp 16mm, high efficiency,"]
[null,null,"with G5 base"]
["I",{"$f":"B139+1","v":60},"HE 14W",{"$nulls":7},"No",{"$f":"$R$1*5","v":50}]
["I",{"$f":"B152+1","v":61},"HE 21W",{"$nulls":7},"No",{"$f":"$R$1*5","v":50}]
["I",{"$f":"B153+1","v":62},"HE 28W",{"$nulls":7},"No",{"$f":"$R$1*5","v":50}]
["I",{"$f":"B154+1","v":63},"HE 35W",{"$nulls":7},"No",{"$f":"$R$1*5","v":50}]
[]
[null,null,"LUMILUX HO"]
[null,null,"Tubular fluorescent lamp 16mm, high efficiency,"]
[null,null,"with G5 base"]
["I",{"$f":"B155+1","v":64},"HO 24W",{"$nulls":7},"No",{"$f":"$R$1*5","v":50}]
["I",{"$f":"B160+1","v":65},"HO 39W",{"$nulls":7},"No",{"$f":"$R$1*5","v":50}]
["I",{"$f":"B161+1","v":66},"HO 49W",{"$nulls":7},"No",{"$f":"$R$1*5","v":50}]
["I",{"$f":"B162+1","v":67},"HO 54W",{"$nulls":7},"No",{"$f":"$R$1*5","v":50}]
["I",{"$f":"B163+1","v":68},"HO 80W",{"$nulls":7},"No",{"$f":"$R$1*5","v":50}]
[]
[]
[null,null,"Carried to Collection Page 57 EE"]
[null,"Item","Description",{"$nulls":7},"Unit","Qty","Supply & Deliver Rate","Install Rate","Amount"]
[null,null,"LUMILUX FC"]
[null,null,"Circular fluorescent lamp, 16mm, with 2GX13 base"]
["I",{"$f":"B164+1","v":69},"FC 22W",{"$nulls":7},"No",{"$f":"$R$1*5","v":50}]
["I",{"$f":"B171+1","v":70},"FC 40W",{"$nulls":7},"No",{"$f":"$R$1*5","v":50}]
["I",{"$f":"B172+1","v":71},"FC 55W",{"$nulls":7},"No",{"$f":"$R$1*5","v":50}]
[null,null,"T8"]
[null,null,"LUMILUX ES"]
[null,null,"Tubular fluorescent lamp 26mm, high efficiency,"]
[null,null,"with G13 base, energy saver"]
["I",{"$f":"B173+1","v":72},"L 16W",{"$nulls":7},"No",{"$f":"$R$1*5","v":50}]
["I",{"$f":"B178+1","v":73},"L 32W",{"$nulls":7},"No",{"$f":"$R$1*5","v":50}]
["I",{"$f":"B179+1","v":74},"L 51W",{"$nulls":7},"No",{"$f":"$R$1*5","v":50}]
[null,null,"T9"]
[null,null,"LUMILUX T9 C"]
[null,null,"Circular fluorescent lamp 29mm, with G10q base"]
["I",{"$f":"B180+1","v":75},"L 22W",{"$nulls":7},"No",{"$f":"$R$1*5","v":50}]
["I",{"$f":"B184+1","v":76},"L 32W",{"$nulls":7},"No",{"$f":"$R$1*5","v":50}]
["I",{"$f":"B185+1","v":77},"L 40W",{"$nulls":7},"No",{"$f":"$R$1*5","v":50}]
[null,null,"LED LAMPS"]
[null,null,"The lamps to be Colour rendering index Ra ≥80, and"]
[null,null,"available in 2700K or 4000K. "]
[null,null,"The colour temperature shall be confirmed on site."]
[null,null,"The lamps shall have an average life of 15000hrs."]
[null,null,"The lamps shall be as per Osram or Philips or equal approved"]
[null,null,"PARATHOM PAR 16"]
[null,null,"LED reflector lamps with retrofit plug base"]
["I",{"$f":"B186+1","v":78},"Parathom PAR 16, 2.6W",{"$nulls":7},"No",{"$f":"$R$1*5","v":50}]
["I",{"$f":"B195+1","v":79},"Parathom PAR 16, 4.3W",{"$nulls":7},"No",{"$f":"$R$1*5","v":50}]
["I",{"$f":"B196+1","v":80},"Parathom PAR 16, 6.9W",{"$nulls":7},"No",{"$f":"$R$1*5","v":50}]
[null,null,"PARATHOM PRO PAR 16"]
[null,null,"Dimmable LED reflector lamps with retrofit plug base"]
["I",{"$f":"B197+1","v":81},"Parathom Pro, PAR 16, 4.6W",{"$nulls":7},"No",{"$f":"$R$1*5","v":50}]
["I",{"$f":"B200+1","v":82},"Parathom Pro, PAR 16, 6.1W",{"$nulls":7},"No",{"$f":"$R$1*5","v":50}]
[null,null,"PARATHOM MR 16"]
[null,null,"Low-voltage LED reflector lamps with retrofit plug base"]
["I",{"$f":"B201+1","v":83},"MR 16, 2.9W",{"$nulls":7},"No",{"$f":"$R$1*5","v":50}]
["I",{"$f":"B204+1","v":84},"MR 16, 4.6W",{"$nulls":7},"No",{"$f":"$R$1*5","v":50}]
["I",{"$f":"B205+1","v":85},"MR 16, 7.2W",{"$nulls":7},"No",{"$f":"$R$1*5","v":50}]
[]
[null,null,"Carried to Collection Page 57 EE"]
[null,"Item","Description",{"$nulls":7},"Unit","Qty","Supply & Deliver Rate","Install Rate","Amount"]
[null,null,"PARATHOM MR 11 12V"]
[null,null,"Low-voltage LED reflector lamps with retrofit plug base"]
["I",{"$f":"B206+1","v":86},"MR 11, 2.3W",{"$nulls":7},"No",{"$f":"$R$1*5","v":50}]
[]
[null,null,"PARATHOM Advanced MR 11 12V"]
[null,null,"Dimmable Low-voltage LED reflector lamps with retrofit"]
[null,null,"plug base"]
["I",{"$f":"B212+1","v":87},"ADV MR 11, 3.1W",{"$nulls":7},"No",{"$f":"$R$1*5","v":50}]
[]
[null,null,"PARATHOM Advanced PAR 20"]
[null,null,"Dimmable LED reflector lamps with retrofit screw base"]
["I",{"$f":"B217+1","v":88},"ADV PAR 20, 4.2W",{"$nulls":7},"No",{"$f":"$R$1*5","v":50}]
[]
[null,null,"PARATHOM Advanced PAR 30"]
[null,null,"Dimmable LED reflector lamps with retrofit screw base"]
["I",{"$f":"B221+1","v":89},"ADV PAR 30, 6.7W",{"$nulls":7},"No",{"$f":"$R$1*5","v":50}]
[]
[null,null,"PARATHOM CLASSIC A"]
[null,null,"LED lamps, classic bulb shape"]
["I",{"$f":"B225+1","v":90},"Parathom CL A, 5W",{"$nulls":7},"No",{"$f":"$R$1*5","v":50}]
["I",{"$f":"B229+1","v":91},"Parathom CL A, 8W",{"$nulls":7},"No",{"$f":"$R$1*5","v":50}]
["I",{"$f":"B230+1","v":92},"Parathom CL A, 9W",{"$nulls":7},"No",{"$f":"$R$1*5","v":50}]
["I",{"$f":"B231+1","v":93},"Parathom CL A, 23W",{"$nulls":7},"No",{"$f":"$R$1*5","v":50}]
[]
[null,null,"PARATHOM ADVANCED CLASSIC A"]
[null,null,"Dimmable LED lamps, classic bulb shape"]
["I",{"$f":"B232+1","v":94},"Parathom ADV CL A, 6W",{"$nulls":7},"No",{"$f":"$R$1*5","v":50}]
["I",{"$f":"B236+1","v":95},"Parathom ADV CL A, 9W",{"$nulls":7},"No",{"$f":"$R$1*5","v":50}]
["I",{"$f":"B237+1","v":96},"Parathom ADV CL A, 10W",{"$nulls":7},"No",{"$f":"$R$1*5","v":50}]
["I",{"$f":"B238+1","v":97},"Parathom ADV CL A, 14.4W",{"$nulls":7},"No",{"$f":"$R$1*5","v":50}]
["I",{"$f":"B239+1","v":98},"Parathom ADV CL A, 21W",{"$nulls":7},"No",{"$f":"$R$1*5","v":50}]
[]
[null,null,"PARATHOM CLASSIC B"]
[null,null,"LED lamps, classic mini-candle shape"]
["I",{"$f":"B240+1","v":99},"Parathom CL B, 3.3W",{"$nulls":7},"No",{"$f":"$R$1*5","v":50}]
["I",{"$f":"B244+1","v":100},"Parathom CL B, 5.7W",{"$nulls":7},"No",{"$f":"$R$1*5","v":50}]
[null,null,"PARATHOM ADVANCED CLASSIC B"]
[null,null,"Dimmable LED lamps, classic mini-candle shape"]
["I",{"$f":"B245+1","v":101},"Parathom ADV CL B, 6W",{"$nulls":7},"No",{"$f":"$R$1*5","v":50}]
[]
[null,null,"Carried to Collection Page 57 EE"]
[null,"Item","Description",{"$nulls":7},"Unit","Qty","Supply & Deliver Rate","Install Rate","Amount"]
[null,null,"LINEAR LED"]
[null,null,"SUBSTITUBE T8 VALUE EM"]
[null,null,"LED lamps, stick shaped, 27.5mm with G13 base"]
[null,null,"600mm"]
["I",{"$f":"B248+1","v":102},"ST8V, 8W",{"$nulls":7},"No",{"$f":"$R$1*5","v":50}]
[null,null,"1200mm"]
["I",{"$f":"B256+1","v":103},"ST8V, 17W",{"$nulls":7},"No",{"$f":"$R$1*5","v":50}]
[null,null,"1500mm"]
["I",{"$f":"B258+1","v":104},"ST8V, 20W",{"$nulls":7},"No",{"$f":"$R$1*5","v":50}]
[null,null,"SUBSTITUBE T8 ADVANCED UNIVERSAL"]
[null,null,"LED lamps, stick shaped, 27mm with G13 base"]
[null,null,"1200mm"]
["I",{"$f":"B260+1","v":105},"ST8AU, XYW",{"$nulls":7},"No",{"$f":"$R$1*5","v":50}]
[null,null,"1500mm"]
["I",{"$f":"B264+1","v":106},"ST8AU, XYW",{"$nulls":7},"No",{"$f":"$R$1*5","v":50}]
[null,null,"HIGH INTENSITY DISCHARGE"]
[null,null,"MERCURY VAPOUR"]
["I",{"$f":"B266+1","v":107},"50W, MV",{"$nulls":7},"No",{"$f":"$R$1*5","v":50}]
["I",{"$f":"B269+1","v":108},"80W, MV",{"$nulls":7},"No",{"$f":"$R$1*5","v":50}]
["I",{"$f":"B270+1","v":109},"125W, MV",{"$nulls":7},"No",{"$f":"$R$1*5","v":50}]
["I",{"$f":"B271+1","v":110},"250W, MV",{"$nulls":7},"No",{"$f":"$R$1*5","v":50}]
["I",{"$f":"B272+1","v":111},"400W, MV",{"$nulls":7},"No",{"$f":"$R$1*5","v":50}]
[null,null,"HIGH PRESSURE SODIUM"]
[null,null,"TUBULAR SINGLE SIDED"]
["I",{"$f":"B273+1","v":112},"50W",{"$nulls":7},"No",{"$f":"$R$1*5","v":50}]
["I",{"$f":"B276+1","v":113},"70W",{"$nulls":7},"No",50]
["I",114,"100W",{"$nulls":7},"No",50]
["I",115,"150W",{"$nulls":7},"No",50]
["I",116,"250W",{"$nulls":7},"No",50]
["I",117,"400W",{"$nulls":7},"No",50]
["I",118,"1000W",{"$nulls":7},"No",50]
[null,null,"ELLIPTICAL COATED SINGLE SIDED"]
["I",{"$f":"B282+1","v":119},"50W",{"$nulls":7},"No",{"$f":"$R$1*5","v":50}]
["I",{"$f":"B284+1","v":120},"70W",{"$nulls":7},"No",50]
["I",121,"100W",{"$nulls":7},"No",50]
["I",122,"150W",{"$nulls":7},"No",50]
["I",123,"250W",{"$nulls":7},"No",50]
["I",124,"400W",{"$nulls":7},"No",50]
["I",125,"1000W",{"$nulls":7},"No",50]
[]
[null,null,"Carried to Collection Page 57 EE"]
[null,"Item","Description",{"$nulls":7},"Unit","Qty","Supply & Deliver Rate","Install Rate","Amount"]
[null,null,"METAL HALIDE"]
[null,null,"CERAMIC METAL HALIDE:"]
[null,null,"SINGLE ENDED TUBULAR (CLEAR): HCI-T"]
["I",{"$f":"B290+1","v":126},"35W",{"$nulls":7},"No",{"$f":"$R$1*5","v":50}]
["I",{"$f":"B297+1","v":127},"70W",{"$nulls":7},"No",{"$f":"$R$1*5","v":50}]
["I",{"$f":"B298+1","v":128},"100W",{"$nulls":7},"No",{"$f":"$R$1*5","v":50}]
["I",{"$f":"B299+1","v":129},"150W",{"$nulls":7},"No",{"$f":"$R$1*5","v":50}]
[]
[null,null,"SINGLE ENDED TUBULAR (CLEAR): HCI-TC"]
["I",{"$f":"B300+1","v":130},"20W",{"$nulls":7},"No",{"$f":"$R$1*5","v":50}]
["I",{"$f":"B303+1","v":131},"35W",{"$nulls":7},"No",{"$f":"$R$1*5","v":50}]
["I",{"$f":"B304+1","v":132},"70W",{"$nulls":7},"No",{"$f":"$R$1*5","v":50}]
[]
[null,null,"SINGLE ENDED TUBULAR (CLEAR): HCI-TF"]
["I",{"$f":"B305+1","v":133},"20W",{"$nulls":7},"No",{"$f":"$R$1*5","v":50}]
["I",{"$f":"B308+1","v":134},"35W",{"$nulls":7},"No",{"$f":"$R$1*5","v":50}]
[]
[null,null,"DOUBLE ENDED TUBULAR (CLEAR): HCI-TS"]
["I",{"$f":"B309+1","v":135},"70W",{"$nulls":7},"No",{"$f":"$R$1*5","v":50}]
["I",{"$f":"B312+1","v":136},"150W",{"$nulls":7},"No",{"$f":"$R$1*5","v":50}]
["I",{"$f":"B313+1","v":137},"250W",{"$nulls":7},"No",{"$f":"$R$1*5","v":50}]
[]
[null,null,"QUARTZ METAL HALIDE"]
[null,null,"SINGLE ENDED TUBULAR (CLEAR): HQI-T"]
["I",{"$f":"B314+1","v":138},"250W",{"$nulls":7},"No",{"$f":"$R$1*5","v":50}]
["I",{"$f":"B318+1","v":139},"450W",{"$nulls":7},"No",{"$f":"$R$1*5","v":50}]
["I",{"$f":"B319+1","v":140},"1000W",{"$nulls":7},"No",{"$f":"$R$1*5","v":50}]
[]
[null,null,"SINGLE ENDED ELLIPTICAL COATED: HQI-E"]
["I",{"$f":"B320+1","v":141},"70W",{"$nulls":7},"No",{"$f":"$R$1*5","v":50}]
["I",{"$f":"B323+1","v":142},"100W",{"$nulls":7},"No",{"$f":"$R$1*5","v":50}]
["I",{"$f":"B324+1","v":143},"150W",{"$nulls":7},"No",{"$f":"$R$1*5","v":50}]
["I",{"$f":"B325+1","v":144},"250W",{"$nulls":7},"No",{"$f":"$R$1*5","v":50}]
["I",{"$f":"B326+1","v":145},"400W",{"$nulls":7},"No",{"$f":"$R$1*5","v":50}]
[]
[null,null,"DOUBLE ENDED TUBULAR CLEAR: HQI-TS"]
["I",{"$f":"B327+1","v":146},"1000W",{"$nulls":7},"No",{"$f":"$R$1*5","v":50}]
["I",{"$f":"B330+1","v":147},"2000W, short arc",{"$nulls":7},"No",{"$f":"$R$1*5","v":50}]
["I",{"$f":"B331+1","v":148},"2000W, long arc",{"$nulls":7},"No",{"$f":"$R$1*5","v":50}]
[]
["I",149,"To hire a Cherry picker to reach a minimum of 15m in height",{"$nulls":7},"per day",{"$f":"$R$1*5","v":50}]
[]
["I",150,"To erect scaffolding to a minimum height of 10m",{"$nulls":7},"per day",{"$f":"$R$1*5","v":50}]
[]
[null,null,"T8 TL-D LOW-PRESSURE MERCURY DISCHARGE LAMPS"]
[null,null,"WITH A TUBULAR 26mm ENVELOPE, G13 CAP BASE"]
["I",{"$f":"B336+1","v":151},"18W - 6200K, Cool Daylight",{"$nulls":7},"No",{"$f":"$R$1*1","v":10}]
["I",{"$f":"B340+1","v":152},"36W - 6200K, Cool Daylight",{"$nulls":7},"No",{"$f":"$R$1*1","v":10}]
["I",{"$f":"B341+1","v":153},"56W - 6200K, Cool Daylight",{"$nulls":7},"No",10]
[]
[null,null,"T5 TL-D LOW-PRESSURE MERCURY DISCHARGE LAMPS"]
[null,null,"WITH A TUBULAR 26mm ENVELOPE, G13 CAP BASE"]
["I",{"$f":"B342+1","v":154},"18W - 6200K, Cool Daylight",{"$nulls":7},"No",{"$f":"$R$1*1","v":10}]
["I",{"$f":"B346+1","v":155},"36W - 6200K, Cool Daylight",{"$nulls":7},"No",{"$f":"$R$1*1","v":10}]
["I",{"$f":"B347+1","v":156},"56W - 6200K, Cool Daylight",{"$nulls":7},"No",10]
[]
[]
[null,null,"Carried to Collection Page 57 EE"]
[null,"Item","Description",{"$nulls":11},"Amount"]
[null,null,"ELECTRICAL WORKS"]
[null,null,"BILL OF QUANTITIES: BILL NO 9 OF 19"]
[]
[null,null,"COLLECTION PAGE"]
[null,null,"LAMPS"]
[]
[null,null,"Page 49 "]
[null,null,"Page 50 "]
[null,null,"Page 51 "]
[null,null,"Page 52 "]
[null,null,"Page 53 "]
[null,null,"Page 54 "]
[null,null,"Page 55 "]
[null,null,"Page 56 "]
{"$rows_empty":17}
[null,null,"TOTAL CARRIED TO BILL SUMMARY Page"]

{"sheet":"BILL10","index":10,"n_rows":148,"n_cols":18,"rows_kept":148,"merged":[[0,1,0,14],[1,2,1,9],[4,2,4,9],[41,2,41,9],[80,2,80,9],[120,2,120,9],[124,2,124,9],[125,2,125,9],[146,2,146,9]]}
[{"$nulls":15},{"v":1.0761,"d":"108%"},null,{"v":10,"d":"1000%"}]
[null,"Item","Description",{"$nulls":7},"Unit","Qty","Supply & Deliver Rate","Install Rate"," Amount"]
[null,null,"ELECTRICAL WORKS"]
[null,null,"BILL OF QUANTITIES: BILL NO 10 OF 19"]
[null,null,"LUMINAIRE ACCESSORIES"]
["J",null,"LIGHT POLES"]
[null,null,"GALVANISED STEEL POLES:"]
[null,null,"Body: Galvanised steel"]
[null,null,"Mounting: Plinth Mounted or buried"]
[null,null,"Finish: Raw "]
[null,null,"Accessories: Access door complete with circuit breaker, gland"]
[null,null,"plate, wiring, etc."]
[null,null,"Features: Tapered reduction or a flat reduction"]
[null,null,"SANS: Manufactured from Grade S 355 steel in accordance5"]
[null,null,"to SANS 657/1&3. Hot Dipped galvanised in accordance to"]
[null,null,"SANS 121"]
[null,null,"Colour: Matt Silver"]
[null,null,"All poles shall be complete with all necessary fittings, fixtures and"]
[null,null,"accessories required for the works."]
[null,null,"All poles are to be in accordance to the Ethekwini Municipality"]
[null,null,"specification"]
[null,null,"The poles shall be as per Regent Lighting or equal approved."]
[null,null,"STRAIGHT POLE"]
["J",1,"Straight, 6m TL",{"$nulls":7},"No",{"$f":"$R$1*5","v":50}]
[null,null,"STEPPED 1 REDUCTION"]
["J",{"$f":"B24+1","v":2},"Stepped 1, 6m TL",{"$nulls":7},"No",{"$f":"$R$1*5","v":50}]
["J",{"$f":"B26+1","v":3},"Stepped 1, 8m TL",{"$nulls":7},"No",{"$f":"$R$1*5","v":50}]
["J",{"$f":"B27+1","v":4},"Stepped 1, 9.2m TL",{"$nulls":7},"No",{"$f":"$R$1*5","v":50}]
[null,null,"STEPPED 2 REDUCTION"]
["J",{"$f":"B28+1","v":5},"Stepped 2, 8.2m TL",{"$nulls":7},"No",{"$f":"$R$1*5","v":50}]
["J",{"$f":"B30+1","v":6},"Stepped 2, 9.2m TL",{"$nulls":7},"No",{"$f":"$R$1*5","v":50}]
[]
[null,null,"WOODEN POLES"]
[null,null,"CCA POLES: LEVEL H4"]
[null,null,"Copper chromium arsenic treated wooden pole, Level H4, SANS"]
[null,null,"approved."]
[null,null,"The poles shall be suitable for transmission and lighting purposes"]
[null,null,"and in accordance with the Ethekwini Municipality specifications."]
[null,null,"All poles shall be complete with all necessary fittings, fixtures and"]
[]
[null,null,"Carried to Collection Page 61 EE"]
[null,"Item","Description",{"$nulls":7},"Unit","Qty","Supply & Deliver Rate","Install Rate","Amount"]
[null,null,"accessories required for the works."]
["J",{"$f":"B31+1","v":7},"6m pole",{"$nulls":7},"No",{"$f":"$R$1*5","v":50}]
["J",{"$f":"B44+1","v":8},"7m pole",{"$nulls":7},"No",{"$f":"$R$1*5","v":50}]
["J",{"$f":"B45+1","v":9},"8m pole",{"$nulls":7},"No",{"$f":"$R$1*5","v":50}]
["J",{"$f":"B46+1","v":10},"9m pole",{"$nulls":7},"No",{"$f":"$R$1*5","v":50}]
[]
[null,null,"LUMINAIRE COMPONENTS"]
[null,null,"The luminaire components shall be as per Osram or equal approved"]
[]
[null,null,"STARTERS"]
["J",{"$f":"B47+1","v":11},"ST 111, Longlife (4…65W;80W)",{"$nulls":7},"No",{"$f":"$R$1*5","v":50}]
["J",{"$f":"B53+1","v":12},"ST 151, Longlife(4…22W)",{"$nulls":7},"No",{"$f":"$R$1*5","v":50}]
["J",{"$f":"B54+1","v":13},"DEOS ST 171 SAFETY, (36…65W)",{"$nulls":7},"No",{"$f":"$R$1*5","v":50}]
["J",{"$f":"B55+1","v":14},"DEOS ST 172 SAFETY, (18…22W)",{"$nulls":7},"No",{"$f":"$R$1*5","v":50}]
["J",{"$f":"B56+1","v":15},"DEOS ST 173 SAFETY, (15…32W)",{"$nulls":7},"No",{"$f":"$R$1*5","v":50}]
[]
[null,null,"TRANSFORMERS"]
["J",{"$f":"B57+1","v":16},"ET PARROT low voltage halogen lamps",{"$nulls":7},"No",{"$f":"$R$1*5","v":50}]
[]
[null,null,"CONTROL GEAR"]
[null,null,"ELECTRONIC"]
[null,null,"FLUORESCENT"]
["J",{"$f":"B60+1","v":17},"Quicktronic, (28 to 80W), T5 & T8",{"$nulls":7},"No",{"$f":"$R$1*10","v":100}]
["J",{"$f":"B65+1","v":18},"Quicktronic, Dimmable: T8",{"$nulls":7},"No",{"$f":"$R$1*10","v":100}]
["J",{"$f":"B66+1","v":19},"Quicktronic, Multiwatt: CFL",{"$nulls":7},"No",100]
["J",{"$f":"B67+1","v":20},"Quicktronic, Economic: CFL",{"$nulls":7},"No",100]
[]
[null,null,"LAMP HOLDERS"]
["J",{"$f":"B68+1","v":21},"RS Lampholder",{"$nulls":7},"No",{"$f":"$R$1*10","v":100}]
["J",{"$f":"B71+1","v":22},"ES Lampholder",{"$nulls":7},"No",100]
["J",{"$f":"B72+1","v":23},"BC Lampholder",{"$nulls":7},"No",100]
["J",{"$f":"B73+1","v":24},"Fluorescent fitting Lampholder",{"$nulls":7},"No",100]
["J",{"$f":"B74+1","v":25},"400W HPS Lampholder",{"$nulls":7},"No",100]
["J",{"$f":"B75+1","v":26},"Brass Lampholder, ES or BC",{"$nulls":7},"No",100]
[]
[]
[]
[null,null,"Carried to Collection Page 61 EE"]
[null,"Item","Description",{"$nulls":7},"Unit","Qty","Supply & Deliver Rate","Install Rate","Amount"]
[null,null,"CAPACITORS"]
["J",27,"70W",{"$nulls":7},"No",{"$f":"$R$1*5","v":50}]
["J",28,"100W",{"$nulls":7},"No",50]
["J",29,"150W",{"$nulls":7},"No",50]
["J",30,"250W",{"$nulls":7},"No",50]
["J",31,"400W",{"$nulls":7},"No",50]
["J",32,"1000W",{"$nulls":7},"No",50]
["J",33,"2000W",{"$nulls":7},"No",50]
[]
[null,null,"IGNITORS"]
["J",34,"70W",{"$nulls":7},"No",{"$f":"$R$1*5","v":50}]
["J",{"$f":"B92+1","v":35},"100W",{"$nulls":7},"No",50]
["J",36,"150W",{"$nulls":7},"No",50]
["J",37,"250W",{"$nulls":7},"No",50]
["J",38,"400W",{"$nulls":7},"No",50]
["J",39,"1000W",{"$nulls":7},"No",50]
["J",40,"2000W",{"$nulls":7},"No",50]
[]
[]
[null,null,"DISCHARGE LAMP AND OTHER BALLASTS/IGNITOR/ TRANSFORMER/ CHOKE"]
["J",{"$f":"B98+1","v":41},"Metal halide (70 to 400W)",{"$nulls":7},"No",{"$f":"$R$1*5","v":50}]
["J",{"$f":"B102+1","v":42},"High Pressure Sodium (70 to 1000W)",{"$nulls":7},"No",{"$f":"$R$1*5","v":50}]
["J",{"$f":"B103+1","v":43},"Mecury vapour (80 to 400W)",{"$nulls":7},"No",{"$f":"$R$1*5","v":50}]
["J"]
{"$rows_empty":14}
[null,null,"Carried to Collection Page 61 EE"]
[null,"Item","Description",{"$nulls":11},"Amount"]
[null,null,"ELECTRICAL WORKS"]
[null,null,"BILL OF QUANTITIES: BILL NO 10 OF 19"]
[]
[null,null,"COLLECTION PAGE"]
[null,null,"LUMINAIRE ACCESSORIES"]
[]
[null,null,"Page 58 "]
[null,null,"Page 59 "]
[null,null,"Page 60 "]
{"$rows_empty":16}
[null,null,"LUMINAIRE ACCESSORIES"]
[null,null,"TOTAL CARRIED TO BILL SUMMARY Page"]

{"sheet":"BILL11","index":11,"n_rows":170,"n_cols":18,"rows_kept":170,"merged":[[0,1,0,14],[1,2,1,9],[4,2,4,9],[51,2,51,9],[109,2,109,9],[131,2,131,9],[135,2,135,9],[137,2,137,9]]}
[{"$nulls":15},{"v":1.0761,"d":"107.61%"},null,{"v":10,"d":"1000%"}]
[null,"Item","Description",{"$nulls":7},"Unit","Qty","Supply & Deliver Rate","Install Rate","Amount"]
[null,null,"ELECTRICAL WORKS"]
["K",null,"BILL OF QUANTITIES: BILL NO 11 OF 19"]
[null,null,"LIGHT SWITCHES"]
[null,null,"STEEL COVER TYPE"]
[null,null,"All switches shall be suitable for mounting in 100 x 50 x 50mm"]
[null,null,"boxes and shall comply  with SANS 1663 and shall bear the"]
[null,null,"SANS mark. The light switches shall be rated 16A, 250V."]
[null,null,"The light switches shall be complete with a white switch/s on"]
[null,null,"yoke, SS screws and WHITE STEEL coverplates(SANS 1084)."]
[null,null,"The light switch shall include all necessary accessories to"]
[null,null,"complete the works."]
[null,null,"The light switch shall be installed into existing extension"]
[null,null,"boxes or into new galvanised steel boxes."]
[null,null,"The galvanised steel boxes are measured elsewhere."]
[null,null,"The light switches shall be as per Crabtree, Classic Range or"]
[null,null,"equal approved."]
["K",1,"16A,  Single lever one way",{"$nulls":7},"No",{"$f":"$R$1*20","v":200}]
["K",{"$f":"B19+1","v":2},"16A, Two lever one way",{"$nulls":7},"No",{"$f":"$R$1*20","v":200}]
["K",3,"16A, Three lever one way",{"$nulls":7},"No",200]
["K",4,"16A, Four lever one way",{"$nulls":7},"No",{"$f":"$R$1*10","v":100}]
["K",5,"16A, Five lever one way",{"$nulls":7},"No",{"$f":"$R$1*5","v":50}]
["K",6,"16A, Six lever one way",{"$nulls":7},"No",{"$f":"$R$1*5","v":50}]
["K",7,"16A, One lever one way with dimmer",{"$nulls":7},"No",50]
["K",8,"16A, Two lever one way with dimmer",{"$nulls":7},"No",50]
["K",9,"16A, One lever two way",{"$nulls":7},"No",{"$f":"$R$1*10","v":100}]
[]
[null,null,"All switches shall be suitable for mounting in 100 x 50 x 50mm"]
[null,null,"boxes and shall comply  with SANS 1663 and shall bear the"]
[null,null,"SANS mark. The light switches shall be rated 16A, 250V."]
[null,null,"The light switches shall be complete with a white switch/s on"]
[null,null,"yoke, SS screws and WHITE PLASTIC coverplates(SANS 1084)."]
[null,null,"The light switch shall include all necessary accessories to"]
[null,null,"complete the works."]
[null,null,"The light switch shall be installed into existing extension"]
[null,null,"boxes or into new galvanised steel boxes."]
[null,null,"The galvanised steel boxes are measured elsewhere."]
[null,null,"The light switches shall be as per Crabtree, Classic Range or"]
[null,null,"equal approved."]
["K",{"$f":"B27+1","v":10},"16A,  Single lever one way",{"$nulls":7},"No",{"$f":"$R$1*20","v":200}]
["K",{"$f":"B41+1","v":11},"16A, Two lever one way",{"$nulls":7},"No",200]
["K",12,"16A, Three lever one way",{"$nulls":7},"No",200]
["K",13,"16A, Four lever one way",{"$nulls":7},"No",{"$f":"$R$1*10","v":100}]
["K",14,"16A, Five lever one way",{"$nulls":7},"No",{"$f":"$R$1*5","v":50}]
["K",15,"16A, Six lever one way",{"$nulls":7},"No",50]
["K",16,"16A, One lever one way with dimmer",{"$nulls":7},"No",50]
["K",17,"16A, Two lever one way with dimmer",{"$nulls":7},"No",50]
["K",18,"16A, One lever two way",{"$nulls":7},"No",10]
[]
[null,null,"Carried to Collection Page 64 EE"]
[null,"Item","Description",{"$nulls":7},"Unit","Qty","Supply & Deliver Rate","Install Rate","Amount"]
[null,null,"INDUSTRIAL LIGHT SWITCHES"]
[null,null,"All switches shall be suitable for mounting in 75 x 75mm"]
[null,null,"boxes and shall comply  with SANS 1663 and shall bear the"]
[null,null,"SANS mark. The light switches shall be rated 16A, 250V."]
[null,null,"The light switches shall be complete with a white switch/s on"]
[null,null,"yoke and steel coverplates(White or Orange)(SANS 1084)."]
[null,null,"The light switch shall include all necessary accessories to"]
[null,null,"complete the works."]
[null,null,"The light switch shall be installed into existing extension"]
[null,null,"boxes or into new galvanised steel boxes."]
[null,null,"The galvanised steel boxes are measured elsewhere."]
[null,null,"The light switches shall be as per Crabtree, Classic Range or"]
[null,null,"equal approved."]
["K",{"$f":"B49+1","v":19},"16A,  Single lever one way",{"$nulls":7},"No",{"$f":"$R$1*5","v":50}]
["K",{"$f":"B66+1","v":20},"16A, Two lever one way",{"$nulls":7},"No",{"$f":"$R$1*5","v":50}]
["K",{"$f":"B67+1","v":21},"16A, Three lever one way",{"$nulls":7},"No",50]
["K",{"$f":"B68+1","v":22},"16A, Three lever two way",{"$nulls":7},"No",50]
[]
[null,null,"INDUSTRIAL WATER PROOF LIGHT SWITCHES"]
[null,null,"All switches shall be suitable for mounting in 119 x 83mm"]
[null,null,"weatherproof surface boxes and shall comply  with SANS 1663"]
[null,null,"and shall bear the SANS mark."]
[null,null,"The light switches shall be rated 16A, 250V."]
[null,null,"The light switches shall be complete with a white switch/s on"]
[null,null,"yoke and coverplates(White or Orange)(SANS 1084)."]
[null,null,"The light switch shall include all necessary accessories to"]
[null,null,"complete the works."]
[null,null,"The light switch shall be installed complete with new"]
[null,null,"extension boxes"]
[null,null,"The light switches shall be as per Crabtree, Classic Range or"]
[null,null,"equal approved."]
[]
[null,null,"STEEL TYPE"]
["K",{"$f":"B69+1","v":23},"16A,  Single lever one way",{"$nulls":7},"No",{"$f":"$R$1*5","v":50}]
["K",{"$f":"B86+1","v":24},"16A, Two lever one way",{"$nulls":7},"No",50]
["K",{"$f":"B87+1","v":25},"16A, Three lever one way",{"$nulls":7},"No",50]
["K",{"$f":"B88+1","v":26},"Limit Switches",{"$nulls":7},"No",50]
[]
[null,null,"PLASTIC TYPE"]
["K",{"$f":"B89+1","v":27},"16A,  Single lever one way",{"$nulls":7},"No",{"$f":"$R$1*10","v":100}]
["K",{"$f":"B92+1","v":28},"16A, Two lever one way",{"$nulls":7},"No",100]
["K",{"$f":"B93+1","v":29},"16A, Three lever one way",{"$nulls":7},"No",100]
{"$rows_empty":14}
[null,null,"Carried to Collection Page 64 EE"]
[null,"Item","Description",{"$nulls":7},"Unit","Qty","Supply & Deliver Rate","Install Rate","Amount"]
[null,null,"WIRELESS LIGHT SWITCHES"]
[null,null,"All switches shall be suitable for mounting in 75 x 75mm"]
[null,null,"boxes and shall comply  with SANS 1663 and shall bear the"]
[null,null,"SANS mark. The light switches shall be rated 5A, 220V."]
[null,null,"The wireless light switch shall include all necessary accessories to"]
[null,null,"complete the works. (Batteries, etc)"]
[null,null,"The wireless light switches shall be as per QwikSwitch or"]
[null,null,"equal approved."]
[]
["K",30,"Receiver and relay. Max load 5A. Device is controllable from the WiFi "]
[null,null,"Bridge remotely. Input and output supply at 220Vac, 50Hz. Radio frequency 868MHz."]
[null,null,"30m Range through walls and floors, 100m line of site",{"$nulls":7},"No",{"$f":"$R$1*5","v":50}]
[]
["K",31,"2 button wireless transmitter. Input supply 1 x CR2032 Battery to be included."]
[null,null,"From factor moulded casing 80mm (w) x 123mm (L) x 10mm (H)"]
[null,null,"Radio frequency 868MHz."]
[null,null,"30m Range through walls and floors, 100m line of site",{"$nulls":7},"No",{"$f":"$R$1*5","v":50}]
[]
[]
[]
[null,null,"Carried to Collection Page 64 EE"]
[null,"Item","Description",{"$nulls":11},"Amount"]
[null,null,"ELECTRICAL WORKS"]
[null,null,"BILL OF QUANTITIES: BILL NO 11 OF 19"]
[]
[null,null,"COLLECTION PAGE"]
[]
[null,null,"LIGHT SWITCHES"]
[]
[null,null,"Page 62 "]
[null,null,"Page 63 "]
[null,null,"Page 64 "]
{"$rows_empty":26}
[null,null,"LIGHT SWITCHES: "]
[null,null,"TOTAL CARRIED TO BILL SUMMARY Page 92 EE"]

{"sheet":"BILL12","index":12,"n_rows":47,"n_cols":18,"rows_kept":47,"merged":[[0,1,0,14],[1,2,1,9],[4,2,4,9],[5,2,5,9],[45,2,45,9]]}
[{"$nulls":15},{"v":1.0761,"d":"107.61%"},null,{"v":10,"d":"1000%"}]
[null,"Item","Description",{"$nulls":7},"Unit","Qty","Supply & Deliver Rate","Install Rate"," Amount"]
[null,null,"ELECTRICAL WORKS"]
["L",null,"BILL OF QUANTITIES: BILL NO 12 OF 19"]
[null,null,"POWERSKIRTING,"]
[null,null,"OUTLETS & ACCESSORIES"]
[null,null,"PVC TYPE"]
[null,null,"Supply, deliver and install PVC type powerskirting installed"]
[null,null,"surface on wall surface, bricking, concrete, desktop,etc."]
[null,null,"The powerskirting shall be suitable for low voltage(600/1000V)"]
[null,null,"conductors and 16A, 250V switched socket outlets well as for ."]
[null,null,"telecommunication, data and power points."]
[null,null,"The powerskirting shall be supplied complete with all covers,"]
[null,null,"necessary bends, elbows, corner pieces, tees, droppers, end"]
[null,null,"caps and all other necessary fittings, fixtures and accessories"]
[null,null,"required for the works."]
[null,null,"All outlets(sso), telephone, data, power, etc shall also be"]
[null,null,"installed complete with covers, cradles, yokes, etc to complete"]
[null,null,"the works."]
[null,null,"The powerskirting shall be as Legrand (Colour White) or"]
[null,null,"equal approved. All outlets shall also be of the Legrand"]
[null,null,"range or equal approved and compatible with the powerskirting."]
[null,null,"POWERSKIRTING"]
["L",1,"Two Compartment with cover and accessories, etc",{"$nulls":7},"m",{"$f":"$R$1*100","v":1000}]
["L",{"$f":"B24+1","v":2},"Three Compartment with cover and accessories, etc",{"$nulls":7},"m",{"$f":"$R$1*50","v":500}]
[]
[null,null,"POWERSKIRTING OUTLETS"]
["L",{"$f":"B25+1","v":3},"16A,  Single switched socket outlet - Normal - White",{"$nulls":7},"No",{"$f":"$R$1*100","v":1000}]
["L",{"$f":"B28+1","v":4},"16A,  Single switched socket outlet - Dedicated - RED",{"$nulls":7},"No",1000]
["L",{"$f":"B29+1","v":5},"16A,  Single switched socket outlet - UPS - Blue",{"$nulls":7},"No",1000]
["L",{"$f":"B30+1","v":6},"RJ11 Telephone outlets",{"$nulls":7},"No",1000]
["L",{"$f":"B31+1","v":7},"RJ45 Data outlets",{"$nulls":7},"No",1000]
["L",{"$f":"B32+1","v":8},"Blank Outlets",{"$nulls":7},"No",1000]
[null,null,"ACCESSORIES"]
[null,null,"The following accessories are to be supplied, delivered and "]
[null,null,"installed for existing powerskirting that require damaged,"]
[null,null,"missing or replacements."]
[null,null,"These items however will form part of the costing per m"]
[null,null,"length of new powerskirting systems and as such will not be"]
[null,null,"paid for separately with the exception of the internal divider."]
["L",9,"Elbows",{"$nulls":7},"Item",{"$f":"$R$1*60","v":600}]
["L",10,"Internal/External bends",{"$nulls":7},"Item",{"$f":"$R$1*60","v":600}]
["L",11,"End Caps",{"$nulls":7},"Item",{"$f":"$R$1*100","v":1000}]
["L",12,"Internal divider",{"$nulls":7},"m",{"$f":"$R$1*50","v":500}]
[]
[null,null,"POWERSKIRTING, OUTLETS & ACCESSORIES"]
[null,null,"TOTAL CARRIED TO BILL SUMMARY Page"]

{"sheet":"BILL13","index":13,"n_rows":273,"n_cols":18,"rows_kept":273,"merged":[[0,1,0,14],[1,2,1,9],[4,2,4,9],[5,2,5,9],[41,2,41,9],[83,2,83,9],[123,2,123,9],[162,2,162,9],[202,2,202,9],[239,2,239,9],[243,2,243,9],[244,2,244,9],[245,2,245,9]]}
[{"$nulls":15},{"v":1.0761,"d":"107.61%"},null,{"v":10,"d":"1000%"}]
[null,"Item","Description",{"$nulls":7},"Unit","Qty","Supply & Deliver Rate","Install Rate","Amount"]
[null,null,"ELECTRICAL WORKS"]
["M",null,"BILL OF QUANTITIES: BILL NO 13 OF 19"]
[null,null,"SWITCHED SOCKET OUTLETS, "]
[null,null,"ENCLOSURES & ACCESSORIES"]
[null,null,"STEEL COVER TYPE"]
[null,null,"All switches shall be suitable for mounting in 100 x 100 x 50mm"]
[null,null,"boxes and shall comply  with SANS 164 and shall bear the"]
[null,null,"SANS mark. The switches shall be rated 16A, 250V."]
[null,null,"The switches shall be complete with a white switch/s on"]
[null,null,"yoke, SS screws and WHITE STEEL coverplates(SANS 1084)."]
[null,null,"The switch shall include all necessary accessories to"]
[null,null,"complete the works."]
[null,null,"The switch shall be installed into existing extension"]
[null,null,"boxes or into new galvanised steel boxes."]
[null,null,"The galvanised steel boxes are measured elsewhere."]
[null,null,"The switches shall be as per Crabtree, Classic Range or"]
[null,null,"equal approved."]
["M",1,"16A,  Single switched socket outlet",{"$nulls":7},"No",{"$f":"$R$1*100","v":1000}]
["M",{"$f":"B20+1","v":2},"16A,  Double switched socket outlet",{"$nulls":7},"No",1000]
["M",{"$f":"B21+1","v":3},"16A,  Single switched socket outlet - Dedicated - RED",{"$nulls":7},"No",1000]
[null,null,"Switched socket outlet on 100 x 50 x 50mm extension boxes"]
["M",{"$f":"B22+1","v":4},"16A,  Single switched socket outlet",{"$nulls":7},"No",{"$f":"$R$1*50","v":500}]
["M",{"$f":"B24+1","v":5},"16A,  Single switched socket outlet - Dedicated - RED",{"$nulls":7},"No",{"$f":"$R$1*50","v":500}]
[]
[null,null,"PLASTIC COVER TYPE"]
[null,null,"All switches shall be suitable for mounting in 100 x 50 x 50mm"]
[null,null,"boxes and shall comply  with SANS 1664 and shall bear the"]
[null,null,"SANS mark. The switches shall be rated 16A, 250V."]
[null,null,"The switches shall be complete with a white switch/s on"]
[null,null,"yoke, SS screws and WHITE PLASTIC coverplates."]
[null,null,"The switches shall include all necessary accessories to"]
[null,null,"complete the works."]
[null,null,"The switches shall be installed into existing extension"]
[null,null,"boxes or into new galvanised steel boxes."]
[null,null,"The galvanised steel boxes are measured elsewhere."]
[null,null,"The light switches shall be as per Crabtree, Classic Range or"]
[null,null,"equal approved."]
[]
[null,null,"Carried to Collection Page 72 EE"]
[null,"Item","Description",{"$nulls":7},"Unit","Qty","Supply & Deliver Rate","Install Rate","Amount"]
["M",{"$f":"B25+1","v":6},"16A,  Single switched socket outlet",{"$nulls":7},"No",{"$f":"$R$1*100","v":1000}]
["M",{"$f":"B43+1","v":7},"16A,  Double switched socket outlet",{"$nulls":7},"No",1000]
["M",{"$f":"B44+1","v":8},"16A,  Single switched socket outlet - Dedicated - RED",{"$nulls":7},"No",1000]
["M",{"$f":"B45+1","v":9},"16A, VETi 2 Double RSA & Double RSA V-Slim Socket Outlet - White",{"$nulls":7},"No",1000]
["M",{"$f":"B46+1","v":10},"16A, VETi 2 Switched Socket with Single RSA & 3 x RSA V-Slim - White",{"$nulls":7},"No",1000]
[null,null,"Switched socket outlet on 100 x 50 x 50mm extension boxes"]
["M",{"$f":"B47+1","v":11},"16A,  Single switched socket outlet",{"$nulls":7},"No",{"$f":"$R$1*50","v":500}]
["M",{"$f":"B49+1","v":12},"16A,  Single switched socket outlet - Dedicated - RED",{"$nulls":7},"No",500]
[]
[null,null,"INDUSTRIAL  SWITCHED SOCKET OUTLETS"]
[null,null,"All switches shall be suitable for mounting in 119 x 83mm"]
[null,null,"boxes and shall comply  with SANS 1664 and shall bear the"]
[null,null,"SANS mark. The switches shall be rated 16A, 250V."]
[null,null,"The switches shall be complete with a white switch/s on"]
[null,null,"yoke and steel coverplates(White or Orange)."]
[null,null,"The switch shall include all necessary accessories to"]
[null,null,"complete the works."]
[null,null,"The switches shall be installed complete with extension"]
[null,null,"boxes."]
[null,null,"The switches shall be as per Crabtree, Classic Range or"]
[null,null,"equal approved."]
[]
[null,null,"STEEL TYPE"]
["M",{"$f":"B50+1","v":13},"16A,  Single switched socket outlet",{"$nulls":7},"No",{"$f":"$R$1*10","v":100}]
["M",{"$f":"B66+1","v":14},"16A,  Double switched socket outlet",{"$nulls":7},"No",{"$f":"$R$1*10","v":100}]
[]
[null,null,"INDUSTRIAL WATER PROOF LIGHT SWITCHES"]
[null,null,"All switches shall be suitable for mounting in 119 x 83mm"]
[null,null,"weatherproof surface boxes and shall comply  with SANS 1664"]
[null,null,"and shall bear the SANS mark."]
[null,null,"The switches shall be rated 16A, 250V."]
[null,null,"The switches shall be complete with a white switch/s on"]
[null,null,"yoke and coverplates(White or Orange)."]
[null,null,"The switch shall include all necessary accessories to"]
[null,null,"complete the works."]
[null,null,"The switches shall be installed complete with extension"]
[null,null,"boxes."]
[null,null,"The light switches shall be as per Crabtree, Classic Range or"]
[null,null,"equal approved."]
[]
[null,null,"Carried to Collection Page 72 EE"]
[null,"Item","Description",{"$nulls":7},"Unit","Qty","Supply & Deliver Rate","Install Rate","Amount"]
[null,null,"STEEL TYPE"]
["M",{"$f":"B67+1","v":15},"16A,  Single switched socket outlet",{"$nulls":7},"No",{"$f":"$R$1*5","v":50}]
[]
[null,null,"PLASTIC TYPE"]
["M",{"$f":"B86+1","v":16},"16A,  Single switched socket outlet",{"$nulls":7},"No",{"$f":"$R$1*5","v":50}]
[]
[null,null,"General"]
["M",{"$f":"B89+1","v":17},"Snapper - FBLP 31 - 8 way multiplug( 4 x 16A, 4 x 5A, 0.5m cord)"]
[null,null,"with surge protection ",{"$nulls":7},"No",{"$f":"$R$1*5","v":50}]
["M",{"$f":"B92+1","v":18},"5A plugtops",{"$nulls":7},"No",{"$f":"$R$1*50","v":500}]
["M",{"$f":"B94+1","v":19},"16A plugtops - White",{"$nulls":7},"No",500]
["M",{"$f":"B95+1","v":20},"16A plugtops - Red",{"$nulls":7},"No",500]
["M",{"$f":"B96+1","v":21},"16A plugtops - Blue",{"$nulls":7},"No",{"$f":"$R$1*5","v":50}]
[]
[null,null,"GENERAL INDUSTRIAL SWITCHED SOCKET OUTLETS"]
[null,null,"AND PLUG TOPS"]
[null,null,"According to SANS / IEC 60309-1+2, 1999  "]
[null,null,"PLUGS AND SOCKETS"]
[null,null,"The units shall bear the SABS authorisation mark"]
[null,null,"CEE ROUND TYPE PLUGS & SOCKETS: MOULDED"]
[null,null,"The outlets shall be as per Powermite or equal approved."]
["M",{"$f":"B97+1","v":22},"Ref Code: A3001: 250V, 32A, IP67 switched socket outlet",{"$nulls":7},"No",{"$f":"$R$1*5","v":50}]
["M",{"$f":"B106+1","v":23},"Ref Code: A0138: 250V, 32A, IP67 moulded plugtop",{"$nulls":7},"No",50]
["M",24,"Ref Code: A3002: 400V, 16A, 4 PIN, IP67 switched socket outlet",{"$nulls":7},"No",50]
["M",25,"Ref Code: A0140: 400V, 16A, 4 PIN, IP67 moulded plugtop",{"$nulls":7},"No",50]
["M",26,"Ref Code: A3009: 400V, 32A, 5 PIN, IP67 switched socket outlet",{"$nulls":7},"No",50]
["M",27,"Ref Code: A0135: 400V, 32A, 5 PIN, IP67 moulded plugtop",{"$nulls":7},"No",50]
["M",28,"Ref Code: A3102: 400V, 63A, 5 PIN, IP67 switched socket outlet",{"$nulls":7},"No",50]
["M",29,"Ref Code: A0134: 400V, 63A, 5 PIN, IP67 moulded plugtop",{"$nulls":7},"No",50]
[null,null,"EXTENSION BOXES"]
[null,null,"All extension boxes shall be of the galvanised steel type and"]
[null,null,"shall be of 1mm thickness. The boxes shall be suitable for "]
[null,null,"standard switches(lights and plugs) application."]
[null,null,"The boxes shall be in accordance with SANS 1085 and the"]
[null,null,"plates with SANS 1084"]
["M",{"$f":"B113+1","v":30},"100 x 100 x 50mm",{"$nulls":7},"No",100]
["M",{"$f":"B120+1","v":31},"100 x 50 x 50mm",{"$nulls":7},"No",100]
[]
[null,null,"Carried to Collection Page 72 EE"]
[null,"Item","Description",{"$nulls":7},"Unit","Qty","Supply & Deliver Rate","Install Rate","Amount"]
[null,null,"EXTENSION BOXES"]
[null,null,"All PVC extension boxes shall be suitable for standard switches "]
[null,null,"(lights and plugs) application."]
[null,null,"The boxes shall be in accordance with SANS 1085 and the"]
[null,null,"plates with SANS 1084"]
[null,null,"The boxes shall be of ALLBRO type or equal approved."]
["M",{"$f":"B121+1","v":32},"Ref Code: 04 - 788: Box: H62 x W107 x D51mm",{"$nulls":7},"No",{"$f":"$R$1*5","v":50}]
["M",{"$f":"B131+1","v":33},"Ref Code: 04 - 789: Box: H109 x W108 x D51mm",{"$nulls":7},"No",50]
[null,null,"BLANK COVER PLATES - WHITE"]
[null,null,"STEEL TYPE"]
["M",{"$f":"B132+1","v":34},"100 x 100 x 50mm",{"$nulls":7},"No",{"$f":"$R$1*100","v":1000}]
["M",{"$f":"B135+1","v":35},"100 x 50 x 50mm",{"$nulls":7},"No",1000]
[null,null,"PLASTIC TYPE"]
["M",{"$f":"B136+1","v":36},"100 x 100 x 50mm",{"$nulls":7},"No",{"$f":"$R$1*100","v":1000}]
["M",{"$f":"B138+1","v":37},"100 x 50 x 50mm",{"$nulls":7},"No",1000]
[null,null,"ELECTRICAL YORK BOXES"]
[null,null,"The electrical york(installation enclosure) boxes shall be of the "]
[null,null,"outdoor weatherproof socket outlet enclosure type."]
[null,null,"The box shall be suitable for surface or semi-flush installation.  "]
[null,null,"The box is to have a sliding lid which is capable of being closed"]
[null,null,"while the plug is in the socket."]
[null,null,"The box shall be constructed of polyester material(DMC)."]
[null,null,"The boxes shall be of ABB/ALLBRO type or equal approved."]
["M",{"$f":"B139+1","v":38},"100 x 100mm type box",{"$nulls":7},"No",{"$f":"$R$1*5","v":50}]
["M",{"$f":"B148+1","v":39},"100 x 50mm type box",{"$nulls":7},"No",50]
[null,null,"ELECTRICAL METER BOXES: YORK TYPE"]
[null,null,"SINGLE PHASE - SMB"]
[null,null,"The electrical meter york(installation enclosure) boxes shall be of"]
[null,null,"the outdoor weatherproof single kwh meter enclosure type."]
[null,null,"The box shall be suitable for standard kWh meter."]
[null,null,"The  mounting shall be„ surface or semi-flush installation. "]
[null,null,"It shall have square or triangular securing screw and"]
[null,null,"a stand off for circuit breaker , a circuit breaker reset rod and "]
[null,null,"pole mount brackets. „ Material - Polyester (DMC)"]
[null,null,"The boxes shall be of ABB/ALLBRO type or equal approved."]
["M",{"$f":"B149+1","v":40},"Single Phase Meter Box - SMB",{"$nulls":7},"No",{"$f":"$R$1*5","v":50}]
[]
[null,null,"Carried to Collection Page 72 EE"]
[null,"Item","Description",{"$nulls":7},"Unit","Qty","Supply & Deliver Rate","Install Rate","Amount"]
[null,null,"THREE PHASE - DMB"]
[null,null,"The electrical meter york(installation enclosure) boxes shall be of"]
[null,null,"the outdoor weatherproof to house 3 x single phase kwh."]
[null,null,"The box shall be suitable for standard kWh meters."]
[null,null,"The meter box mounting shall be on a baseplate."]
[null,null,"The  mounting shall be„ surface or semi-flush installation. "]
[null,null,"The meter box shall have meter reading window."]
[null,null,"It shall have square or triangular securing screw and"]
[null,null,"a stand off for circuit breaker , a circuit breaker reset rod and "]
[null,null,"pole mount brackets and circuit breaker mounting facility. "]
[null,null,"Material - Polyester (DMC)"]
[null,null,"The boxes shall be of ABB/ALLBRO type or equal approved."]
["M",{"$f":"B160+1","v":41},"Three phase Meter Box - DMB",{"$nulls":7},"No",{"$f":"$R$1*5","v":50}]
[]
[null,null,"SWITCH DISCONNECTOR - ISOLATOR - BOXES"]
[null,null,"The isolator housing box shall be weatherproof with pad"]
[null,null,"lockable facility. The box shall have isolator mounting screws."]
[null,null,"Material - Polyester (DMC)"]
[null,null,"The boxes shall be of ABB/ALLBRO type or equal approved."]
["M",{"$f":"B176+1","v":42},"Isolator housing box enclosure",{"$nulls":7},"No",{"$f":"$R$1*5","v":50}]
[]
[null,null,"INSTALLATION ENCLOSURES"]
[null,null,"INDUSTRIAL: WEATHERTIGHT BOXES"]
[null,null,"Industrial general purpose weatherproof enclosures. "]
[null,null,"The box shall be suitable for surface or semi-flush installation.  "]
[null,null,"The box is to have a sliding lid which is capable of being closed"]
[null,null,"while the plug/cable is in the socket. To include a Device plate "]
[null,null,"in DMC and pole mount brackets."]
[null,null,"Material - Polyester (DMC)"]
[null,null,"The boxes shall be of ABB/ALLBRO type or equal approved."]
["M",{"$f":"B183+1","v":43},"J1 Range",{"$nulls":7},"No",{"$f":"$R$1*5","v":50}]
["M",{"$f":"B194+1","v":44},"J2 Range",{"$nulls":7},"No",50]
["M",{"$f":"B195+1","v":45},"J3 Range",{"$nulls":7},"No",50]
["M",{"$f":"B196+1","v":46},"J4 Range",{"$nulls":7},"No",50]
[]
[]
[]
[]
[null,null,"Carried to Collection Page 72 EE"]
[null,"Item","Description",{"$nulls":7},"Unit","Qty","Supply & Deliver Rate","Install Rate","Amount"]
[null,null,"GENERAL: WEATHERTIGHT BOXES"]
[null,null,"General purpose weatherproof connection/enclosures. "]
[null,null,"The box shall be suitable for surface or semi-flush installation.  "]
[null,null,"The box is to have a sliding lid which is capable of being closed"]
[null,null,"while the plug/cable is in the socket. To include a Device plate "]
[null,null,"in DMC and pole mount brackets."]
[null,null,"Housing Material - Polyester (DMC)"]
[null,null,"The boxes shall be of ABB/ALLBRO type or equal approved."]
["M",{"$f":"B197+1","v":47},"U2 Range",{"$nulls":7},"No",{"$f":"$R$1*5","v":50}]
["M",{"$f":"B212+1","v":48},"U3 Range",{"$nulls":7},"No",50]
["M",49,"U4 Range",{"$nulls":7},"No",50]
["M",50,"U5 Range",{"$nulls":7},"No",50]
["M",51,"U6 Range",{"$nulls":7},"No",50]
["M",52,"U7 Range",{"$nulls":7},"No",50]
["M",53,"U8 Range",{"$nulls":7},"No",50]
[]
[null,null,"GENERAL: WEATHERTIGHT BOXES"]
[null,null,"General purpose weatherproof connection/enclosures. "]
[null,null,"The box shall be suitable for surface or semi-flush installation.  "]
[null,null,"The box is to have a sliding lid which is capable of being closed"]
[null,null,"while the plug/cable is in the socket. To include a Device plate "]
[null,null,"in CHIPBOARD and pole mount brackets."]
[null,null,"Housing Material - Polyester (DMC)"]
[null,null,"The boxes shall be of ABB/ALLBRO type or equal approved."]
["M",{"$f":"B218+1","v":54},"U2 Range",{"$nulls":7},"No",{"$f":"$R$1*5","v":50}]
["M",{"$f":"B228+1","v":55},"U3 Range",{"$nulls":7},"No",50]
["M",56,"U4 Range",{"$nulls":7},"No",50]
["M",57,"U5 Range",{"$nulls":7},"No",50]
["M",58,"U6 Range",{"$nulls":7},"No",50]
["M",59,"U7 Range",{"$nulls":7},"No",50]
["M",60,"U8 Range",{"$nulls":7},"No",50]
[]
[]
[]
[]
[null,null,"Carried to Collection Page 72 EE"]
[null,"Item","Description",{"$nulls":11},"Amount"]
[null,null,"ELECTRICAL WORKS"]
[null,null,"BILL OF QUANTITIES: BILL NO 13 OF 19"]
[]
[null,null,"COLLECTION"]
[null,null,"SWITCHED SOCKET OUTLETS, "]
[null,null,"ENCLOSURES & ACCESSORIES"]
[]
[null,null,"Page 66 "]
[null,null,"Page 67 "]
[null,null,"Page 68 "]
[null,null,"Page 69 "]
[null,null,"Page 70 "]
[null,null,"Page 71 "]
{"$rows_empty":17}
[null,null,"SWITCHED SOCKET OUTLETS,"]
[null,null,"ENCLOSURES & ACCESSORIES: "]
[null,null,"TOTAL CARRIED TO BILL SUMMARY Page"]

{"sheet":"BILL14","index":14,"n_rows":38,"n_cols":18,"rows_kept":38,"merged":[[0,1,0,14],[1,2,1,9],[4,2,4,9],[31,2,31,9],[36,2,36,9]]}
[{"$nulls":15},{"v":1.077,"d":"107.70%"},null,{"v":10,"d":"1000%"}]
[null,"Item","Description",{"$nulls":7},"Unit","Qty","Supply & Deliver Rate","Install Rate"," Amount"]
[null,null,"ELECTRICAL WORKS"]
["N",null,"BILL OF QUANTITIES: BILL NO 14 OF 19"]
[null,null,"GEYSER SPARES & ACCESSORIES"]
[null,null,"Supply, deliver and install domestic geyser spares and accessories."]
[null,null,"The units shall be suitable for application at 250V, 50Hz and"]
[null,null,"shall bear the SANS safety mark and in accordance with SANS"]
[null,null,"10254 Geyser Installation Specifications."]
[null,null,"The works shall include for the isolation, disconnection & removal "]
[null,null,"of the existing equipment and replacement with the new"]
[null,null,"equipment. It shall also include the disconnection and reconnection"]
[null,null,"of the geyser."]
[null,null,"The equipment shall include all necessary fittings, fixtures and "]
[null,null,"accessories to complete the works."]
[null,null,"The equipment shall be as per Kwikot or equal approved."]
[null,null,"SINGLE PHASE"]
["N",1,"2kW spiral element with thermostat pocket",{"$nulls":7},"No",{"$f":"$R$1*10","v":100}]
["N",{"$f":"B18+1","v":2},"3kW spiral element with thermostat pocket",{"$nulls":7},"No",{"$f":"$R$1*10","v":100}]
["N",3,"4kW spiral element with thermostat pocket",{"$nulls":7},"No",100]
["N",4,"Thermostat 20A",{"$nulls":7},"No",{"$f":"$R$1*20","v":200}]
["N",5,"2kW Industrial Immersion element with thermostat pocket",{"$nulls":7},"No",{"$f":"$R$1*10","v":100}]
["N",6,"3kW Industrial Immersion element with thermostat pocket",{"$nulls":7},"No",100]
["N",7,"4kW Industrial Immersion element with thermostat pocket",{"$nulls":7},"No",100]
[]
[null,null,"THREE PHASE"]
["N",{"$f":"B24+1","v":8},"6kW element",{"$nulls":7},"No",{"$f":"$R$1*10","v":100}]
[]
[null,null,"GENERAL"]
["N",{"$f":"B27+1","v":9},"Geyser Gasket",{"$nulls":7},"No",{"$f":"$R$1*10","v":100}]
[]
[]
[]
[]
[]
[]
[null,null,"GEYSER SPARES & ACCESSORIES"]
[null,null,"TOTAL CARRIED TO BILL SUMMARY Page 92 "]

{"sheet":"BILL15","index":15,"n_rows":39,"n_cols":18,"rows_kept":39,"merged":[[0,1,0,14],[1,2,1,9],[4,2,4,9],[31,2,31,9],[34,2,34,9],[37,2,37,9]]}
[{"$nulls":15},{"v":1.077,"d":"107.70%"},null,{"v":10,"d":"1000%"}]
[null,"Item","Description",{"$nulls":7},"Unit","Qty","Supply & Deliver Rate","Install Rate"," Amount"]
[null,null,"ELECTRICAL WORKS"]
["O",null,"BILL OF QUANTITIES: BILL NO 15 OF 19"]
[null,null,"HYDROBOILS"]
[null,null,"Supply, deliver and install wall mounted hydroboils."]
[null,null,"The units shall be suitable for application at 250V, 50Hz and"]
[null,null,"shall bear the SANS safety mark."]
[null,null,"The units shall be fully automatic, energy efficient, electronic "]
[null,null,"controls, provide instant boiling water, designed to operate"]
[null,null,"within 3°C of boiling point with thermal temperature control,"]
[null,null,"energy conserving tap, two way tap control, steam free, white"]
[null,null,"epoxy coated, concealed plumbing and electrical connections"]
[null,null,"and a flexible 2m electrical cord with plugtop."]
[null,null,"The equipment shall include all necessary fittings, fixtures and "]
[null,null,"accessories to complete the works."]
[null,null,"The hydroboils shall be as per Franke or equal approved"]
["O",1,"2.5 litre white epoxy hydroboil",{"$nulls":7},"No",{"$f":"$R$1*1","v":10}]
["O",{"$f":"B18+1","v":2},"5 litre white epoxy hydroboil",{"$nulls":7},"No",{"$f":"$R$1*5","v":50}]
["O",{"$f":"B19+1","v":3},"7.5 litre white epoxy hydroboil",{"$nulls":7},"No",{"$f":"$R$1*1","v":10}]
["O",{"$f":"B20+1","v":4},"10 litre white epoxy hydroboil",{"$nulls":7},"No",10]
["O",{"$f":"B21+1","v":5},"15 litre white epoxy hydroboil",{"$nulls":7},"No",10]
["O",6,"25 litre white epoxy hydroboil",{"$nulls":7},"No",10]
[]
[null,null,"The hydroboils shall be as per Kwikot or equal approved"]
["O",7,"2.5 litre white epoxy hydroboil",{"$nulls":7},"No",{"$f":"$R$1*1","v":10}]
["O",{"$f":"B26+1","v":8},"5 litre white epoxy hydroboil",{"$nulls":7},"No",{"$f":"$R$1*5","v":50}]
["O",{"$f":"B27+1","v":9},"7.5 litre white epoxy hydroboil",{"$nulls":7},"No",{"$f":"$R$1*1","v":10}]
["O",{"$f":"B28+1","v":10},"10 litre white epoxy hydroboil",{"$nulls":7},"No",10]
["O",{"$f":"B29+1","v":11},"15 litre white epoxy hydroboil",{"$nulls":7},"No",10]
["O",12,"25 litre white epoxy hydroboil",{"$nulls":7},"No",10]
[]
[]
[]
[]
[]
[]
[null,null,"HYDROBOILS"]
[null,null,"TOTAL CARRIED TO BILL SUMMARY Page 92 "]

{"sheet":"BILL16","index":16,"n_rows":151,"n_cols":18,"rows_kept":151,"merged":[[0,1,0,14],[1,2,1,9],[4,2,4,9],[38,2,38,9],[77,2,77,9],[116,2,116,9],[120,2,120,9],[121,2,121,9],[149,2,149,9]]}
[{"$nulls":15},{"v":1.077,"d":"107.70%"},null,{"v":10,"d":"1000%"}]
[null,"Item","Description",{"$nulls":7},"Unit","Qty","Supply & Deliver Rate","Install Rate","Amount"]
[null,null,"ELECTRICAL WORKS"]
["P",null,"BILL OF QUANTITIES: BILL NO 16 OF 19"]
[null,null,"FANS, DRYERS & EXTRACTORS"]
[null,null,"Supply, deliver and install industrial ceiling and wall fans, wall"]
[null,null,"mounted extractor fans and industrial hand dryers."]
[null,null,"The units shall be suitable for application at 250V, 50Hz and"]
[null,null,"shall bear the SANS safety mark."]
[null,null,"The equipment shall include all necessary fittings, fixtures and "]
[null,null,"accessories to complete the works."]
[]
[null,null,"CEILING FAN"]
[null,null,"The unit shall be a 4 speed, 3 blade industrial ceiling fan with a"]
[null,null,"diameter of 1200/1400mm and a 450mm long down rod."]
[null,null,"A steel shackle is to be fixed to the upper end of the down rod by"]
[null,null,"means of a nut and bolt which is complete with resilient rubber"]
[null,null,"bush and a 'U' shaped ceiling hook."]
[null,null,"Both upper and lower fixings on the down rod together with the"]
[null,null,"electrical connections are to be concealed behind plastic canopies."]
[null,null,"It shall have a permanent capacitor motor with external squirrel"]
[null,null,"cage rotor in a lightweight steel housing."]
[null,null,"The stator and rotor is to be constructed from high grade"]
[null,null,"silicon steel lamination stampings."]
[null,null,"The unit shall be complete with surface mounted speed regulator"]
[null,null,"complete with 2 inserts for light switches."]
[null,null,"The unit shall be as Luft or equal approved."]
["P",1,"1200mm (LCF48) ceiling fan complete with speed regulator",{"$nulls":7},"No",{"$f":"$R$1*5","v":50}]
["P",{"$f":"B28+1","v":2},"1400mm (LCF56) ceiling fan complete with speed regulator",{"$nulls":7},"No",{"$f":"$R$1*5","v":50}]
["P",{"$f":"B29+1","v":3},"4 speed (CF56) regulator",{"$nulls":7},"No",{"$f":"$R$1*5","v":50}]
{"$rows_empty":7}
[null,null,"Carried to Collection Page 78 EE"]
[null,"Item","Description",{"$nulls":7},"Unit","Qty","Supply & Deliver Rate","Install Rate","Amount"]
[null,null,"WALL MOUNTED AIR CIRCULATORS (FAN)"]
[null,null,"The unit shall be a 3 speed, 2 blade industrial wall fan with a"]
[null,null,"diameter of 730mm. The unit shall be robust, reliable, efficient, "]
[null,null,"adjustible height and oscillation, low noise and finished in dark"]
[null,null,"grey paint."]
[null,null,"The unit shall be complete with a wall arm mounting bracket,"]
[null,null,"fittings, fixtures and accessories for the works."]
[null,null,"At speed setting 3 the unit shall operate at 1400rpm, 2.95 volume"]
[null,null,"m/sec, 56dBA and 200W."]
[null,null,"The unit shall be as Luft or equal approved."]
[]
["P",4,"Wall circulator(FB65) (fan)",{"$nulls":7},"No",{"$f":"$R$1*5","v":50},{"$nulls":4},"EIS"]
[null,null,"PROPELLER(EXTRACTOR) FAN"]
[null,null,"The complete fan assembly is to be mounted on an octagonal"]
[null,null,"pressed steel mounting plate."]
[null,null,"The impeller shall comprise of four heavy gauge"]
[null,null,"pressed steel blades bolted to the die cast aluminium alloy hub,"]
[null,null,"dynamically balanced after assembly."]
[null,null,"The unit shall have four rigid mild steel arms provided for the"]
[null,null,"fixing of the motor and impeller to the mounting plate by way"]
[null,null,"of special vibration absorbers. The unit shall have a side wire "]
[null,null,"guard to prevent accidental contact and air borne objects "]
[null,null,"from passing through the fan."]
[null,null,"The unit shall be IP54 rated with sealed for life ball bearings and"]
[null,null,"class ‘E’ insulation to BS2613/1970."]
[null,null,"The unit shall be suitable for operation in ambient temperatures"]
[null,null,"between –20ºC and 40ºC in relative humidity up to 95%."]
[null,null,"The unit shall be rated at 250V, 50Hz and supplied with a 1m"]
[null,null,"electrical cord."]
[null,null,"The units, louvres and cowls shall be as Luft or equal approved."]
["P",{"$f":"B51+1","v":5},"300mm, (FAC30/4), 130W, 52dBA, Extractor Fan with guard",{"$nulls":7},"No",{"$f":"$R$1*5","v":50}]
["P",{"$f":"B70+1","v":6},"400mm, (FAC40/4), 200W, 62dBA, Extractor Fan with guard",{"$nulls":7},"No",{"$f":"$R$1*5","v":50}]
[]
[null,null,"LOUVRE SHUTTER"]
["P",{"$f":"B71+1","v":7},"Louvre shutter for FAC30/4 Extractor Fan",{"$nulls":7},"No",{"$f":"$R$1*5","v":50}]
["P",{"$f":"B74+1","v":8},"Louvre shutter for FAC40/4 Extractor Fan",{"$nulls":7},"No",{"$f":"$R$1*5","v":50}]
[]
[null,null,"Carried to Collection Page 78 EE"]
[null,"Item","Description",{"$nulls":7},"Unit","Qty","Supply & Deliver Rate","Install Rate","Amount"]
[null,null,"WALL COWL"]
["P",9,"Wall Cowl for FAC30/4 Extractor Fan",{"$nulls":7},"No",{"$f":"$R$1*5","v":50}]
["P",{"$f":"B80+1","v":10},"Wall Cowl for FAC40/4 Extractor Fan",{"$nulls":7},"No",{"$f":"$R$1*5","v":50}]
[]
[null,null,"AUTOMATIC HAND DRYER"]
[null,null,"The unit shall be an automatic hand dryer with robust, high impact"]
[null,null,"resistant body. The unit shall be sensor operated."]
[null,null,"The unit shall have the following features:"]
[null,null,"Rated Power - 2500 watts"]
[null,null,"High grade brushed stainless steel body"]
[null,null,"Maintenance free dryer - capacitor initiated for quick starts"]
[null,null,"360 degree revolving nozzle"]
[null,null,"Power cut off automatically in case of irregular use of over 90s"]
[null,null,"Voltage - 207V-253V~50Hz"]
[null,null,"Digital circuit and infrared sensor"]
[null,null,"Weight - 5.9kg"]
[null,null,"Air Velocity - 30m/s"]
[null,null,"Air Volume - 270m3/h"]
[null,null,"The unit shall be complete with all necessary mounting brackets,"]
[null,null,"fittings, fixtures and accessories for the works."]
[null,null,"The unit shall be as Luft or equal approved."]
["P",11,"Costa: CLX Automatic hand dryer",{"$nulls":7},"No",{"$f":"$R$1*5","v":50}]
{"$rows_empty":15}
[null,null,"Carried to Collection Page 78 EE"]
[null,"Item","Description",{"$nulls":7},"Unit","Qty","Supply & Deliver Rate","Install Rate","Amount"]
[null,null,"ELECTRICAL WORKS"]
[null,null,"BILL OF QUANTITIES: BILL NO 16 OF 19"]
[]
[null,null,"COLLECTION"]
[null,null,"FANS, DRYERS & EXTRACTORS"]
[]
[null,null,"Page 75 "]
[null,null,"Page 76 "]
[null,null,"Page 77 "]
{"$rows_empty":23}
[null,null,"FANS, DRYERS & EXTRACTORS"]
[null,null,"TOTAL CARRIED TO BILL SUMMARY Page"]

{"sheet":"BILL17","index":17,"n_rows":110,"n_cols":18,"rows_kept":110,"merged":[[0,1,0,14],[1,2,1,9],[6,2,6,9],[38,2,38,9],[75,2,75,9],[79,2,79,9],[80,2,80,9]]}
[{"$nulls":15},{"v":1.077,"d":"107.70%"},null,{"v":10,"d":"1000%"}]
[null,"Item","Description",{"$nulls":7},"Unit","Qty","Supply & Deliver Rate","Install Rate","Amount"]
[]
[null,null,"ELECTRICAL WORKS"]
["Q",null,"BILL OF QUANTITIES: BILL NO 17 OF 19"]
[]
[null,null,"OCCUPANCY SENSORS"]
[null,null,"Supply, deliver and install ceiling mounted occupancy sensors."]
[null,null,"The units shall be suitable for application at 250V, 50Hz and"]
[null,null,"be UL, cUL listed."]
[null,null,"The units shall be dual technology sensors with self adaptive"]
[null,null,"technology. There shall be no manual adjustment required and a"]
[null,null,"non volatile memory setting for sensor setting."]
[null,null,"The unit shall be complete with a quick to install connector"]
[null,null,"(QTI) and universal voltage power pack(UVP)."]
[null,null,"The equipment shall include all necessary fittings, fixtures and "]
[null,null,"accessories to complete the works."]
[null,null,"The units shall be as Hubbell Building Automation or equal"]
[null,null,"approved."]
[]
[null,null,"GENERAL LIGHTING SENSORS"]
[null,null,"OMNIDT"]
[null,null,"Dual Technology Ceiling Sensor with self adaptive technology"]
["Q",1,"OMNIDT500, with QTI & UVP, Colour Off White, Sensor"]
[null,null,"Coverage Area 46m2",{"$nulls":7},"No",{"$f":"$R$1*5","v":50}]
["Q",{"$f":"B24+1","v":2},"OMNIDT1000, with QTI & UVP, Colour Off White, Sensor"]
[null,null,"Coverage Area 93m2",{"$nulls":7},"No",{"$f":"$R$1*5","v":50}]
["Q",{"$f":"B26+1","v":3},"OMNIDT2000, with QTI & UVP, Colour Off White, Sensor"]
[null,null,"Coverage Area 186m2",{"$nulls":7},"No",{"$f":"$R$1*5","v":50}]
{"$rows_empty":8}
[null,null,"Carried to Collection Page 81 EE"]
[null,"Item","Description",{"$nulls":7},"Unit","Qty","Supply & Deliver Rate","Install Rate","Amount"]
[null,null,"HIGHBAY FLUORESCENT OCCUPANCY SENSOR"]
[null,null,"Industrial T5 & T8 fixtures "]
[null,null,"Supply, deliver and install ceiling mounted occupancy sensors."]
[null,null,"The units shall be suitable for application at 250V, 50Hz and"]
[null,null,"be ETL, UL, cUL and Title 24 compliant."]
[null,null,"The units shall be digital passive infrared sensors with self"]
[null,null,"adaptive technology."]
[null,null,"The unit shall be complete with a quick to install connector"]
[null,null,"(QTI) and universal voltage power pack(UVP)."]
[null,null,"The equipment shall include all necessary fittings, fixtures and "]
[null,null,"accessories to complete the works."]
[null,null,"The units shall be as Hubbell Building Automation or equal"]
[null,null,"approved."]
[]
[null,null,"SINGLE OUTPUT VERSION(ON/OFF - OPTION)"]
[]
["Q",{"$f":"B28+1","v":4},"HBA: WASP: FHB141NPUNV with adpators, QTI and UVP",{"$nulls":7},"No",{"$f":"$R$1*5","v":50}]
[null,null,"DUAL OUTPUT VERSION"]
[null,null,"(Step Dimming & Smart Cycling - OPTION)"]
["Q",{"$f":"B56+1","v":5},"HBA: WASP: FHB142NPUNV with adpators, QTI and UVP",{"$nulls":7},"No",{"$f":"$R$1*5","v":50}]
[]
[null,null,"Occupancy and Daylight Harvesting Sensor"]
["Q",6,"Sensors are ceiling/surface mount devices that provide a range "]
[null,null,"of daylight harvesting features for Light Control System installations "]
[null,null,"with finished ceilings (e.g. office ceiling board, tiles, sheetrock, plaster)",{"$nulls":7},"No",{"$f":"$R$1*10","v":100}]
[]
["Q",7,"High Bay Tridonic Sensors are ceiling/surface mount devices that "]
[null,null,"provide a range of daylight harvesting features for Light Control "]
[null,null,"System installations with finished ceilings (e.g. ceiling tiles,",{"$nulls":7},"No",{"$f":"$R$1*5","v":50}]
[null,null,"sheetrock, plaster)"]
[]
[]
[]
[]
[]
[null,null,"Carried to Collection Page 81 EE"]
[null,"Item","Description",{"$nulls":11},"Amount"]
[null,null,"ELECTRICAL WORKS"]
[null,null,"BILL OF QUANTITIES: BILL NO 17 OF 19"]
[]
[null,null,"COLLECTION"]
[null,null,"OCCUPANCY SENSORS"]
[]
[null,null,"Page 79 "]
[null,null,"Page 80 "]
{"$rows_empty":24}
[null,null,"OCCUPANCY SENSORS"]
[null,null,"TOTAL CARRIED TO BILL SUMMARY Page"]

{"sheet":"BILL18","index":18,"n_rows":163,"n_cols":18,"rows_kept":163,"merged":[[0,1,0,14],[1,2,1,9],[4,2,4,9],[44,2,44,9],[90,2,90,9],[128,2,128,9],[133,2,133,9],[135,2,135,9],[161,2,161,9]]}
[{"$nulls":15},{"v":1.077,"d":"107.70%"},null,{"v":11,"d":"1100%"}]
[null,"Item","Description",{"$nulls":7},"Unit","Qty","Supply & Deliver Rate","Install Rate"," Amount"]
[null,null,"ELECTRICAL WORKS"]
["R",null,"BILL OF QUANTITIES: BILL NO 18 OF 19"]
[null,null,"LIGHTNING & SURGE PROTECTION"]
[null,null,"Supply, deliver and install low voltage surge protection"]
[null,null,"equipment and devices."]
[null,null,"The equipment shall include all necessary fittings, fixtures and "]
[null,null,"accessories to complete the works."]
[null,null,"BARE COPPER EARTH CABLE"]
[null,null,"Supply, deliver and install low voltage(600/1000V), bare, "]
[null,null,"stranded, compacted, copper conductor cables."]
[null,null,"Checking of cable and overhead conductor lengths. "]
[null,null,"The Contractor shall check such lengths on site before ordering "]
[null,null,"the cable as he will not be paid for excess cable after the completion"]
[null,null,"of the service. Any allowance for off-cuts shall be made in the unit"]
[null,null,"rates. The final measurements shall be based on the net route length"]
[null,null,"of cables concerned, installed in accordance with the requirements."]
[null,null,"However, the onus is on the Contractor to prove compliance"]
[null,null,"with the specification."]
[null,null,"The cabling shall be installed either in excavations, cable trays, "]
[null,null,"trunking, wireways, ground, sleeves, ducts, etc(measured"]
[null,null,"elsewhere) and shall include all necessary fittings, fixtures and"]
[null,null,"accessories required for the works."]
[null,null,"The cables shall be as per Abedare Cables or equal approved."]
[]
[]
["R",1,"70mm2 Bare Copper earth conductor",{"$nulls":7},"m",{"$f":"$R$1*5","v":55}]
["R",{"$f":"B28+1","v":2},"70mm2 Insulated Copper earth conductor",{"$nulls":7},"m",{"$f":"$R$1*5","v":55}]
["R",3,"150mm2 Bare Copper earth conductor ",{"$nulls":7},"m",{"$f":"$R$1*5","v":55}]
["R",4,"150mm2 Insulated Copper earth conductor",{"$nulls":7},"m",{"$f":"$R$1*5","v":55}]
[]
[null,null,"EARTH ROD (Roof Conductor)"]
[null,null,"Supply, deliver and install low voltage(600/1000V), copper"]
[null,null,"clad, 16mm diameter, 1.8m earth rods, SABS approved. "]
[null,null,"The rods shall be complete with all terminations, double nuts,"]
[null,null,"washers, coupling, clamps, etc required for the works."]
["R",5,"1.8m Copper Earth Rod",{"$nulls":7},"No",{"$f":"$R$1*5","v":55}]
["R",{"$f":"B38+1","v":6},"Extensible copper earth electrodes into ground mech"]
[null,null,"driving, incl cpl driv blt",{"$nulls":7},"No",{"$f":"$R$1*5","v":55}]
["R",7,"50mm2 Aluminium roof conductor insulated on roof including "]
[null,null,"Aluminium fixing accessories",{"$nulls":7},"No",{"$f":"$R$1*5","v":55}]
[]
[null,null,"Carried to Collection Page 85 EE"]
[null,"Item","Description",{"$nulls":7},"Unit","Qty","Supply & Deliver Rate","Install Rate"," Amount"]
[]
[null,null,"GENERAL ITEMS"]
["R",8,"Sealing of joints with Denso tapes",{"$nulls":7},"No",{"$f":"$R$1*5","v":55}]
[null,null,"Joining of various round/flat copper conductors by"]
[null,null,"means of bolting, brazing or exothermic bonds"]
["R",{"$f":"B48+1","v":9},"Brass clamps termination to copper cable and to the"]
[null,null,"top of the earth electrodes",{"$nulls":7},"No",{"$f":"$R$1*5","v":55}]
["R",{"$f":"B51+1","v":10},"Bonding of air termination conductor between, roof, gutters, etc",{"$nulls":7},"No",{"$f":"$R$1*5","v":55}]
["R",{"$f":"B53+1","v":11},"Bi-Metallic test joint between d/c system and earth",{"$nulls":7},"No",{"$f":"$R$1*5","v":55}]
["R",{"$f":"B54+1","v":12},"Re-inforcing brass bracket complete with galvanised"]
[null,null,"steel wire, U bolt, brass terminal",{"$nulls":7},"No",{"$f":"$R$1*5","v":55}]
["R",{"$f":"B55+1","v":13},"Lightning protection points test in SIS Duo york box  complete "]
[null,null,"with PVC sliding lid, stainless steel screws and engraved cover.",{"$nulls":7},"No",{"$f":"$R$1*5","v":55}]
["R",{"$f":"B57+1","v":14},"Allow for visiting of the site and the carrying out of the required  "]
[null,null,"pre resistivity tests, risk assessments and the issuing of the test "]
[null,null," results and construction shop drawings to the Engineer prior to "]
[null,null,"the works (earthing & lightning protection system)",{"$nulls":7},"Item",{"$f":"$R$1*5","v":55}]
["R",{"$f":"B59+1","v":15},"Allow for the testing of the completed system and the"]
[null,null,"issue of a prescribed test certificate.",{"$nulls":7},"Item",{"$f":"$R$1*5","v":55}]
[]
[null,null,"SURGE ARRESTORS"]
[null,null,"Supply, deliver and install indoor surge arrestors in existing or "]
[null,null,"new switchboards."]
[null,null,"The units shall comply with SANS 61643 or VDE 0675."]
[null,null,"The equipment shall include all necessary fittings, fixtures and "]
[null,null,"accessories to complete the works."]
[null,null,"The units shall be as Dehn or equal approved."]
[]
[null,null,"SINGLE PHASE"]
[null,null,"Combined SPDS TYPE 1: Type 1, Class 1"]
["R",{"$f":"B63+1","v":16},"Modular combined lightning current and surge arrestor",{"$nulls":7},"No",{"$f":"$R$1*5","v":55}]
[]
[null,null,"SINGLE PHASE"]
[null,null,"Combined SPDS TYPE 2: Type 2, Class 2"]
["R",{"$f":"B76+1","v":17},"Modular combined lightning current and surge arrestor",{"$nulls":7},"No",{"$f":"$R$1*5","v":55}]
[]
[null,null,"THREE PHASE"]
[null,null,"Combined SPDS TYPE 1: Type 1, Class 1"]
["R",{"$f":"B80+1","v":18},"Modular combined lightning current and surge arrestor",{"$nulls":7},"No",{"$f":"$R$1*5","v":55}]
[]
[null,null,"THREE PHASE"]
[null,null,"Combined SPDS TYPE 2: Type 2, Class 2"]
["R",{"$f":"B84+1","v":19},"Modular combined lightning current and surge arrestor",{"$nulls":7},"No",{"$f":"$R$1*5","v":55}]
[]
[null,null,"Carried to Collection Page 85 EE"]
[null,"Item","Description",{"$nulls":7},"Unit","Qty","Supply & Deliver Rate","Install Rate"," Amount"]
[]
[null,null,"UNDER/OVERVOLTAGE RELAYS"]
[null,null,"Supply, deliver and install under/over voltage relays in existing or "]
[null,null,"new switchboards. The unit shall be complete with all auxillary "]
[null,null,"components, connections, terminations, circuit breakers, etc "]
[null,null,"The unit shall be as per Clearline or equal approved."]
["R",20,"12-00407 Trip-Connect (Single Phase),"]
[null,null,"Single Phase under/overvoltage relay fixed line"]
[null,null,"protection system complete with circuit breaker",{"$nulls":7},"Item",{"$f":"$R$1*5","v":55}]
[]
["R",{"$f":"B98+1","v":21},"12-00409 Trip-Connect 3P (Programmable),"]
[null,null,"Three Phase under/overvoltage relay fixed line"]
[null,null,"protection system complete with circuit breaker",{"$nulls":7},"Item",{"$f":"$R$1*5","v":55}]
{"$rows_empty":23}
[null,null,"Carried to Collection Page 85 EE"]
[null,"Item","Description",{"$nulls":11}," Amount"]
[]
[null,null,"ELECTRICAL WORKS"]
[null,null,"BILL OF QUANTITIES: BILL NO 18 OF 19"]
[]
[null,null,"COLLECTION"]
[]
[null,null,"LIGHTNING & SURGE PROTECTION"]
[]
[null,null,"Page 82 "]
[null,null,"Page 83 "]
[null,null,"Page 84 "]
{"$rows_empty":21}
[null,null,"LIGHTNING & SURGE PROTECTION"]
[null,null,"TOTAL CARRIED TO BILL SUMMARY Page "]

{"sheet":"BILL19","index":19,"n_rows":290,"n_cols":18,"rows_kept":290,"merged":[[1,2,1,9],[4,2,4,9],[15,2,15,9],[19,2,19,9],[23,2,23,9],[27,2,27,9],[31,2,31,9],[35,2,35,9],[40,2,40,9],[52,2,52,9],[54,2,54,9],[58,2,58,9],[62,2,62,9],[66,2,66,9],[72,2,72,9],[76,2,76,9],[80,2,80,9],[84,2,84,9],[88,2,88,9],[92,2,92,9],[95,2,95,9],[99,2,99,9],[102,2,102,9],[105,2,105,9],[111,2,111,9],[117,2,117,9],[120,2,120,9],[123,2,123,9],[126,2,126,9],[129,2,129,9],[131,2,131,9],[133,2,133,9],[135,2,135,9],[137,2,137,9],[139,2,139,9],[142,2,142,9],[145,2,145,9],[148,2,148,9],[161,2,161,9],[165,2,165,9],[177,2,177,9],[180,2,180,9],[183,2,183,9],[186,2,186,9],[189,2,189,9],[192,2,192,9],[195,2,195,9],[198,2,198,9],[201,2,201,9],[204,2,204,9],[208,2,208,9],[212,2,212,9],[220,2,220,9],[222,2,222,9],[224,2,224,9],[226,2,226,9],[228,2,228,9],[230,2,230,9],[232,2,232,9],[235,2,235,9],[238,2,238,9],[241,2,241,9],[246,2,246,9],[255,2,255,9],[260,2,260,9],[262,2,262,9],[288,2,288,9]]}
[{"$nulls":15},{"v":1.077,"d":"107.70%"},null,{"v":18,"d":"1800%"}]
[null,"Item","Description",{"$nulls":7},"Unit","Qty","Supply & Deliver Rate","Install Rate"," Amount"]
[null,null,"ELECTRICAL WORKS"]
["S",null,"BILL OF QUANTITIES: BILL NO 19 OF 19"]
[null,null,"PHOTOVOLTAIC SYSTEMS"]
[null,null,"Supply, deliver and install photovoltaics systems, including all"]
[null,null,"accessories to complete the works in full compliance with applicable  "]
[null,null,"SABS or IEC and SANS standards. The technologies of the system "]
[null,null,"must be market related."]
[]
[]
[null,null,"PV MODULES (inclusive of 25-year reliability and warranty)"]
[null,null,"NB: Min +25 year performance warranty + 10 years equipment "]
[null,null,"guarantee"]
[]
["S",1,"Canadian Solar SuperPower CS6K-305MS 305W Mono-crystalline ",{"$nulls":7},"ea",{"$f":"$R$1*1","v":18}]
[null,null,"Solar Panel with Integrated Compatible Power Optimizer, MC4 I/O "]
[null,null,"connectors and all accessories inclusive or Equally Approved"]
[]
["S",{"$f":"B16+1","v":2},"Canadian Solar KuPower CS3K-320MS 320W Mono-crystalline ",{"$nulls":7},"ea",{"$f":"$R$1*1","v":18}]
[null,null,"Solar Panel with Integrated Compatible Power Optimizer, MC4 I/O "]
[null,null,"connectors and all accessories inclusive or Equally Approved"]
[]
["S",{"$f":"B20+1","v":3},"Canadian Solar HiDM Black CS1H-320MS 320W Mono-crystalline ",{"$nulls":7},"ea",{"$f":"$R$1*1","v":18}]
[null,null,"Solar Panel with Integrated Compatible Power Optimizer, MC4 I/O "]
[null,null,"connectors and all accessories inclusive or Equally Approved"]
[]
["S",{"$f":"B24+1","v":4},"Canadian Solar HiDM Black CS1H-325MS 325W Mono-crystalline ",{"$nulls":7},"ea",{"$f":"$R$1*1","v":18}]
[null,null,"Solar Panel with Integrated Compatible Power Optimizer, MC4 I/O "]
[null,null,"connectors and all accessories inclusive or Equally Approved"]
[]
["S",{"$f":"B28+1","v":5},"Canadian Solar HiDM Black CS1H-330MS 330W Mono-crystalline ",{"$nulls":7},"ea",{"$f":"$R$1*1","v":18}]
[null,null,"Solar Panel with Integrated Compatible Power Optimizer, MC4 I/O "]
[null,null,"connectors and all accessories inclusive or Equally Approved"]
[]
["S",{"$f":"B32+1","v":6},"Canadian Solar 330W Polycrystalline 72cells 35mm frame ",{"$nulls":7},"ea",{"$f":"$R$1*1","v":18}]
[null,null,"Polycrystalline Solar Panel with Integrated Compatible Power "]
[null,null,"Optimizer, MC4 I/O connectors and all accessories inclusive or "]
[null,null,"Equally Approved"]
[]
["S",{"$f":"B36+1","v":7},"Canadian Solar 265W Polycrystalline 60cells 40mm frame ",{"$nulls":7},"ea",{"$f":"$R$1*1","v":18}]
[null,null,"Polycrystalline Solar Panel with Integrated Compatible Power "]
[null,null,"Optimizer, MC4 I/O connectors and all accessories inclusive or "]
[null,null,"Equally Approved"]
[]
[null,null,"POWER OPTIMIZER "]
[null,null,"NB: Min 25-year performance warranty + 10-years equipment "]
[null,null,"guarantee (continue on next page)"]
[]
[]
[]
[null,null,"Carried to Collection Page 91 EE"]
[null,"Item","Description",{"$nulls":7},"Unit","Qty","Supply & Deliver Rate","Install Rate"," Amount"]
[]
["S",{"$f":"B41+1","v":8},"Solaredge or equally approved UV Resistance Power Optimizer ",{"$nulls":7},"ea",{"$f":"$R$1*1","v":18}]
[null,null,"Module P300 (for 60-cell modules) including MC4 Input/Output "]
[null,null,"Connectors and Double Insulated Wire"]
[]
["S",{"$f":"B55+1","v":9},"Solaredge or equally approved UV Resistance Power Optimizer ",{"$nulls":7},"ea",{"$f":"$R$1*1","v":18}]
[null,null,"Module P370 (for high power 60 / 72 cell modules) including MC4 "]
[null,null,"Input/Output Connectors and Double Insulated Wire"]
[]
["S",{"$f":"B59+1","v":10},"Solaredge or equally approved UV Resistance Power Optimizer ",{"$nulls":7},"ea",{"$f":"$R$1*1","v":18}]
[null,null,"Module P404 (for 60 / 72 cell short strings) including MC4 "]
[null,null,"Input/Output Connectors and Double Insulated Wire"]
[]
["S",{"$f":"B63+1","v":11},"Solaredge or equally approved UV Resistance Power Optimizer ",{"$nulls":7},"ea",{"$f":"$R$1*1","v":18}]
[null,null,"Module P730 (for 2x 72-cell modules) including MC4 Input/Output "]
[null,null,"Connectors and Double Insulated Wire"]
[]
[null,null,"INVERTORS (inclusive of 25-year reliability and warranty)"]
[]
["S",{"$f":"B67+1","v":12},"Solaredge or equally approved Grid-Tied Three Phase SE10K ",{"$nulls":7},"ea",{"$f":"$R$1*1","v":18}]
[null,null,"10kW String Inverter with Synergy Technology including "]
[null,null,"Anti-Islanding Protection"]
[]
["S",{"$f":"B73+1","v":13},"Solaredge or equally approved Grid-Tied Three Phase SE33.3K ",{"$nulls":7},"ea",{"$f":"$R$1*1","v":18}]
[null,null,"33.3kW String Inverter with Synergy Technology including "]
[null,null,"Anti-Islanding Protection"]
[]
["S",{"$f":"B77+1","v":14},"Solaredge or equally approved Grid-Tied Three Phase SE50K ",{"$nulls":7},"ea",{"$f":"$R$1*1","v":18}]
[null,null,"50kW String Inverter with Synergy Technology including "]
[null,null,"Anti-Islanding Protection"]
[]
["S",{"$f":"B81+1","v":15},"Solaredge or equally approved Grid-Tied Three Phase SE60K ",{"$nulls":7},"ea",{"$f":"$R$1*1","v":18}]
[null,null,"60kW String Inverter with Synergy Technology including "]
[null,null,"Anti-Islanding Protection"]
[]
["S",{"$f":"B85+1","v":16},"Solaredge or equally approved Grid-Tied Three Phase SE82,5K ",{"$nulls":7},"ea",{"$f":"$R$1*1","v":18}]
[null,null,"82,5kW String Inverter with Synergy Technology including "]
[null,null,"Anti-Islanding Protection"]
[]
["S",{"$f":"B89+1","v":17},"Solaredge or equally approved Off-Grid Three Phase SE10K 10kW ",{"$nulls":7},"ea",{"$f":"$R$1*1","v":18}]
[null,null,"String Inverter with Synergy Technology including Protection"]
[]
["S",{"$f":"B93+1","v":18},"Solaredge or equally approved Off-Grid Three Phase SE33.3K ",{"$nulls":7},"ea",{"$f":"$R$1*1","v":18}]
[null,null,"33.3kW String Inverter with Synergy Technology including "]
[null,null,"Protection"]
[]
["S",{"$f":"B96+1","v":19},"Solaredge or equally approved Off-Grid Three Phase SE50K 50kW ",{"$nulls":7},"ea",{"$f":"$R$1*1","v":18}]
[null,null,"String Inverter with Synergy Technology including Protection"]
[]
["S",{"$f":"B100+1","v":20},"Solaredge or equally approved Off-Grid Three Phase SE60K 60kW ",{"$nulls":7},"ea",{"$f":"$R$1*1","v":18}]
[null,null,"String Inverter with Synergy Technology including Protection"]
[]
["S",{"$f":"B103+1","v":21},"Solaredge or equally approved Off-Grid Three Phase SE82,5K ",{"$nulls":7},"ea",{"$f":"$R$1*1","v":18}]
[null,null,"82,5kW String Inverter with Synergy Technology including "]
[null,null,"Protection"]
[]
[]
[null,null,"Carried to Collection Page 91 EE"]
[null,"Item","Description",{"$nulls":7},"Unit","Qty","Supply & Deliver Rate","Install Rate"," Amount"]
[]
[null,null,"MISCELENIOUS"]
[null,null,"NB: Min 25-year performance warranty + 10-years equipment "]
[null,null,"guarantee"]
[]
["S",{"$f":"B106+1","v":22},"SolarEdge Module temperature sensor (SE1000-SEN-TMOD-S2) ",{"$nulls":7},"ea",{"$f":"$R$1*1","v":18}]
[null,null,"or Equally approved"]
[]
["S",{"$f":"B118+1","v":23},"SolarEdge Ambient temperature sensor (SE1000-SEN-TAMB-S2) ",{"$nulls":7},"ea",{"$f":"$R$1*1","v":18}]
[null,null,"or Equally approved"]
[]
["S",{"$f":"B121+1","v":24},"SolarEdge Irradiance sensor (SE1000-SEN-IRR-S1) ",{"$nulls":7},"ea",{"$f":"$R$1*1","v":18}]
[null,null,"or Equally approved"]
[]
["S",{"$f":"B124+1","v":25},"SolarEdge Wind sensor (SE1000-SEN-WIND-S1) ",{"$nulls":7},"ea",{"$f":"$R$1*1","v":18}]
[null,null,"or Equally approved"]
[]
["S",{"$f":"B127+1","v":26},"ARTsolar 100Ah 12V GEL Deep-cycle Battery or Equally approved",{"$nulls":7},"ea",{"$f":"$R$1*1","v":18}]
[]
["S",{"$f":"B130+1","v":27},"ARTsolar 200Ah 12V GEL Deep-cycle Battery or Equally approved",{"$nulls":7},"ea",{"$f":"$R$1*1","v":18}]
[]
["S",{"$f":"B132+1","v":28},"SolarEdge StoreEdge Interface SEST1-S1 or Equally approved",{"$nulls":7},"ea",{"$f":"$R$1*1","v":18}]
[]
["S",{"$f":"B134+1","v":29},"SolarEdge StoreEdge Interface SEST1-S2 or Equally approved",{"$nulls":7},"ea",{"$f":"$R$1*1","v":18}]
[]
["S",{"$f":"B136+1","v":30},"SolarEdge StoreEdge Interface SEST1-S4 or Equally approved",{"$nulls":7},"ea",{"$f":"$R$1*1","v":18}]
[]
["S",{"$f":"B138+1","v":31},"Victron Energy or Equally approved SmartSolar Charge ",{"$nulls":7},"ea",{"$f":"$R$1*1","v":18}]
[null,null,"Controllers with load output MPPT BlueSolar 150/85"]
[]
["S",{"$f":"B140+1","v":32},"Victron Energy or Equally approved SmartSolar Charge ",{"$nulls":7},"ea",{"$f":"$R$1*1","v":18}]
[null,null,"Controllers with load output EasySolar 12/1600/70"]
[]
["S",{"$f":"B143+1","v":33},"Victron Energy or Equally approved SmartSolar Charge ",{"$nulls":7},"ea",{"$f":"$R$1*1","v":18}]
[null,null,"Controllers with load output EasySolar 24/3000/70-50 MPPT 150/70"]
[]
["S",{"$f":"B146+1","v":34},"Victron Energy or Equally approved SmartSolar Charge Controllers with load output EasySolar 48/5000/70-100 MPPT 150/100",{"$nulls":7},"ea",{"$f":"$R$1*1","v":18}]
[null,null,"Controllers with load output EasySolar 48/5000/70-100 MPPT "]
[null,null,"150/100"]
{"$rows_empty":9}
[null,null,"Carried to Collection Page "]
[null,"Item","Description",{"$nulls":7},"Unit","Qty","Supply & Deliver Rate","Install Rate"," Amount"]
[]
[null,null,"CABLES"]
[]
[null,null,"Cable installation Incl U-clamps, tag numbers and cable straps. "]
[null,null,"Supply deliver to site and store 1000/600 volt "]
[null,null,"Cu/PVC/SWA/PVC/ECC cables. Install, rack, strap and testing "]
[null,null,"of cables as per specification including clamps, ties and cable "]
[null,null,"numbering system.  Rates to include for wastage.  Contractor will "]
[null,null,"only be reimbursed for installed cable measured on site between "]
[null,null,"terminations. Cable bonding of all Earth Continuity Conductors"]
[null,null,"from the incoming and outgoing cables will be properly crimped "]
[null,null,"into cable lugs and bolted to their respective earth bars. NB: All "]
[null,null,"cables installed in outdoors environment shall be UV "]
[null,null,"resistance and shall have MC4 Input/Output connectors"]
[]
["S",{"$f":"B149+1","v":35},"Lapp ÖlFlex Solar XLR 4mm² single core DC cable",{"$nulls":7},"ea",{"$f":"$R$1*1","v":18}]
[]
[]
["S",{"$f":"B178+1","v":36},"Lapp ÖlFlex Solar XLR 6mm² single core DC cable",{"$nulls":7},"m",{"$f":"$R$1*1","v":18}]
[]
[]
["S",{"$f":"B181+1","v":37},"Lapp ÖlFlex Solar XLR 10mm² single core DC cable",{"$nulls":7},"m",{"$f":"$R$1*1","v":18}]
[]
[]
["S",{"$f":"B184+1","v":38},"Lapp ÖlFlex Solar XLR 16mm² single core DC cable",{"$nulls":7},"m",{"$f":"$R$1*1","v":18}]
[]
[]
["S",{"$f":"B187+1","v":39},"LV AWA  25mm² PVC copper single core DC cable",{"$nulls":7},"m",{"$f":"$R$1*1","v":18}]
[]
[]
["S",{"$f":"B190+1","v":40},"LV AWA  35mm² PVC copper single core DC cable",{"$nulls":7},"m",{"$f":"$R$1*1","v":18}]
[]
[]
["S",{"$f":"B193+1","v":41},"16mm² x 4 core copper PVC/SWA+ECC 600/1000V + 10mm² Earth  ",{"$nulls":7},"m",{"$f":"$R$1*1","v":18}]
[null,null,"Wire"]
[]
["S",{"$f":"B196+1","v":42},"25mm² x 4 core copper PVC/SWA+ECC 600/1000V + 16mm² Earth  ",{"$nulls":7},"m",{"$f":"$R$1*1","v":18}]
[null,null,"Wire"]
[]
["S",{"$f":"B199+1","v":43},"50mm² x 4 core copper PVC/SWA+ECC 600/1000V + 25mm² Earth  ",{"$nulls":7},"m",{"$f":"$R$1*1","v":18}]
[null,null,"Wire"]
[]
["S",{"$f":"B202+1","v":44},"70mm² x 4 core copper PVC/SWA+ECC 600/1000V + 35mm² Earth  ",{"$nulls":7},"m",{"$f":"$R$1*1","v":18}]
[null,null,"Wire"]
[]
[null,null,"Carried to Collection Page 91 EE"]
[null,"Item","Description",{"$nulls":7},"Unit","Qty","Supply & Deliver Rate","Install Rate"," Amount"]
[]
[null,null,"TERMINATIONS"]
[]
[null,null,"Cable terminations & Joints - Incl glands, cable numbers, wire"]
[null,null," numbers, lugs. For PVC/SWA/PVC/ECC cables, shall include "]
[null,null,"supply installation and testing of the IP 65 glands with corrosion "]
[null,null,"guard, making -off the cable, gland plate, switchgear or appliance "]
[null,null,"and final connection of cable tails into board or terminals. NB: All "]
[null,null,"cables terminations installed in outdoor environment shall be"]
[null,null,"UV resistance and shall have MC4 Input/Output connectors"]
[]
["S",{"$f":"B205+1","v":45},"Lapp ÖlFlex Solar XLR 4mm² single core DC cable",{"$nulls":7},"ea",{"$f":"$R$1*1","v":18}]
[]
["S",{"$f":"B221+1","v":46},"Lapp ÖlFlex Solar XLR 6mm² single core DC cable",{"$nulls":7},"ea",{"$f":"$R$1*1","v":18}]
[]
["S",{"$f":"B223+1","v":47},"Lapp ÖlFlex Solar XLR 10mm² single core DC cable",{"$nulls":7},"ea",{"$f":"$R$1*1","v":18}]
[]
["S",{"$f":"B225+1","v":48},"Lapp ÖlFlex Solar XLR 16mm² single core DC cable",{"$nulls":7},"ea",{"$f":"$R$1*1","v":18}]
[]
["S",{"$f":"B227+1","v":49},"LV AWA  25mm² PVC copper single core DC cable",{"$nulls":7},"ea",{"$f":"$R$1*1","v":18}]
[]
["S",{"$f":"B229+1","v":50},"LV AWA  35mm² PVC copper single core DC cable",{"$nulls":7},"ea",{"$f":"$R$1*1","v":18}]
[]
["S",{"$f":"B231+1","v":51},"16mm² x 4 core copper PVC/SWA+ECC 600/1000V + 10mm² Earth  ",{"$nulls":7},"ea",{"$f":"$R$1*1","v":18}]
[null,null,"Wire"]
[]
["S",{"$f":"B233+1","v":52},"25mm² x 4 core copper PVC/SWA+ECC 600/1000V + 16mm² Earth  ",{"$nulls":7},"ea",{"$f":"$R$1*1","v":18}]
[null,null,"Wire"]
[]
["S",{"$f":"B236+1","v":53},"50mm² x 4 core copper PVC/SWA+ECC 600/1000V + 25mm² Earth  ",{"$nulls":7},"ea",{"$f":"$R$1*1","v":18}]
[null,null,"Wire"]
[]
["S",{"$f":"B239+1","v":54},"70mm² x 4 core copper PVC/SWA+ECC 600/1000V + 35mm² Earth",{"$nulls":7},"ea",{"$f":"$R$1*1","v":18}]
[null,null,"Wire "]
[]
[null,null,"TESTING, MONITORING and COMMISSIONING"]
[]
["S",{"$f":"B242+1","v":55},"Testing, Monitoring and Commission PV System to Remote ",{"$nulls":7},"ea",{"$f":"$R$1*1","v":18}]
[null,null,"Monitoring  Software and Provide As-Built  Maintenance "]
[null,null,"Manuals  and COC's in accordance to the applicable SANS for the "]
[null,null,"complete installation"]
[]
[]
[]
[]
[null,null,"Carried to Collection Page 91 EE"]
[null,"Item","Description",{"$nulls":11}," Amount"]
[]
[null,null,"ELECTRICAL WORKS"]
[null,null,"BILL OF QUANTITIES: BILL NO 19 OF 19"]
[]
[null,null,"COLLECTION"]
[]
[null,null,"PHOTO-VOLTAIC SYSTEM"]
[]
[null,null,"Page 86 "]
[null,null,"Page 87 "]
[null,null,"Page 88 "]
[null,null,"Page 89 "]
[null,null,"Page 90 "]
{"$rows_empty":19}
[null,null,"PHOTOVOLTAIC SYSTEMS"]
[null,null,"TOTAL CARRIED TO BILL SUMMARY Page 92 EE"]

{"sheet":"SUMMARY","index":20,"n_rows":50,"n_cols":15,"rows_kept":50,"merged":[[0,1,2,13],[0,14,1,14],[3,2,3,13],[4,2,4,13]]}
[]
[]
[]
[null,"Page","Description",{"$nulls":11}," Amount"]
[null,null,"SCHEDULE OF RATES - BILL SUMMARY "]
[]
["A",{"$f":"B5+1","v":1},"BILL NO 1: ARTISAN"]
[]
["B",{"$f":"B7+1","v":2},"BILL NO 2: CERTIFICATE OF COMPLIANCE"]
[]
["C",13,"BILL NO 3: CIRCUIT BREAKERS, SWITCHGEAR, DIST. BOARD & ASSOCIATED EQUIPMENT"]
[]
["D",16,"BILL NO 4: CABLE TRENCHING"]
[]
["E",21,"BILL NO 5: CABLE RETICULATION"]
[]
["F",27,"BILL NO 6: WIREWAYS & ACCESSORIES"]
[]
["G",31,"BILL NO 7: WIRING"]
[]
["H",46,"BILL NO 8: LUMINAIRES"]
[]
["I",55,"BILL NO 9: LAMPS"]
[]
["J",62,"BILL NO 10: LUMINAIRE ACCESSORIES"]
[]
["K",62,"BILL NO 11: LIGHT SWITCHES"]
[]
["L",63,"BILL NO 12: POWERSKIRTING"]
[]
["M",70,"BILL NO 13: SWITCHED SOCKET OUTLETS, ENCLOSURES & ACCESSORIES"]
[]
["N",71,"BILL NO 14: GEYSER SPARES  & ACCESSORIES"]
[]
["O",72,"BILL NO 15: HYDROBOIL"]
[]
["P",76,"BILL NO 16: FANS, DRYERS & ACCESSORIES"]
[]
["Q",79,"BILL NO 17: OCCUPANCY SENSORS"]
[]
["R",83,"BILL NO 18: LIGHTNING & SURGE PROTECTION"]
[]
["S",86,"BILL No 19: PHOTOVOLTAIC SYSTEMS"]
[]
[null,null,"TOTAL EXCLUDING VAT  (CARRIED TO FINAL SUMMARY)"]
[]
[{"$nulls":13},"15% VAT"]
[]
[{"$nulls":13},"TOTAL INCLUDING 15% VAT"]
[{"$nulls":14}," "]